Workbook

Sheet Setup
A1: Singles | B1: 16 | D1: Θέσεις | E1: seed
A2: Draw16_S | D2: 3-4 | E2: =VALUE(LEFT(F2,1)) -> 3 | F2: 3 4
A3: Διοργανωτής: | B3: ΣΤ' ΕΝΩΣΗ | E3: =VALUE(RIGHT(F2,1)) -> 4 | Z3: Tour lookup
A4: Έδρα αγώνων: | B4: ΣΑ ΤΡΙΠΟΛΗΣ | Z4: =$B$8 -> 2018-06-30
A5: grade: | B5: Ε3 | Z5: =TRIM(IF(OR($B$5="Παν",$B$5="ΠανΑΓ",$B$5="Open",$B$5="OpenΑΓ"),$B$7&" ("&VLOOKUP($B$4,tables!$X:$Z,3,FALSE)&")",$B$7&" ("&VLOOKUP($B$4,tables!$X:$Z,3,FALSE)&")")) -> Ε3 26η (ΣΤ)
A6: Κατηγορία: | B6: Κ14 | T6: Tournament ID | U6: Tournament | Z6: =VLOOKUP($B$4,tables!$X:$Z,2,FALSE) -> 294
A7: Τίτλος Τουρνουά: | B7: Ε3 26η | D7: 1 2 3 4 14 16 15 11 13 7 9 6 10 5 12 8 | T7: =$Z$9 ->  | U7: =IF(T7>0,VLOOKUP(T7,tables!AQ:AR,2,FALSE),"") ->  | Z7: S
A8: Έναρξη Κ.Τ.: | B8: 2018-06-30 | D8: 1 2 3 4 | T8: =LOWER(B21) -> ε3 26η στ κ14 s md | Z8: =LOWER(TRIM(IF(SUBSTITUTE($B$6,"1","")<>$B$6,SUBSTITUTE(UPPER($B$6),"D",""),$B$6))) -> κ14
A9: Λήξη τουρνουά: | B9: 2018-07-01 | D9: 0 0 0 0 0 0 0 0 0 0 0 0 0 0 0 0 0 0 0 0 0 0 0 0 0 0 0 0 0 0 0 0 0 0 0 0 0 0 0 0 | Z9: =VLOOKUP($Z$11,tables!$AI:$AQ,9,FALSE) -> 
A10: Βδομάδα: | B10: ="βδ.: "&TEXT(WEEKNUM(B8,2),"00")&"η" -> βδ.: 26η | Z10: =VLOOKUP($B$6,tables!AS1:AT51,2,FALSE) -> 10
A11: Επιδιαιτητής: | B11: ΚΑΛΟΓΡΗ Σ | D11: 0 | E11: seed | F11: space pos | G11: Index | H11: Value | T11: γραφή σκορ: | U11: 62 76(4) | Z11: =$Z$4&$Z$5&$Z$6&$Z$7&$Z$8 -> 43281Ε3 26η (ΣΤ)294Sκ14
A12: Τηλέφωνο τουρνουά: | D12: =IF(E12="-","-",IF(E12>0,D11+1,0)) -> 1 | E12: =IF(F12>0,VALUE(MID($D$7,1,F12-1)),"-") -> 1 | F12: =IF(LEN($D$7)>1,FIND(" ",$D$7,1),0) -> 2 | G12: 1 | H12: 1 | U12: wo ret med
A13: =IF(SUBSTITUTE($B$6,"1","")<>$B$6, SUBSTITUTE(SUBSTITUTE(SUBSTITUTE(SUBSTITUTE(SUBSTITUTE(UPPER(LEFT($B$6)),"A","B"),"Α","B"),"K","G"),"Κ","G"),"Μ","X"),"") -> G | B13: =IF(SUBSTITUTE($B$6,"1","")<>$B$6,VALUE(SUBSTITUTE(SUBSTITUTE(SUBSTITUTE(SUBSTITUTE(SUBSTITUTE(UPPER(LEFT($B$6,3)),"A",""),"Α",""),"K",""),"Κ",""),"Μ","")), $B$6) -> 14 | D13: =IF(E13="-","-",IF(E13>0,D12+1,0)) -> 2 | E13: =IF(F13>0,VALUE(MID($D$7,F12+1,F13-F12-1)),"-") -> 2 | F13: =IF(AND(F12>0,LEN($D$7)>F12+1),FIND(" ",$D$7,F12+1),0) -> 4 | G13: 2 | H13: 2
A14: ίδιος Σύλλογος: | D14: =IF(E14="-","-",IF(E14>0,D13+1,0)) -> 3 | E14: 3 | F14: 6 | G14: 3 | H14: 3
D15: =IF(E15="-","-",IF(E15>0,D14+1,0)) -> 4 | E15: =IF(F15>0,VALUE(MID($D$7,F14+1,F15-F14-1)),"-") -> 4 | F15: 8 | G15: 4 | H15: 4
D16: 5 | E16: =IF(F16>0,VALUE(MID($D$7,F15+1,F16-F15-1)),"-") -> 14 | F16: 11 | G16: 5 | H16: 14 | T16: msg
A17: Χωρίς νίκη βαθμοί γύρου: | B17: 17_32 | D17: 6 | E17: =IF(F17>0,VALUE(MID($D$7,F16+1,F17-F16-1)),"-") -> 16 | F17: 14 | G17: 6 | H17: 16 | T17: =IF(NOW()>B22,"Invalid program!","") -> 
A18: Πλήθος bye (0-7): | B18: =COUNTBLANK(ALMD!D3:D18) -> 0 | D18: 7 | E18: 15 | F18: 17 | G18: 7 | H18: 15
A19: Θέσεις seeded: | B19: 4 | D19: 8 | E19: 11 | F19: 20 | G19: 8 | H19: 11
D20: 9 | E20: 13 | F20: 23 | G20: 9 | H20: 13
A21: Όνομα Excel αρχείου: | B21: =LOWER(IF(LEFT($B$5,3)="Παν","Παν "&YEAR($B$8)&" "&LEFT($B$6,3)&" s md",IF($B$5="Σχολικό",$B$5&" "&YEAR($B$8)&" "&LEFT($B$6,3)&" S MD",(IF(SUBSTITUTE($B$6,"1","")<>$B$6, $B$5&" "&MID($B$10,6,2)&"η "&VLOOKUP($B$4,tables!$X:$Z,3,FALSE)&" "&LEFT($B$6,3)&" S MD", $B$5&" "&MID($B$10,6,2)&"η "&VLOOKUP($B$4,tables!$X:$Z,3,FALSE)&" "&$B$13&" S MD"))))) -> ε3 26η στ κ14 s md | D21: 10 | E21: 7 | F21: 25 | G21: 10 | H21: 7
A22: exp. | B22: 2018-08-31 | D22: 11 | E22: 9 | F22: 27 | G22: 11 | H22: 9
D23: 12 | E23: 6 | F23: 29 | G23: 12 | H23: 6
A24: Κλήρωση MD: | B24: 2018-06-30T09:33:00 | D24: 13 | E24: 10 | F24: 32 | G24: 13 | H24: 10
D25: 14 | E25: 5 | F25: 34 | G25: 14 | H25: 5
D26: 15 | E26: 12 | F26: 37 | G26: 15 | H26: 12
D27: 16 | E27: 8 | F27: 39 | G27: 16 | H27: 8
A28: =RandNumbers(3,4) -> 4 3
A29: =LEFT(D9,$B$18*2)&LEFT(D8,$B$19*2)& RandNumbers($B$19+1,16-$B$18)&" " -> 1 2 3 4 5 10 16 15 11 6 12 13 7 8 9 14

Sheet ALMD
A1: =Setup!$B$3&", "&Setup!$B$7&", "&Setup!$B$4&", "&DAY(Setup!$B$8)&"/"&MONTH(Setup!$B$8)&"-"&DAY(Setup!$B$9)&"/"&MONTH(Setup!$B$9)&"/"&YEAR(Setup!$B$9) -> ΣΤ' ΕΝΩΣΗ, Ε3 26η, ΣΑ ΤΡΙΠΟΛΗΣ, 30/6-1/7/2018 | H1: =Setup!$B$6&" /md" -> Κ14 /md | I1: =Setup!$B$6&" /md" -> Κ14 /md
A2: α/α | B2: από | C2: Α.Μ. | D2: Ονοματεπώνυμο | E2: Γέννηση | F2: Σύλλογος | G2: βαθμοί | H2: Τηλέφωνο | I2: Υπογραφή | J2: SortPts | K2: Rnd
A3: 1 | C3: 26198 | D3: ΛΑΜΠΡΟΠΟΥΛΟΥ ΒΑΣΙΛΙΚΗ | E3: 2004-01-05 | F3: ΑΕΚ ΤΡΙΠΟΛΗΣ (ΣΤ) | G3: 124 | J3: =IF(D3>" ",G3+K3,0) -> 124.0007355 | K3: 0.0007354629137 | L3: =TRIM(IF(LEN(D3)<2,"",LEFT(D3,MIN(20,FIND(" ",D3)-1))&MID(D3,FIND(" ",D3),2)&" ("&LEFT(F3,12)&")")) -> ΛΑΜΠΡΟΠΟΥΛΟΥ Β (ΑΕΚ ΤΡΙΠΟΛΗΣ)
A4: 2 | C4: 37585 | D4: ΣΤΡΑΤΗ ΓΕΩΡΓΙΑ-ΑΝΔΡΙΑΝΑ | E4: 2005-08-18 | F4: ΑΟΑ ΠΑΤΡΩΝ (ΣΤ) | G4: 98 | J4: 98.00204155 | K4: 0.00204154775 | L4: =TRIM(IF(LEN(D4)<2,"",LEFT(D4,MIN(20,FIND(" ",D4)-1))&MID(D4,FIND(" ",D4),2)&" ("&LEFT(F4,12)&")")) -> ΣΤΡΑΤΗ Γ (ΑΟΑ ΠΑΤΡΩΝ ()
A5: 3 | C5: 37337 | D5: ΔΕΛΗ ΜΑΡΙΑ | E5: 2004-08-26 | F5: ΡΗΓΑΣ ΑΟΑ ΑΡΓΟΛΙΔΑΣ (ΣΤ) | G5: 65.5 | J5: 65.50440308 | K5: 0.004403080545 | L5: ΔΕΛΗ Μ (ΡΗΓΑΣ ΑΟΑ ΑΡ)
A6: 4 | C6: 35985 | D6: ΖΟΥΓΡΑ ΙΣΜΗΝΗ | E6: 2005-03-04 | F6: ΖΑΚΥΝΘΙΝΟΣ ΑΟΑ (ΣΤ) | G6: 56.1 | J6: 56.10079117 | K6: 0.0007911722224 | L6: ΖΟΥΓΡΑ Ι (ΖΑΚΥΝΘΙΝΟΣ Α)
A7: 5 | C7: 90169 | D7: ΑΣΕΝΟΒΑ ΓΚΕΡΓΚΑΝΑ | F7: ΟΑ ΚΑΛΑΜΑΤΑΣ(ΣΤ) | G7: 53.6 | J7: 53.6028718 | K7: 0.002871802519 | L7: ΑΣΕΝΟΒΑ Γ (ΟΑ ΚΑΛΑΜΑΤΑΣ)
A8: 6 | C8: 33668 | D8: ΚΑΛΤΕΖΙΩΤΗ ΕΛΕΝΗ-ΜΑΡΙΑ | E8: 2004-05-17 | F8: ΣΑ ΤΡΙΠΟΛΗΣ (ΣΤ) | G8: 45.5 | J8: 45.50057167 | K8: 0.0005716711888 | L8: ΚΑΛΤΕΖΙΩΤΗ Ε (ΣΑ ΤΡΙΠΟΛΗΣ )
A9: 7 | C9: 33355 | D9: ΒΟΥΔΟΥΡΗ ΜΑΡΙΑ-ΕΛΕΝΗ | E9: 2004-12-03 | F9: ΑΕΚ ΤΡΙΠΟΛΗΣ (ΣΤ) | G9: 42.6 | J9: 42.60067395 | K9: 0.0006739502395 | L9: ΒΟΥΔΟΥΡΗ Μ (ΑΕΚ ΤΡΙΠΟΛΗΣ)
A10: 8 | C10: 39327 | D10: ΜΠΟΥΖΟΥ ΕΛΕΝΗ-ΙΩΑΝΝΑ | E10: 2005-03-08 | F10: ΣΑ ΤΡΙΠΟΛΗΣ (ΣΤ) | G10: 28.5 | J10: 28.50096042 | K10: 0.0009604207829 | L10: ΜΠΟΥΖΟΥ Ε (ΣΑ ΤΡΙΠΟΛΗΣ )
A11: 9 | C11: 35595 | D11: ΤΟΥΛΑ ΜΑΡΙΝΑ | E11: 2006-02-07 | F11: ΑΟΑ ΠΑΤΡΩΝ (ΣΤ) | G11: 21.5 | J11: 21.50115193 | K11: 0.001151932452 | L11: ΤΟΥΛΑ Μ (ΑΟΑ ΠΑΤΡΩΝ ()
A12: 10 | C12: 35515 | D12: ΚΟΤΙΝΗ ΜΑΡΙΑ | E12: 2006-01-26 | F12: ΑΟΑ ΠΑΤΡΩΝ (ΣΤ) | G12: 20.5 | J12: 20.50150498 | K12: 0.00150498338 | L12: ΚΟΤΙΝΗ Μ (ΑΟΑ ΠΑΤΡΩΝ ()
A13: 11 | C13: 38401 | D13: ΚΛΑΟΥΔΑΤΟΥ ΔΑΝΑΗ | E13: 2007-03-17 | F13: ΧΡΥΣΟΣ ΟΑ (ΣΤ) | G13: 20.4 | J13: 20.40344868 | K13: 0.003448675776 | L13: ΚΛΑΟΥΔΑΤΟΥ Δ (ΧΡΥΣΟΣ ΟΑ (Σ)
A14: 12 | C14: 38845 | D14: ΤΣΙΛΙΜΠΗ ΔΗΜΗΤΡΑ-ΑΙΚΑΤΕΡ | E14: 2005-10-14 | F14: ΡΗΓΑΣ ΑΟΑ ΑΡΓΟΛΙΔΑΣ (ΣΤ) | G14: 18.9 | J14: 18.90215118 | K14: 0.002151184124 | L14: ΤΣΙΛΙΜΠΗ Δ (ΡΗΓΑΣ ΑΟΑ ΑΡ)
A15: 13 | C15: 40340 | D15: ΝΙΚΟΛΑΚΟΠΟΥΛΟΥ ΑΝΝΑ-ΜΑΡΙ | E15: 2006-03-05 | F15: ΧΡΥΣΟΣ ΟΑ (ΣΤ) | G15: 18.3 | J15: 18.30102948 | K15: 0.001029475831 | L15: ΝΙΚΟΛΑΚΟΠΟΥΛΟΥ Α (ΧΡΥΣΟΣ ΟΑ (Σ)
A16: 14 | C16: 34396 | D16: ΜΗΤΡΟΠΟΥΛΟΥ ΑΘΑΝΑΣΙΑ | E16: 2005-01-21 | F16: ΣΑ ΤΡΙΠΟΛΗΣ (ΣΤ) | G16: 18 | J16: 18.0034009 | K16: 0.00340089833 | L16: ΜΗΤΡΟΠΟΥΛΟΥ Α (ΣΑ ΤΡΙΠΟΛΗΣ )
A17: 15 | C17: 38912 | D17: ΖΩΓΡΑΦΟΥ ΑΡΙΑΔΝΗ | E17: 2006-04-27 | F17: ΟΑ ΚΟΡΙΝΘΟΥ (ΣΤ) | G17: 13.9 | J17: 13.90026881 | K17: 0.000268811084 | L17: ΖΩΓΡΑΦΟΥ Α (ΟΑ ΚΟΡΙΝΘΟΥ )
A18: 16 | C18: 40747 | D18: ΤΟΥΜΠΑΝΙΑΡΗ ΜΑΡΙΑ | E18: 2005-06-13 | F18: ΟΑ ΚΟΡΙΝΘΟΥ (ΣΤ) | G18: 7.5 | J18: 7.500204316 | K18: 0.000204315648 | L18: ΤΟΥΜΠΑΝΙΑΡΗ Μ (ΟΑ ΚΟΡΙΝΘΟΥ )
H20: επιδιαιτητής:
H21: =Setup!$B$11 -> ΚΑΛΟΓΡΗ Σ
B22: Walk-over
B23: α/α | C23: Α.Μ. | D23: Ονοματεπώνυμο | E23: med
B24: 1 | C24: 38914 | D24: ΤΖΕΚΟΥ ΑΝΑΣΤΑΣΙΑ | E24: Όχι
B25: 2
B26: 3
B27: 4
B28: 5

Sheet MD
A1: =Setup!$B$3&", "&Setup!$B$7&", "&Setup!$B$4&", "&DAY(Setup!$B$8)&"/"&MONTH(Setup!$B$8)&"-"&DAY(Setup!$B$9)&"/"&MONTH(Setup!$B$9)&"/"&YEAR(Setup!$B$9) -> ΣΤ' ΕΝΩΣΗ, Ε3 26η, ΣΑ ΤΡΙΠΟΛΗΣ, 30/6-1/7/2018 | U1: =Setup!B6 -> Κ14 | V1: ="bye: "&COUNTIF(J5:J20,"bye") -> bye: 0 | W1: SYNC & save
B2: =Setup!$B$18 -> 0 | I2: ="αλλαγές: "&TEXT(HOUR(NOW()),"00")&":"&TEXT(MINUTE(NOW()),"00")&", "&DAY(TODAY())&"/"&MONTH(TODAY())&"/"&YEAR(TODAY()) -> αλλαγές: 03:42, 2/7/2018
J3: 16 | O3: 8 | R3: 4 | U3: 2 | AA3: same club
A4: α/α | C4: ByeOrder | D4: ByeSum | E4: ByeCnt | F4: από | G4: seed | H4: Pts | I4: Α.Μ. | J4: Ονοματεπώνυμο | K4: επώνυμο | L4: Σύλλογος | AA4: =COUNTIF(AA5:AA20,2) -> 2
A5: 1 | B5: 1 | E5: 0 | F5: =IF(NOT($G5="-"),VLOOKUP($G5,ALMD!$A$3:$H$18,2,FALSE),"") -> 0 | G5: =VLOOKUP($B5,Setup!$G$12:$H$27,2,FALSE) -> 1 | H5: =IF($I5>0,VLOOKUP($G5,ALMD!$A$3:$H$18,7,FALSE),0) -> 124 | I5: =IF(Setup!$B$24="",0,IF($G5>0,VLOOKUP($G5,ALMD!$A$3:$H$18,3,FALSE),0)) -> 26198 | J5: =IF($I5>0,VLOOKUP($I5,ALMD!$C$3:$H$18,2,FALSE),"bye") -> ΛΑΜΠΡΟΠΟΥΛΟΥ ΒΑΣΙΛΙΚΗ | K5: =IF(NOT(I5>0),"",LEFT(J5,MIN(15,FIND(" ",J5)-1))&MID(J5,FIND(" ",J5),2)) -> ΛΑΜΠΡΟΠΟΥΛΟΥ Β | L5: =IF($I5>0,VLOOKUP($I5,ALMD!$C$3:$H$18,4,FALSE),"") -> ΑΕΚ ΤΡΙΠΟΛΗΣ (ΣΤ) | M5: 1 | N5: =IF(OR(M5=1,M5=2),IF(M5=1,I5,I6),"") -> 26198 | O5: =IF(OR(M5=1,M5=2),IF(M5=1,K5,K6),"") -> ΛΑΜΠΡΟΠΟΥΛΟΥ Β | AA5: =COUNTIF(L5:L6,L5) -> 1
A6: 2 | B6: =1-D6+4 -> 5 | C6: 1 | D6: =E6 -> 0 | E6: =IF($B$2>=C6,1,0) -> 0 | F6: =IF(NOT($G6="-"),VLOOKUP($G6,ALMD!$A$3:$H$18,2,FALSE),"") -> 0 | G6: =IF($B$2>=C6,"-",VLOOKUP($B6,Setup!$G$12:$H$27,2,FALSE)) -> 14 | H6: =IF($I6>0,VLOOKUP($G6,ALMD!$A$3:$H$18,7,FALSE),0) -> 18 | I6: =IF(Setup!$B$24="",0,IF(NOT($G6="-"),VLOOKUP($G6,ALMD!$A$3:$H$18,3,FALSE),0)) -> 34396 | J6: =IF($I6>0,VLOOKUP($I6,ALMD!$C$3:$H$18,2,FALSE),"bye") -> ΜΗΤΡΟΠΟΥΛΟΥ ΑΘΑΝΑΣΙΑ | K6: =IF(NOT(I6>0),"",LEFT(J6,MIN(15,FIND(" ",J6)-1))&MID(J6,FIND(" ",J6),2)) -> ΜΗΤΡΟΠΟΥΛΟΥ Α | L6: =IF($I6>0,VLOOKUP($I6,ALMD!$C$3:$H$18,4,FALSE),"") -> ΣΑ ΤΡΙΠΟΛΗΣ (ΣΤ) | O6: 40 40 | P6: 1 | Q6: =IF(OR(P6=1,P6=2),IF(P6=1,N5,N7),"") -> 26198 | R6: =IF(OR(P6=1,P6=2),IF(OR(AND(O6="",I5>0,I6>0),AND(O8="",I7>0,I8>0)),"* αποτέλεσμα! *",IF(P6=1,O5,O7)),"") -> ΛΑΜΠΡΟΠΟΥΛΟΥ Β | AA6: =COUNTIF(L5:L6,L6) -> 1
A7: 3 | B7: =2-D7+4 -> 6 | D7: =D6+E7 -> 0 | E7: 0 | F7: =IF(NOT($G7="-"),VLOOKUP($G7,ALMD!$A$3:$H$18,2,FALSE),"") -> 0 | G7: =VLOOKUP($B7,Setup!$G$12:$H$27,2,FALSE) -> 16 | H7: =IF($I7>0,VLOOKUP($G7,ALMD!$A$3:$H$18,7,FALSE),0) -> 7.5 | I7: =IF(Setup!$B$24="",0,IF($G7>0,VLOOKUP($G7,ALMD!$A$3:$H$18,3,FALSE),0)) -> 40747 | J7: =IF($I7>0,VLOOKUP($I7,ALMD!$C$3:$H$18,2,FALSE),"bye") -> ΤΟΥΜΠΑΝΙΑΡΗ ΜΑΡΙΑ | K7: ΤΟΥΜΠΑΝΙΑΡΗ Μ | L7: =IF($I7>0,VLOOKUP($I7,ALMD!$C$3:$H$18,4,FALSE),"") -> ΟΑ ΚΟΡΙΝΘΟΥ (ΣΤ) | M7: 2 | N7: =IF(OR(M7=1,M7=2),IF(M7=1,I7,I8),"") -> 38912 | O7: =IF(OR(M7=1,M7=2),IF(M7=1,K7,K8),"") -> ΖΩΓΡΑΦΟΥ Α | R7: 41 41 | AA7: =COUNTIF(L7:L8,L7) -> 2
A8: 4 | B8: =3-D8+4 -> 7 | C8: 7 | D8: 0 | E8: =IF($B$2>=C8,1,0) -> 0 | F8: =IF(NOT($G8="-"),VLOOKUP($G8,ALMD!$A$3:$H$18,2,FALSE),"") -> 0 | G8: =IF($B$2>=C8,"-",VLOOKUP($B8,Setup!$G$12:$H$27,2,FALSE)) -> 15 | H8: =IF($I8>0,VLOOKUP($G8,ALMD!$A$3:$H$18,7,FALSE),0) -> 13.9 | I8: =IF(Setup!$B$24="",0,IF(NOT($G8="-"),VLOOKUP($G8,ALMD!$A$3:$H$18,3,FALSE),0)) -> 38912 | J8: =IF($I8>0,VLOOKUP($I8,ALMD!$C$3:$H$18,2,FALSE),"bye") -> ΖΩΓΡΑΦΟΥ ΑΡΙΑΔΝΗ | K8: ΖΩΓΡΑΦΟΥ Α | L8: =IF($I8>0,VLOOKUP($I8,ALMD!$C$3:$H$18,4,FALSE),"") -> ΟΑ ΚΟΡΙΝΘΟΥ (ΣΤ) | O8: 53 40 | S8: 1 | T8: =IF(OR(S8=1,S8=2),IF(S8=1,Q6,Q10),"") -> 26198 | U8: =IF(OR(S8=1,S8=2),IF(OR(AND(R7="",N5>0,N7>0),AND(R11="",N9>0,N11>0)),"* αποτέλεσμα! *",IF(S8=1,R6,R10)),"") -> ΛΑΜΠΡΟΠΟΥΛΟΥ Β | AA8: =COUNTIF(L7:L8,L8) -> 2
A9: 5 | B9: =VALUE(Setup!E2) -> 3 | D9: 0 | E9: 0 | F9: =IF(NOT($G9="-"),VLOOKUP($G9,ALMD!$A$3:$H$18,2,FALSE),"") -> 0 | G9: =VLOOKUP($B9,Setup!$G$12:$H$27,2,FALSE) -> 3 | H9: =IF($I9>0,VLOOKUP($G9,ALMD!$A$3:$H$18,7,FALSE),0) -> 65.5 | I9: =IF(Setup!$B$24="",0,IF($G9>0,VLOOKUP($G9,ALMD!$A$3:$H$18,3,FALSE),0)) -> 37337 | J9: =IF($I9>0,VLOOKUP($I9,ALMD!$C$3:$H$18,2,FALSE),"bye") -> ΔΕΛΗ ΜΑΡΙΑ | K9: ΔΕΛΗ Μ | L9: =IF($I9>0,VLOOKUP($I9,ALMD!$C$3:$H$18,4,FALSE),"") -> ΡΗΓΑΣ ΑΟΑ ΑΡΓΟΛΙΔΑΣ (ΣΤ) | M9: 1 | N9: =IF(OR(M9=1,M9=2),IF(M9=1,I9,I10),"") -> 37337 | O9: =IF(OR(M9=1,M9=2),IF(M9=1,K9,K10),"") -> ΔΕΛΗ Μ | U9: 62 57 63 | AA9: =COUNTIF(L9:L10,L9) -> 1
A10: 6 | B10: =4-D10+4 -> 8 | C10: =IF(Setup!E2=3,3,4) -> 3 | D10: 0 | E10: =IF($B$2>=C10,1,0) -> 0 | F10: =IF(NOT($G10="-"),VLOOKUP($G10,ALMD!$A$3:$H$18,2,FALSE),"") -> 0 | G10: =IF($B$2>=C10,"-",VLOOKUP($B10,Setup!$G$12:$H$27,2,FALSE)) -> 11 | H10: =IF($I10>0,VLOOKUP($G10,ALMD!$A$3:$H$18,7,FALSE),0) -> 20.4 | I10: =IF(Setup!$B$24="",0,IF(NOT($G10="-"),VLOOKUP($G10,ALMD!$A$3:$H$18,3,FALSE),0)) -> 38401 | J10: =IF($I10>0,VLOOKUP($I10,ALMD!$C$3:$H$18,2,FALSE),"bye") -> ΚΛΑΟΥΔΑΤΟΥ ΔΑΝΑΗ | K10: ΚΛΑΟΥΔΑΤΟΥ Δ | L10: =IF($I10>0,VLOOKUP($I10,ALMD!$C$3:$H$18,4,FALSE),"") -> ΧΡΥΣΟΣ ΟΑ (ΣΤ) | O10: 40 41 | P10: 1 | Q10: =IF(OR(P10=1,P10=2),IF(P10=1,N9,N11),"") -> 37337 | R10: =IF(OR(P10=1,P10=2),IF(OR(AND(O10="",I9>0,I10>0),AND(O12="",I11>0,I12>0)),"* αποτέλεσμα! *",IF(P10=1,O9,O11)),"") -> ΔΕΛΗ Μ | AA10: =COUNTIF(L9:L10,L10) -> 1
A11: 7 | B11: =5-D11+4 -> 9 | C11: 5 | D11: 0 | E11: =IF($B$2>=C11,1,0) -> 0 | F11: =IF(NOT($G11="-"),VLOOKUP($G11,ALMD!$A$3:$H$18,2,FALSE),"") -> 0 | G11: =IF($B$2>=C11,"-",VLOOKUP($B11,Setup!$G$12:$H$27,2,FALSE)) -> 13 | H11: =IF($I11>0,VLOOKUP($G11,ALMD!$A$3:$H$18,7,FALSE),0) -> 18.3 | I11: =IF(Setup!$B$24="",0,IF(NOT($G11="-"),VLOOKUP($G11,ALMD!$A$3:$H$18,3,FALSE),0)) -> 40340 | J11: =IF($I11>0,VLOOKUP($I11,ALMD!$C$3:$H$18,2,FALSE),"bye") -> ΝΙΚΟΛΑΚΟΠΟΥΛΟΥ ΑΝΝΑ-ΜΑΡΙ | K11: ΝΙΚΟΛΑΚΟΠΟΥΛΟΥ Α | L11: =IF($I11>0,VLOOKUP($I11,ALMD!$C$3:$H$18,4,FALSE),"") -> ΧΡΥΣΟΣ ΟΑ (ΣΤ) | M11: 2 | N11: =IF(OR(M11=1,M11=2),IF(M11=1,I11,I12),"") -> 33355 | O11: =IF(OR(M11=1,M11=2),IF(M11=1,K11,K12),"") -> ΒΟΥΔΟΥΡΗ Μ | R11: 41 41 | AA11: =COUNTIF(L11:L12,L11) -> 1
A12: 8 | B12: =6-D12+4 -> 10 | D12: 0 | E12: 0 | F12: =IF(NOT($G12="-"),VLOOKUP($G12,ALMD!$A$3:$H$18,2,FALSE),"") -> 0 | G12: =VLOOKUP($B12,Setup!$G$12:$H$27,2,FALSE) -> 7 | H12: =IF($I12>0,VLOOKUP($G12,ALMD!$A$3:$H$18,7,FALSE),0) -> 42.6 | I12: =IF(Setup!$B$24="",0,IF($G12>0,VLOOKUP($G12,ALMD!$A$3:$H$18,3,FALSE),0)) -> 33355 | J12: =IF($I12>0,VLOOKUP($I12,ALMD!$C$3:$H$18,2,FALSE),"bye") -> ΒΟΥΔΟΥΡΗ ΜΑΡΙΑ-ΕΛΕΝΗ | K12: ΒΟΥΔΟΥΡΗ Μ | L12: =IF($I12>0,VLOOKUP($I12,ALMD!$C$3:$H$18,4,FALSE),"") -> ΑΕΚ ΤΡΙΠΟΛΗΣ (ΣΤ) | O12: 40 40 | S12: 2 | T12: =IF(OR(S12=1,S12=2),IF(S12=1,T8,T16),"") -> 37585 | U12: =IF(OR(S12=1,S12=2),IF(S12=1,U8,U16),"") -> ΣΤΡΑΤΗ Γ | AA12: =COUNTIF(L11:L12,L12) -> 1
A13: 9 | B13: =VALUE(Setup!E3) -> 4 | D13: 0 | E13: 0 | F13: =IF(NOT($G13="-"),VLOOKUP($G13,ALMD!$A$3:$H$18,2,FALSE),"") -> 0 | G13: =VLOOKUP($B13,Setup!$G$12:$H$27,2,FALSE) -> 4 | H13: =IF($I13>0,VLOOKUP($G13,ALMD!$A$3:$H$18,7,FALSE),0) -> 56.1 | I13: =IF(Setup!$B$24="",0,IF($G13>0,VLOOKUP($G13,ALMD!$A$3:$H$18,3,FALSE),0)) -> 35985 | J13: =IF($I13>0,VLOOKUP($I13,ALMD!$C$3:$H$18,2,FALSE),"bye") -> ΖΟΥΓΡΑ ΙΣΜΗΝΗ | K13: ΖΟΥΓΡΑ Ι | L13: =IF($I13>0,VLOOKUP($I13,ALMD!$C$3:$H$18,4,FALSE),"") -> ΖΑΚΥΝΘΙΝΟΣ ΑΟΑ (ΣΤ) | M13: 1 | N13: =IF(OR(M13=1,M13=2),IF(M13=1,I13,I14),"") -> 35985 | O13: =IF(OR(M13=1,M13=2),IF(M13=1,K13,K14),"") -> ΖΟΥΓΡΑ Ι | U13: 67(3) 60 ret. | AA13: =COUNTIF(L13:L14,L13) -> 1
A14: 10 | B14: =7-D14+4 -> 11 | C14: =IF(Setup!E2=3,4,3) -> 4 | D14: 0 | E14: =IF($B$2>=C14,1,0) -> 0 | F14: =IF(NOT($G14="-"),VLOOKUP($G14,ALMD!$A$3:$H$18,2,FALSE),"") -> 0 | G14: =IF($B$2>=C14,"-",VLOOKUP($B14,Setup!$G$12:$H$27,2,FALSE)) -> 9 | H14: =IF(I14>0,VLOOKUP($G14,ALMD!$A$3:$H$18,7,FALSE),0) -> 21.5 | I14: =IF(Setup!$B$24="",0,IF(NOT($G14="-"),VLOOKUP($G14,ALMD!$A$3:$H$18,3,FALSE),0)) -> 35595 | J14: =IF($I14>0,VLOOKUP($I14,ALMD!$C$3:$H$18,2,FALSE),"bye") -> ΤΟΥΛΑ ΜΑΡΙΝΑ | K14: ΤΟΥΛΑ Μ | L14: =IF($I14>0,VLOOKUP($I14,ALMD!$C$3:$H$18,4,FALSE),"") -> ΑΟΑ ΠΑΤΡΩΝ (ΣΤ) | O14: 41 42 | P14: 1 | Q14: =IF(OR(P14=1,P14=2),IF(P14=1,N13,N15),"") -> 35985 | R14: =IF(OR(P14=1,P14=2),IF(OR(AND(O14="",I13>0,I14>0),AND(O16="",I15>0,I16>0)),"* αποτέλεσμα! *",IF(P14=1,O13,O15)),"") -> ΖΟΥΓΡΑ Ι | AA14: =COUNTIF(L13:L14,L14) -> 1
A15: 11 | B15: =8-D15+4 -> 12 | D15: 0 | E15: 0 | F15: =IF(NOT($G15="-"),VLOOKUP($G15,ALMD!$A$3:$H$18,2,FALSE),"") -> 0 | G15: =VLOOKUP($B15,Setup!$G$12:$H$27,2,FALSE) -> 6 | H15: =IF($I15>0,VLOOKUP($G15,ALMD!$A$3:$H$18,7,FALSE),0) -> 45.5 | I15: =IF(Setup!$B$24="",0,IF($G15>0,VLOOKUP($G15,ALMD!$A$3:$H$18,3,FALSE),0)) -> 33668 | J15: =IF($I15>0,VLOOKUP($I15,ALMD!$C$3:$H$18,2,FALSE),"bye") -> ΚΑΛΤΕΖΙΩΤΗ ΕΛΕΝΗ-ΜΑΡΙΑ | K15: ΚΑΛΤΕΖΙΩΤΗ Ε | L15: =IF($I15>0,VLOOKUP($I15,ALMD!$C$3:$H$18,4,FALSE),"") -> ΣΑ ΤΡΙΠΟΛΗΣ (ΣΤ) | M15: 2 | N15: =IF(OR(M15=1,M15=2),IF(M15=1,I15,I16),"") -> 35515 | O15: =IF(OR(M15=1,M15=2),IF(M15=1,K15,K16),"") -> ΚΟΤΙΝΗ Μ | R15: 54(3) 40 | AA15: =COUNTIF(L15:L16,L15) -> 1
A16: 12 | B16: =9-D16+4 -> 13 | C16: 6 | D16: 0 | E16: =IF($B$2>=C16,1,0) -> 0 | F16: =IF(NOT($G16="-"),VLOOKUP($G16,ALMD!$A$3:$H$18,2,FALSE),"") -> 0 | G16: =IF($B$2>=C16,"-",VLOOKUP($B16,Setup!$G$12:$H$27,2,FALSE)) -> 10 | H16: =IF($I16>0,VLOOKUP($G16,ALMD!$A$3:$H$18,7,FALSE),0) -> 20.5 | I16: =IF(Setup!$B$24="",0,IF(NOT($G16="-"),VLOOKUP($G16,ALMD!$A$3:$H$18,3,FALSE),0)) -> 35515 | J16: =IF($I16>0,VLOOKUP($I16,ALMD!$C$3:$H$18,2,FALSE),"bye") -> ΚΟΤΙΝΗ ΜΑΡΙΑ | K16: ΚΟΤΙΝΗ Μ | L16: =IF($I16>0,VLOOKUP($I16,ALMD!$C$3:$H$18,4,FALSE),"") -> ΑΟΑ ΠΑΤΡΩΝ (ΣΤ) | O16: 42 41 | S16: 2 | T16: =IF(OR(S16=1,S16=2),IF(S16=1,Q14,Q18),"") -> 37585 | U16: =IF(OR(S16=1,S16=2),IF(OR(AND(R15="",N13>0,N15>0),AND(R19="",N17>0,N19>0)),"* αποτέλεσμα! *",IF(S16=1,R14,R18)),"") -> ΣΤΡΑΤΗ Γ | AA16: =COUNTIF(L15:L16,L16) -> 1
A17: 13 | B17: =10-D17+4 -> 14 | D17: 0 | E17: 0 | F17: =IF(NOT($G17="-"),VLOOKUP($G17,ALMD!$A$3:$H$18,2,FALSE),"") -> 0 | G17: =VLOOKUP($B17,Setup!$G$12:$H$27,2,FALSE) -> 5 | H17: =IF($I17>0,VLOOKUP($G17,ALMD!$A$3:$H$18,7,FALSE),0) -> 53.6 | I17: =IF(Setup!$B$24="",0,IF($G17>0,VLOOKUP($G17,ALMD!$A$3:$H$18,3,FALSE),0)) -> 90169 | J17: =IF($I17>0,VLOOKUP($I17,ALMD!$C$3:$H$18,2,FALSE),"bye") -> ΑΣΕΝΟΒΑ ΓΚΕΡΓΚΑΝΑ | K17: ΑΣΕΝΟΒΑ Γ | L17: =IF($I17>0,VLOOKUP($I17,ALMD!$C$3:$H$18,4,FALSE),"") -> ΟΑ ΚΑΛΑΜΑΤΑΣ(ΣΤ) | M17: 1 | N17: =IF(OR(M17=1,M17=2),IF(M17=1,I17,I18),"") -> 90169 | O17: =IF(OR(M17=1,M17=2),IF(M17=1,K17,K18),"") -> ΑΣΕΝΟΒΑ Γ | U17: 57 62 62 | AA17: =COUNTIF(L17:L18,L17) -> 1
A18: 14 | B18: =11-D18+4 -> 15 | C18: 8 | D18: 0 | E18: =IF($B$2>=C18,1,0) -> 0 | F18: =IF(NOT($G18="-"),VLOOKUP($G18,ALMD!$A$3:$H$18,2,FALSE),"") -> 0 | G18: =IF($B$2>=C18,"-",VLOOKUP($B18,Setup!$G$12:$H$27,2,FALSE)) -> 12 | H18: =IF($I18>0,VLOOKUP($G18,ALMD!$A$3:$H$18,7,FALSE),0) -> 18.9 | I18: =IF(Setup!$B$24="",0,IF(NOT($G18="-"),VLOOKUP($G18,ALMD!$A$3:$H$18,3,FALSE),0)) -> 38845 | J18: =IF($I18>0,VLOOKUP($I18,ALMD!$C$3:$H$18,2,FALSE),"bye") -> ΤΣΙΛΙΜΠΗ ΔΗΜΗΤΡΑ-ΑΙΚΑΤΕΡ | K18: ΤΣΙΛΙΜΠΗ Δ | L18: =IF($I18>0,VLOOKUP($I18,ALMD!$C$3:$H$18,4,FALSE),"") -> ΡΗΓΑΣ ΑΟΑ ΑΡΓΟΛΙΔΑΣ (ΣΤ) | O18: 40 42 | P18: 2 | Q18: =IF(OR(P18=1,P18=2),IF(P18=1,N17,N19),"") -> 37585 | R18: =IF(OR(P18=1,P18=2),IF(OR(AND(O18="",I17>0,I18>0),AND(O20="",I19>0,I20>0)),"* αποτέλεσμα! *",IF(P18=1,O17,O19)),"") -> ΣΤΡΑΤΗ Γ | AA18: =COUNTIF(L17:L18,L18) -> 1
A19: 15 | B19: =12-D19+4 -> 16 | C19: 2 | D19: 0 | E19: =IF($B$2>=C19,1,0) -> 0 | F19: =IF(NOT($G19="-"),VLOOKUP($G19,ALMD!$A$3:$H$18,2,FALSE),"") -> 0 | G19: =IF($B$2>=C19,"-",VLOOKUP($B19,Setup!$G$12:$H$27,2,FALSE)) -> 8 | H19: =IF($I19>0,VLOOKUP($G19,ALMD!$A$3:$H$18,7,FALSE),0) -> 28.5 | I19: =IF(Setup!$B$24="",0,IF(NOT($G19="-"),VLOOKUP($G19,ALMD!$A$3:$H$18,3,FALSE),0)) -> 39327 | J19: =IF($I19>0,VLOOKUP($I19,ALMD!$C$3:$H$18,2,FALSE),"bye") -> ΜΠΟΥΖΟΥ ΕΛΕΝΗ-ΙΩΑΝΝΑ | K19: ΜΠΟΥΖΟΥ Ε | L19: =IF($I19>0,VLOOKUP($I19,ALMD!$C$3:$H$18,4,FALSE),"") -> ΣΑ ΤΡΙΠΟΛΗΣ (ΣΤ) | M19: 2 | N19: =IF(OR(M19=1,M19=2),IF(M19=1,I19,I20),"") -> 37585 | O19: =IF(OR(M19=1,M19=2),IF(M19=1,K19,K20),"") -> ΣΤΡΑΤΗ Γ | R19: 41 41 | AA19: =COUNTIF(L19:L20,L19) -> 1
A20: 16 | B20: 2 | D20: 0 | E20: 0 | F20: =IF(NOT($G20="-"),VLOOKUP($G20,ALMD!$A$3:$H$18,2,FALSE),"") -> 0 | G20: =VLOOKUP($B20,Setup!$G$12:$H$27,2,FALSE) -> 2 | H20: =IF($I20>0,VLOOKUP($G20,ALMD!$A$3:$H$18,7,FALSE),0) -> 98 | I20: =IF(Setup!$B$24="",0,IF($G20>0,VLOOKUP($G20,ALMD!$A$3:$H$18,3,FALSE),0)) -> 37585 | J20: =IF($I20>0,VLOOKUP($I20,ALMD!$C$3:$H$18,2,FALSE),"bye") -> ΣΤΡΑΤΗ ΓΕΩΡΓΙΑ-ΑΝΔΡΙΑΝΑ | K20: ΣΤΡΑΤΗ Γ | L20: =IF($I20>0,VLOOKUP($I20,ALMD!$C$3:$H$18,4,FALSE),"") -> ΑΟΑ ΠΑΤΡΩΝ (ΣΤ) | O20: 40 40 | AA20: =COUNTIF(L19:L20,L20) -> 1
J24: seeded players
J25: ="1. " & IF(Setup!B19>0,LEFT(ALMD!D3,FIND(" ",ALMD!D3)+1),"") -> 1. ΛΑΜΠΡΟΠΟΥΛΟΥ Β
J26: ="2. " & IF(Setup!B19>1,LEFT(ALMD!D4,FIND(" ",ALMD!D4)+1),"") -> 2. ΣΤΡΑΤΗ Γ | R26: επιδιαιτητής
J27: ="3. " & IF(Setup!B19>2,LEFT(ALMD!D5,FIND(" ",ALMD!D5)+1),"") -> 3. ΔΕΛΗ Μ | R27: =IF(Setup!$B$11>" ",Setup!$B$11,"ΧΩΡΙΣ ΑΔΕΙΑ ΧΡΗΣΗΣ") -> ΚΑΛΟΓΡΗ Σ
J28: ="4. " & IF(Setup!B19>3,LEFT(ALMD!D6,FIND(" ",ALMD!D6)+1),"") -> 4. ΖΟΥΓΡΑ Ι
J40: BoldPlayers
J41: =IF(Setup!$B$19>0,LEFT(ALMD!D3,MIN(15,FIND(" ",ALMD!D3)-1))&MID(ALMD!D3,FIND(" ",ALMD!D3),2)) -> ΛΑΜΠΡΟΠΟΥΛΟΥ Β
J42: =IF(Setup!$B$19>1,LEFT(ALMD!D4,MIN(15,FIND(" ",ALMD!D4)-1))&MID(ALMD!D4,FIND(" ",ALMD!D4),2)) -> ΣΤΡΑΤΗ Γ
J43: =IF(Setup!$B$19>2,LEFT(ALMD!D5,MIN(15,FIND(" ",ALMD!D5)-1))&MID(ALMD!D5,FIND(" ",ALMD!D5),2)) -> ΔΕΛΗ Μ
J44: =IF(Setup!$B$19>3,LEFT(ALMD!D6,MIN(15,FIND(" ",ALMD!D6)-1))&MID(ALMD!D6,FIND(" ",ALMD!D6),2)) -> ΖΟΥΓΡΑ Ι

Sheet OoP
A1: ΣΤ' ΕΝΩΣΗ, Ε3 26η, ΣΑ ΤΡΙΠΟΛΗΣ, 30/6-1/7 (Κ14)
A2: ΚΑΛΟΓΡΗ Σ
C3: Πρόγραμμα αγώνων
C5: Round 16 | F5: info
A6: ΩΡΑ | B6: Κτγρ. | C6: Αθλητής-Σύλλογος | E6: Αθλητής-Σύλλογος
B7: Κ14 R16 | C7: ΛΑΜΠΡΟΠΟΥΛΟΥ Β (ΑΕΚ ΤΡΙΠΟΛΗΣ) | D7: - | E7: ΜΗΤΡΟΠΟΥΛΟΥ Α (ΣΑ ΤΡΙΠΟΛΗΣ )
B8: Κ14 R16 | C8: ΤΟΥΜΠΑΝΙΑΡΗ Μ (ΟΑ ΚΟΡΙΝΘΟΥ ) | D8: - | E8: ΖΩΓΡΑΦΟΥ Α (ΟΑ ΚΟΡΙΝΘΟΥ )
B9: Κ14 R16 | C9: ΔΕΛΗ Μ (ΡΗΓΑΣ ΑΟΑ ΑΡ) | D9: - | E9: ΚΛΑΟΥΔΑΤΟΥ Δ (ΧΡΥΣΟΣ ΟΑ (Σ)
B10: Κ14 R16 | C10: ΝΙΚΟΛΑΚΟΠΟΥΛΟΥ Α (ΧΡΥΣΟΣ ΟΑ (Σ) | D10: - | E10: ΒΟΥΔΟΥΡΗ Μ (ΑΕΚ ΤΡΙΠΟΛΗΣ)
B11: Κ14 R16 | C11: ΖΟΥΓΡΑ Ι (ΖΑΚΥΝΘΙΝΟΣ Α) | E11: ΤΟΥΛΑ Μ (ΑΟΑ ΠΑΤΡΩΝ ()
B12: Κ14 R16 | C12: ΚΑΛΤΕΖΙΩΤΗ Ε (ΣΑ ΤΡΙΠΟΛΗΣ ) | E12: ΚΟΤΙΝΗ Μ (ΑΟΑ ΠΑΤΡΩΝ ()
B13: Κ14 R16 | C13: ΑΣΕΝΟΒΑ Γ (ΟΑ ΚΑΛΑΜΑΤΑΣ) | E13: ΤΣΙΛΙΜΠΗ Δ (ΡΗΓΑΣ ΑΟΑ ΑΡ)
B14: Κ14 R16 | C14: ΜΠΟΥΖΟΥ Ε (ΣΑ ΤΡΙΠΟΛΗΣ ) | E14: ΣΤΡΑΤΗ Γ (ΑΟΑ ΠΑΤΡΩΝ ()
C16: Round 8 | F16: info
A17: ΩΡΑ | B17: Κτγρ. | C17: Αθλητής-Σύλλογος | E17: Αθλητής-Σύλλογος
B18: Κ14 R8 | C18: ΛΑΜΠΡΟΠΟΥΛΟΥ Β (ΑΕΚ ΤΡΙΠΟΛΗΣ) | D18: - | E18: ΖΩΓΡΑΦΟΥ Α (ΟΑ ΚΟΡΙΝΘΟΥ )
B19: Κ14 R8 | C19: ΔΕΛΗ Μ (ΡΗΓΑΣ ΑΟΑ ΑΡ) | D19: - | E19: ΒΟΥΔΟΥΡΗ Μ (ΑΕΚ ΤΡΙΠΟΛΗΣ)
B20: Κ14 R8 | C20: ΖΟΥΓΡΑ Ι (ΖΑΚΥΝΘΙΝΟΣ Α) | D20: - | E20: ΚΟΤΙΝΗ Μ (ΑΟΑ ΠΑΤΡΩΝ ()
B21: Κ14 R8 | C21: ΑΣΕΝΟΒΑ Γ (ΟΑ ΚΑΛΑΜΑΤΑΣ) | D21: - | E21: ΣΤΡΑΤΗ Γ (ΑΟΑ ΠΑΤΡΩΝ ()
C23: Ημιτελικοί | F23: info
A24: ΩΡΑ | B24: Κτγρ. | C24: Αθλητής-Σύλλογος | E24: Αθλητής-Σύλλογος
B25: Κ14 Ημιτελ | C25: ΛΑΜΠΡΟΠΟΥΛΟΥ Β (ΑΕΚ ΤΡΙΠΟΛΗΣ) | E25: ΔΕΛΗ Μ (ΡΗΓΑΣ ΑΟΑ ΑΡ)
B26: Κ14 Ημιτελ | C26: ΖΟΥΓΡΑ Ι (ΖΑΚΥΝΘΙΝΟΣ Α) | E26: ΣΤΡΑΤΗ Γ (ΑΟΑ ΠΑΤΡΩΝ ()
C28: Τελικός | F28: info
A29: ΩΡΑ | B29: Κτγρ. | C29: Αθλητής-Σύλλογος | E29: Αθλητής-Σύλλογος
B30: Κ14 Τελ. | C30: ΛΑΜΠΡΟΠΟΥΛΟΥ Β (ΑΕΚ ΤΡΙΠΟΛΗΣ) | E30: ΣΤΡΑΤΗ Γ (ΑΟΑ ΠΑΤΡΩΝ ()

Sheet PrepOP (hidden)
A1: =Setup!$B$3&", "&Setup!$B$7&", "&Setup!$B$4&", "&DAY(Setup!$B$8)&"/"&MONTH(Setup!$B$8)&"-"&DAY(Setup!$B$9)&"/"&MONTH(Setup!$B$9)& " (" & Setup!B6 & ")" -> ΣΤ' ΕΝΩΣΗ, Ε3 26η, ΣΑ ΤΡΙΠΟΛΗΣ, 30/6-1/7 (Κ14)
A2: =Setup!$B$11 -> ΚΑΛΟΓΡΗ Σ
C3: Πρόγραμμα αγώνων
C5: Round 16 | F5: info
A6: ΩΡΑ | B6: Κτγρ. | C6: Αθλητής-Σύλλογος | E6: Αθλητής-Σύλλογος
B7: =Setup!$B$6&" R16" -> Κ14 R16 | C7: =IF(LEN(MD!I5)<2,"",VLOOKUP(MD!I5,ALMD!$C:$L,10,FALSE)) -> ΛΑΜΠΡΟΠΟΥΛΟΥ Β (ΑΕΚ ΤΡΙΠΟΛΗΣ) | D7: =IF(OR(C7="",E7="")," ","-") -> - | E7: =IF(LEN(MD!I6)<2, "",VLOOKUP(MD!I6,ALMD!$C:$L,10,FALSE)) -> ΜΗΤΡΟΠΟΥΛΟΥ Α (ΣΑ ΤΡΙΠΟΛΗΣ )
B8: =Setup!$B$6&" R16" -> Κ14 R16 | C8: =IF(LEN(MD!I7)<2,"",VLOOKUP(MD!I7,ALMD!$C:$L,10,FALSE)) -> ΤΟΥΜΠΑΝΙΑΡΗ Μ (ΟΑ ΚΟΡΙΝΘΟΥ ) | D8: =IF(OR(C8="",E8="")," ","-") -> - | E8: =IF(LEN(MD!I8)<2, "",VLOOKUP(MD!I8,ALMD!$C:$L,10,FALSE)) -> ΖΩΓΡΑΦΟΥ Α (ΟΑ ΚΟΡΙΝΘΟΥ )
B9: =Setup!$B$6&" R16" -> Κ14 R16 | C9: =IF(LEN(MD!I9)<2,"",VLOOKUP(MD!I9,ALMD!$C:$L,10,FALSE)) -> ΔΕΛΗ Μ (ΡΗΓΑΣ ΑΟΑ ΑΡ) | D9: - | E9: =IF(LEN(MD!I10)<2,"",VLOOKUP(MD!I10,ALMD!$C:$L,10,FALSE)) -> ΚΛΑΟΥΔΑΤΟΥ Δ (ΧΡΥΣΟΣ ΟΑ (Σ)
B10: =Setup!$B$6&" R16" -> Κ14 R16 | C10: =IF(LEN(MD!I11)<2,"",VLOOKUP(MD!I11,ALMD!$C:$L,10,FALSE)) -> ΝΙΚΟΛΑΚΟΠΟΥΛΟΥ Α (ΧΡΥΣΟΣ ΟΑ (Σ) | D10: - | E10: =IF(LEN(MD!I12)<2,"",VLOOKUP(MD!I12,ALMD!$C:$L,10,FALSE)) -> ΒΟΥΔΟΥΡΗ Μ (ΑΕΚ ΤΡΙΠΟΛΗΣ)
B11: =Setup!$B$6&" R16" -> Κ14 R16 | C11: =IF(LEN(MD!I13)<2,"",VLOOKUP(MD!I13,ALMD!$C:$L,10,FALSE)) -> ΖΟΥΓΡΑ Ι (ΖΑΚΥΝΘΙΝΟΣ Α) | E11: =IF(LEN(MD!I14)<2,"",VLOOKUP(MD!I14,ALMD!$C:$L,10,FALSE)) -> ΤΟΥΛΑ Μ (ΑΟΑ ΠΑΤΡΩΝ ()
B12: =Setup!$B$6&" R16" -> Κ14 R16 | C12: =IF(LEN(MD!I15)<2,"",VLOOKUP(MD!I15,ALMD!$C:$L,10,FALSE)) -> ΚΑΛΤΕΖΙΩΤΗ Ε (ΣΑ ΤΡΙΠΟΛΗΣ ) | E12: =IF(LEN(MD!I16)<2,"",VLOOKUP(MD!I16,ALMD!$C:$L,10,FALSE)) -> ΚΟΤΙΝΗ Μ (ΑΟΑ ΠΑΤΡΩΝ ()
B13: =Setup!$B$6&" R16" -> Κ14 R16 | C13: =IF(LEN(MD!I17)<2,"",VLOOKUP(MD!I17,ALMD!$C:$L,10,FALSE)) -> ΑΣΕΝΟΒΑ Γ (ΟΑ ΚΑΛΑΜΑΤΑΣ) | E13: =IF(LEN(MD!I18)<2,"",VLOOKUP(MD!I18,ALMD!$C:$L,10,FALSE)) -> ΤΣΙΛΙΜΠΗ Δ (ΡΗΓΑΣ ΑΟΑ ΑΡ)
B14: =Setup!$B$6&" R16" -> Κ14 R16 | C14: =IF(LEN(MD!I19)<2,"",VLOOKUP(MD!I19,ALMD!$C:$L,10,FALSE)) -> ΜΠΟΥΖΟΥ Ε (ΣΑ ΤΡΙΠΟΛΗΣ ) | E14: =IF(LEN(MD!I20)<2,"",VLOOKUP(MD!I20,ALMD!$C:$L,10,FALSE)) -> ΣΤΡΑΤΗ Γ (ΑΟΑ ΠΑΤΡΩΝ ()
C16: Round 8 | F16: info
A17: ΩΡΑ | B17: Κτγρ. | C17: Αθλητής-Σύλλογος | E17: Αθλητής-Σύλλογος
B18: =Setup!$B$6&" R8" -> Κ14 R8 | C18: =IF(LEN(MD!N5)<2,"",VLOOKUP(MD!N5,ALMD!$C:$L,10,FALSE)) -> ΛΑΜΠΡΟΠΟΥΛΟΥ Β (ΑΕΚ ΤΡΙΠΟΛΗΣ) | D18: =IF(OR(C18="",E18="")," ","-") -> - | E18: =IF(LEN(MD!N7)<2,"",VLOOKUP(MD!N7,ALMD!$C:$L,10,FALSE)) -> ΖΩΓΡΑΦΟΥ Α (ΟΑ ΚΟΡΙΝΘΟΥ )
B19: =Setup!$B$6&" R8" -> Κ14 R8 | C19: =IF(LEN(MD!N9)<2,"",VLOOKUP(MD!N9,ALMD!$C:$L,10,FALSE)) -> ΔΕΛΗ Μ (ΡΗΓΑΣ ΑΟΑ ΑΡ) | D19: =IF(OR(C19="",E19="")," ","-") -> - | E19: =IF(LEN(MD!N11)<2,"",VLOOKUP(MD!N11,ALMD!$C:$L,10,FALSE)) -> ΒΟΥΔΟΥΡΗ Μ (ΑΕΚ ΤΡΙΠΟΛΗΣ)
B20: =Setup!$B$6&" R8" -> Κ14 R8 | C20: =IF(LEN(MD!N13)<2,"",VLOOKUP(MD!N13,ALMD!$C:$L,10,FALSE)) -> ΖΟΥΓΡΑ Ι (ΖΑΚΥΝΘΙΝΟΣ Α) | D20: =IF(OR(C20="",E20="")," ","-") -> - | E20: =IF(LEN(MD!N15)<2,"",VLOOKUP(MD!N15,ALMD!$C:$L,10,FALSE)) -> ΚΟΤΙΝΗ Μ (ΑΟΑ ΠΑΤΡΩΝ ()
B21: =Setup!$B$6&" R8" -> Κ14 R8 | C21: =IF(LEN(MD!N17)<2,"",VLOOKUP(MD!N17,ALMD!$C:$L,10,FALSE)) -> ΑΣΕΝΟΒΑ Γ (ΟΑ ΚΑΛΑΜΑΤΑΣ) | D21: =IF(OR(C21="",E21="")," ","-") -> - | E21: =IF(LEN(MD!N19)<2,"",VLOOKUP(MD!N19,ALMD!$C:$L,10,FALSE)) -> ΣΤΡΑΤΗ Γ (ΑΟΑ ΠΑΤΡΩΝ ()
C23: Ημιτελικοί | F23: info
A24: ΩΡΑ | B24: Κτγρ. | C24: Αθλητής-Σύλλογος | E24: Αθλητής-Σύλλογος
B25: =Setup!$B$6&" Ημιτελ" -> Κ14 Ημιτελ | C25: =IF(LEN(MD!Q6)<2,"",VLOOKUP(MD!Q6,ALMD!$C:$L,10,FALSE)) -> ΛΑΜΠΡΟΠΟΥΛΟΥ Β (ΑΕΚ ΤΡΙΠΟΛΗΣ) | E25: =IF(LEN(MD!Q10)<2,"",VLOOKUP(MD!Q10,ALMD!$C:$L,10,FALSE)) -> ΔΕΛΗ Μ (ΡΗΓΑΣ ΑΟΑ ΑΡ)
B26: =Setup!$B$6&" Ημιτελ" -> Κ14 Ημιτελ | C26: =IF(LEN(MD!Q14)<2,"",VLOOKUP(MD!Q14,ALMD!$C:$L,10,FALSE)) -> ΖΟΥΓΡΑ Ι (ΖΑΚΥΝΘΙΝΟΣ Α) | E26: =IF(LEN(MD!Q18)<2,"",VLOOKUP(MD!Q18,ALMD!$C:$L,10,FALSE)) -> ΣΤΡΑΤΗ Γ (ΑΟΑ ΠΑΤΡΩΝ ()
C28: Τελικός | F28: info
A29: ΩΡΑ | B29: Κτγρ. | C29: Αθλητής-Σύλλογος | E29: Αθλητής-Σύλλογος
B30: =Setup!$B$6&" Τελ." -> Κ14 Τελ. | C30: =IF(LEN(MD!T8)<2,"",VLOOKUP(MD!T8,ALMD!$C:$L,10,FALSE)) -> ΛΑΜΠΡΟΠΟΥΛΟΥ Β (ΑΕΚ ΤΡΙΠΟΛΗΣ) | E30: =IF(LEN(MD!T16)<2,"",VLOOKUP(MD!T16,ALMD!$C:$L,10,FALSE)) -> ΣΤΡΑΤΗ Γ (ΑΟΑ ΠΑΤΡΩΝ ()

Sheet tables (hidden)
A1: RndIndx | B1: random | C1: FixRandom | G1: 33-64 | H1: 17-32 | I1: 9-16 | J1: 5-8 | K1: 3-4 | L1: 2ος | M1: 1ος | P1: Categories | Q1: Juniors | R1: Serniors | V1: Tours | X1: Clubs | Y1: Id | Z1: Union | AB1: Organizers | AD1: Referees | AF1: key | AG1: pts18 | AI1: KEY TourDetails | AJ1: Date | AK1: TourName | AL1: CLUBid | AM1: CLUB | AN1: TYPE | AO1: GRP | AP1: GRPid | AQ1: TDid | AR1: Tid | AS1: Group | AT1: GroupID
A2: 1 | B2: =RAND()/222 -> 0.0002107760561 | C2: 0.0007354629137 | F2: Ε1-12 | H2: 5 | I2: 7.5 | J2: 10 | K2: 15 | L2: 25 | M2: 30 | Q2: Α10 | R2: m35 | AF2: Ε1S-12-1st | AG2: 30 | AI2: =AJ2&AK2&AL2&AN2&AO2 -> 42737ITF (BELGRADE)14Sα18 | AJ2: 2017-01-02 | AK2: ITF (BELGRADE) | AL2: 14 | AM2: ITF | AN2: S | AO2: α18 | AP2: 8 | AQ2: 2388 | AR2: 585 | AS2: Α10 | AT2: 3
A3: 2 | B3: =RAND()/222 -> 0.004100282441 | C3: 0.00204154775 | F3: Ε1-14 | H3: 10 | I3: 15 | J3: 20 | K3: 30 | L3: 50 | M3: 60 | P3: Α12 | Q3: Α12 | R3: m40 | V3: Ε3 | X3: ΑΑ ΑΙΓΑΛΕΩ | Y3: 366 | Z3: Θ | AB3: ΕΦΟΑ | AD3: Θα-ανακοινωθεί | AF3: Ε1S-12-2nd | AG3: 25 | AI3: =AJ3&AK3&AL3&AN3&AO3 -> 42737TE (BOZICNI)15Sα14 | AJ3: 2017-01-02 | AK3: TE (BOZICNI) | AL3: 15 | AM3: Tennis Europe | AN3: S | AO3: α14 | AP3: 6 | AQ3: 2389 | AR3: 586 | AS3: Κ10 | AT3: 4
A4: 3 | B4: =RAND()/222 -> 0.001183067079 | C4: 0.004403080545 | F4: Ε1-16 | H4: 20 | I4: 30 | J4: 40 | K4: 60 | L4: 100 | M4: 120 | P4: Α14 | Q4: Α14 | R4: m45 | V4: Ε4 | X4: ΑΑ ΑΛΜΠΑΤΡΟΣ | Y4: 124 | Z4: Β | AB4: Α' ΕΝΩΣΗ | AD4: ΑΛΕΞΙΟΥ Δ | AF4: Ε1S-12-3_4 | AG4: 15 | AI4: 42744ITF (16TH ABU DHABI)14Sα18 | AJ4: 2017-01-09 | AK4: ITF (16TH ABU DHABI) | AL4: 14 | AM4: ITF | AN4: S | AO4: α18 | AP4: 8 | AQ4: 2390 | AR4: 587 | AS4: Α12 | AT4: 5
A5: 4 | B5: =RAND()/222 -> 0.001886490972 | C5: 0.0007911722224 | F5: Ε1-18 | H5: 25 | I5: 37.5 | J5: 50 | K5: 75 | L5: 125 | M5: 150 | P5: Α16 | Q5: Α16 | R5: m50 | V5: Παν | X5: ΑΑ ΚΕΡΚΥΡΑΣ | Y5: 201 | Z5: Δ | AB5: Β' ΕΝΩΣΗ | AD5: ΑΜΟΥΤΖΟΓΛΟΥ Κ | AF5: Ε1S-12-5_8 | AG5: 10 | AI5: 42744TE (17TH TENNISLINE)15Sκ16 | AJ5: 2017-01-09 | AK5: TE (17TH TENNISLINE) | AL5: 15 | AM5: Tennis Europe | AN5: S | AO5: κ16 | AP5: 11 | AQ5: 2391 | AR5: 588 | AS5: Α14 | AT5: 6
A6: 5 | B6: =RAND()/222 -> 0.002113152717 | C6: 0.0005716711888 | F6: Ε2-12 | H6: 2.5 | I6: 4 | J6: 5 | K6: 7.5 | L6: 12.5 | M6: 15 | P6: Α18 | Q6: Α18 | R6: m55 | V6: Open | X6: ΑΑ ΝΑΟΥΣΑΣ | Y6: 169 | Z6: Γ | AB6: Γ' ΕΝΩΣΗ | AD6: ΑΞΑΡΛΗ Ν | AF6: Ε1S-12-9_16 | AG6: 7.5 | AI6: 42751ITF (HOTEL KURZ)14Sα18 | AJ6: 2017-01-16 | AK6: ITF (HOTEL KURZ) | AL6: 14 | AM6: ITF | AN6: S | AO6: α18 | AP6: 8 | AQ6: 2392 | AR6: 589 | AS6: Α16 | AT6: 7
A7: 6 | B7: =RAND()/222 -> 0.0001962215615 | C7: 0.0006739502395 | F7: Ε2-14 | H7: 5 | I7: 7.5 | J7: 10 | K7: 15 | L7: 25 | M7: 30 | P7: Κ12 | Q7: Κ10 | R7: m60 | V7: ΠανΑΓ | X7: ΑΑΑ ΑΛΙΜΟΥ | Y7: 407 | Z7: ΙΑ | AB7: Δ' ΕΝΩΣΗ | AD7: ΒΑΒΙΤΣΑ Π | AF7: Ε1S-12-17_32 | AG7: 1 | AI7: 42751ITF (HOTEL KURZ)14Dα18 | AJ7: 2017-01-16 | AK7: ITF (HOTEL KURZ) | AL7: 14 | AM7: ITF | AN7: D | AO7: α18 | AP7: 16 | AQ7: 2393 | AR7: 589 | AS7: Α18 | AT7: 8
A8: 7 | B8: 0.002548873381 | C8: 0.0009604207829 | F8: Ε2-16 | H8: 10 | I8: 16 | J8: 20 | K8: 30 | L8: 50 | M8: 60 | P8: Κ14 | Q8: Κ12 | R8: m65 | V8: OpenΑΓ | X8: ΑΓΟ ΒΟΛΟΥ | Y8: 470 | Z8: Ε | AB8: Ε' ΕΝΩΣΗ | AD8: ΒΑΒΟΥΡΑΚΗ Ε | AF8: Ε1S-12-q8 | AG8: 2 | AI8: 42751TE (SMENA CUP)15Sα14 | AJ8: 2017-01-16 | AK8: TE (SMENA CUP) | AL8: 15 | AM8: Tennis Europe | AN8: S | AO8: α14 | AP8: 6 | AQ8: 2394 | AR8: 590 | AS8: Κ12 | AT8: 9
A9: 8 | B9: 0.001539943268 | C9: 0.001151932452 | F9: Ε3-12 | G9: 0.5 | H9: 1.5 | I9: 2.4 | J9: 3 | K9: 4.5 | L9: 7.5 | M9: 9 | P9: Κ16 | Q9: Κ14 | R9: m70 | V9: Σχολικό | X9: ΑΓΟ ΕΥΡΥΑΛΗ ΓΛΥΦΑΔΑΣ | Y9: 408 | Z9: ΙΑ | AB9: ΣΤ' ΕΝΩΣΗ | AD9: ΒΑΚΟΥΦΑΡΗΣ Δ | AF9: Ε1S-12-q16 | AG9: 2 | AI9: 42758ITF (CLTK CUP)14Sα18 | AJ9: 2017-01-23 | AK9: ITF (CLTK CUP) | AL9: 14 | AM9: ITF | AN9: S | AO9: α18 | AP9: 8 | AQ9: 2395 | AR9: 591 | AS9: Κ14 | AT9: 10
A10: 9 | B10: 0.001684783542 | C10: 0.00150498338 | F10: Ε3-14 | G10: 1 | H10: 3 | I10: 4.5 | J10: 6 | K10: 9 | L10: 15 | M10: 18 | P10: Κ18 | Q10: Κ16 | R10: m75 | V10: Cons | X10: ΑΓΟ ΘΕΣΠΡΩΤΙΚΟΥ | Y10: 202 | Z10: Δ | AB10: Ζ' ΕΝΩΣΗ | AD10: ΒΑΛΤΑΔΩΡΟΣ Δ | AF10: Ε1S-12-q8/2 | AG10: 1 | AI10: 42758ITF (DONETSK)14Sα18 | AJ10: 2017-01-23 | AK10: ITF (DONETSK) | AL10: 14 | AM10: ITF | AN10: S | AO10: α18 | AP10: 8 | AQ10: 2396 | AR10: 592 | AS10: Κ16 | AT10: 11
A11: 10 | B11: 0.00275961834 | C11: 0.003448675776 | F11: Ε3-16 | G11: 2 | H11: 6 | I11: 9.6 | J11: 12 | K11: 18 | L11: 30 | M11: 36 | P11: Α10 | Q11: Κ18 | R11: w35 | X11: ΑΓΟ ΝΑΥΠΑΚΤΟΥ | Y11: 203 | Z11: Δ | AB11: Η' ΕΝΩΣΗ | AD11: ΒΑΛΤΑΔΩΡΟΣ Μ | AF11: Ε1S-12-q32 | AG11: 1 | AI11: 42758ITF (TOUR. 2)14Sκ18 | AJ11: 2017-01-23 | AK11: ITF (TOUR. 2) | AL11: 14 | AM11: ITF | AN11: S | AO11: κ18 | AP11: 12 | AQ11: 2397 | AR11: 593 | AS11: Κ18 | AT11: 12
A12: 11 | B12: 0.003173159812 | C12: 0.002151184124 | F12: Ε4-12 | G12: 0.2 | H12: 0.5 | I12: 1 | J12: 1.2 | K12: 1.7 | L12: 3.2 | M12: 3.7 | P12: Κ10 | Q12: ΑΝΔ | R12: w40 | X12: ΑΓΟ ΦΙΛΙΠΠΙΑΔΑΣ | Y12: 204 | Z12: Δ | AB12: Θ' ΕΝΩΣΗ | AD12: ΒΑΧΑΡΙΔΗΣ Γ | AF12: Ε1S-12-33_64 | AG12: 0 | AI12: 42758ITF (TUNISIA 1)14Sκ18 | AJ12: 2017-01-23 | AK12: ITF (TUNISIA 1) | AL12: 14 | AM12: ITF | AN12: S | AO12: κ18 | AP12: 12 | AQ12: 2398 | AR12: 594 | AS12: Α12 Δ | AT12: 13
A13: 12 | B13: 7.879852228e-05 | C13: 0.001029475831 | F13: Ε4-14 | G13: 0.5 | H13: 1.2 | I13: 1.8 | J13: 2.5 | K13: 3.7 | L13: 6.2 | M13: 7.5 | P13: Ανδ | Q13: ΓΥΝ | R13: w45 | V13: Παν | X13: ΑΓΣ ΜΥΛΩΝ Ο ΛΕΡΝΟΣ | Y13: 258 | Z13: ΣΤ | AB13: ΙΑ' ΕΝΩΣΗ | AD13: ΒΟΥΡΟΥΚΟΣ Κ | AF13: Ε1S-12-q | AG13: 0 | AI13: 42758ITF (TUNISIA 1)14Dκ18 | AJ13: 2017-01-23 | AK13: ITF (TUNISIA 1) | AL13: 14 | AM13: ITF | AN13: D | AO13: κ18 | AP13: 20 | AQ13: 2399 | AR13: 594 | AS13: Α14 Δ | AT13: 14
A14: 13 | B14: 0.0001866478637 | C14: 0.00340089833 | F14: Ε4-16 | G14: 1 | H14: 2.5 | I14: 4 | J14: 5 | K14: 7.5 | L14: 12.5 | M14: 15 | P14: Γυν | Q14: - | R14: w50 | V14: Ε1 | X14: ΑΕ ΒΟΥΛΑΣ | Y14: 496 | Z14: ΙΑ | AB14: ΣΒΑΕ | AD14: ΓΑΛΑΤΙΔΗΣ Α | AF14: Ε1S-12-q64 | AG14: 0 | AI14: 42758TE (STAVANGER)15Sα16 | AJ14: 2017-01-23 | AK14: TE (STAVANGER) | AL14: 15 | AM14: Tennis Europe | AN14: S | AO14: α16 | AP14: 7 | AQ14: 2400 | AR14: 595 | AS14: Α16 Δ | AT14: 15
A15: 14 | B15: 0.002942594602 | C15: 0.000268811084 | F15: Παν-12 | G15: 5 | H15: 10 | I15: 15 | J15: 20 | K15: 30 | L15: 50 | M15: 60 | Q15: - | R15: w55 | V15: Ε2 | X15: ΑΕ ΚΑΛΑΒΡΥΤΩΝ | Y15: 259 | Z15: ΣΤ | AB15: ITF & ΣΒΑΕ | AD15: ΓΕΡΑΡΔΟΣ Γ | AF15: Ε1S-12-q128 | AG15: 0 | AI15: 42765ITF (EGYPT 1)14Sα18 | AJ15: 2017-01-30 | AK15: ITF (EGYPT 1) | AL15: 14 | AM15: ITF | AN15: S | AO15: α18 | AP15: 8 | AQ15: 2401 | AR15: 596 | AS15: Α18 Δ | AT15: 16
A16: 15 | B16: 6.651243847e-05 | C16: 0.000204315648 | F16: Παν-14 | G16: 10 | H16: 20 | I16: 30 | J16: 40 | K16: 60 | L16: 100 | M16: 120 | Q16: - | R16: - | V16: Ε3 | X16: ΑΕ ΠΟΡΤΟ ΡΑΦΤΗ | Y16: 313 | Z16: Η | AB16: INTERSPORT | AD16: ΓΕΩΡΓΑΚΗΣ Κ | AF16: Ε1S-12-q256 | AG16: 0 | AI16: 42765ITF (EGYPT 1)14Dα18 | AJ16: 2017-01-30 | AK16: ITF (EGYPT 1) | AL16: 14 | AM16: ITF | AN16: D | AO16: α18 | AP16: 16 | AQ16: 2402 | AR16: 596 | AS16: Κ12 Δ | AT16: 17
A17: 16 | B17: 0.0005930262425 | C17: 0.002871802519 | F17: Παν-16 | G17: 20 | H17: 40 | I17: 60 | J17: 80 | K17: 120 | L17: 200 | M17: 240 | V17: Ε4 | X17: ΑΕΚ ΤΡΙΠΟΛΗΣ | Y17: 260 | Z17: ΣΤ | AD17: ΓΕΩΡΓΑΡΑ Ε | AF17: Ε1S-12-wo | AG17: 0 | AI17: 42765ITF (EGYPT 1)14Sκ18 | AJ17: 2017-01-30 | AK17: ITF (EGYPT 1) | AL17: 14 | AM17: ITF | AN17: S | AO17: κ18 | AP17: 12 | AQ17: 2403 | AR17: 596 | AS17: Κ14 Δ | AT17: 18
F18: Παν-18 | G18: 25 | H18: 50 | I18: 75 | J18: 100 | K18: 150 | L18: 250 | M18: 300 | X18: ΑΕΣΑ Φ ΚΟΥΡΟΣ | Y18: 478 | Z18: Η | AD18: ΓΕΩΡΓΑΤΗΣ Ι | AF18: Ε1D-12-1st | AG18: 7.5 | AI18: 42769Ε3 05η (Α)102Sα12 | AJ18: 2017-02-03 | AK18: Ε3 05η (Α) | AL18: 102 | AM18: ΑΟ ΚΑΒΑΛΑΣ ΜΑΚΕΔΟΝΙΚΟΣ | AN18: S | AO18: α12 | AP18: 5 | AQ18: 2404 | AR18: 597 | AS18: Κ16 Δ | AT18: 19
V19: G1 | X19: ΑΕΤ ΝΙΚΗ ΠΑΤΡΩΝ | Y19: 261 | Z19: ΣΤ | AD19: ΓΕΩΡΓΙΑΔΗΣ Σ | AF19: Ε1D-12-2nd | AG19: 6.5 | AI19: 42769Ε3 05η (Α)102Sα14 | AJ19: 2017-02-03 | AK19: Ε3 05η (Α) | AL19: 102 | AM19: ΑΟ ΚΑΒΑΛΑΣ ΜΑΚΕΔΟΝΙΚΟΣ | AN19: S | AO19: α14 | AP19: 6 | AQ19: 2405 | AR19: 597 | AS19: Κ18 Δ | AT19: 20
G20: q256 | H20: q128 | I20: q64 | J20: q32 | K20: q16 | L20: q8 | V20: G2 | X20: ΑΘΛ ΑΚΑΔ ΙΩΑΝΝΙΝΩΝ | Y20: 205 | Z20: Δ | AD20: ΓΙΑΝΝΟΥΛΟΠΟΥΛΟΥ Α | AF20: Ε1D-12-3_4 | AG20: 4 | AI20: 42769Ε3 05η (Α)102Sα16 | AJ20: 2017-02-03 | AK20: Ε3 05η (Α) | AL20: 102 | AM20: ΑΟ ΚΑΒΑΛΑΣ ΜΑΚΕΔΟΝΙΚΟΣ | AN20: S | AO20: α16 | AP20: 7 | AQ20: 2406 | AR20: 597 | AS20: Μ12 Δ | AT20: 21
F21: Ε1-12 | J21: 1 | K21: 2 | L21: 2 | V21: G3 | X21: ΑΘΛ ΚΕΝΤΡΟ ΑΝΤΙΣΦ ΛΑΜΙΑΣ | Y21: 223 | Z21: Ε | AD21: ΓΙΑΤΣΟΣ Β | AF21: Ε1D-12-5_8 | AG21: 2.5 | AI21: 42769Ε3 05η (Α)102Sκ12 | AJ21: 2017-02-03 | AK21: Ε3 05η (Α) | AL21: 102 | AM21: ΑΟ ΚΑΒΑΛΑΣ ΜΑΚΕΔΟΝΙΚΟΣ | AN21: S | AO21: κ12 | AP21: 9 | AQ21: 2407 | AR21: 597 | AS21: Μ14 Δ | AT21: 22
F22: Ε1-14 | J22: 2 | K22: 4 | L22: 4 | V22: G4 | X22: ΑΙΟΛΟΣ ΑΛ ΙΛΙΟΥ | Y22: 367 | Z22: Θ | AD22: ΓΙΩΓΙΑ Π | AF22: Ε1D-12-9_16 | AG22: 2 | AI22: 42769Ε3 05η (Α)102Sκ14 | AJ22: 2017-02-03 | AK22: Ε3 05η (Α) | AL22: 102 | AM22: ΑΟ ΚΑΒΑΛΑΣ ΜΑΚΕΔΟΝΙΚΟΣ | AN22: S | AO22: κ14 | AP22: 10 | AQ22: 2408 | AR22: 597 | AS22: Μ16 Δ | AT22: 23
F23: Ε1-16 | J23: 4 | K23: 8 | L23: 8 | V23: G5 | X23: ΑΚ ΖΩΓΡΑΦΟΥ | Y23: 410 | Z23: ΙΑ | AD23: ΓΚΟΓΚΟΥ Κ | AF23: Ε1D-12-17_32 | AG23: 0 | AI23: 42769Ε3 05η (Α)102Sκ16 | AJ23: 2017-02-03 | AK23: Ε3 05η (Α) | AL23: 102 | AM23: ΑΟ ΚΑΒΑΛΑΣ ΜΑΚΕΔΟΝΙΚΟΣ | AN23: S | AO23: κ16 | AP23: 11 | AQ23: 2409 | AR23: 597 | AS23: Μ18 Δ | AT23: 24
F24: Ε1-18 | J24: 5 | K24: 10 | L24: 10 | X24: ΑΚΑ Α ΠΑΝΤΑΛΚΗΣ | Y24: 487 | Z24: Θ | AD24: ΓΚΟΥΝΤΑΝΗ Γ | AF24: Ε1D-12-wo | AG24: 0 | AI24: 42769Ε3 05η (Β)130Sα12 | AJ24: 2017-02-03 | AK24: Ε3 05η (Β) | AL24: 130 | AM24: ΑΟΑ ΛΕ ΡΑΚΕΤ | AN24: S | AO24: α12 | AP24: 5 | AQ24: 2410 | AR24: 598 | AS24: ΑΝΔ | AT24: 25
F25: Ε2-12 | J25: 0.5 | K25: 1 | L25: 1 | X25: ΑΚΑ ΜΑΡΑΘΩΝΑ | Y25: 315 | Z25: Η | AD25: ΔΑΜΙΑΝΟΥ Α | AF25: Ε1S-14-1st | AG25: 60 | AI25: 42769Ε3 05η (Β)152Sα14 | AJ25: 2017-02-03 | AK25: Ε3 05η (Β) | AL25: 152 | AM25: ΟΑ ΚΑΛΑΜΑΡΙΑΣ | AN25: S | AO25: α14 | AP25: 6 | AQ25: 2411 | AR25: 598 | AS25: ΓΥΝ | AT25: 26
F26: Ε2-14 | J26: 1 | K26: 2 | L26: 2 | X26: ΑΚΑΔ ΑΝΤΙΣΦ ΙΩΑΝΝΙΝΩΝ | Y26: 206 | Z26: Δ | AD26: ΔΕΡΜΙΤΖΑΚΗ Ε | AF26: Ε1S-14-2nd | AG26: 50 | AI26: 42769Ε3 05η (Β)152Sα16 | AJ26: 2017-02-03 | AK26: Ε3 05η (Β) | AL26: 152 | AM26: ΟΑ ΚΑΛΑΜΑΡΙΑΣ | AN26: S | AO26: α16 | AP26: 7 | AQ26: 2412 | AR26: 598 | AS26: ΑΝΔ Δ | AT26: 27
F27: Ε2-16 | J27: 2 | K27: 4 | L27: 4 | P27: Ναι | X27: ΑΚΑΔ ΑΝΤΙΣΦ ΣΕΡΡΩΝ 2008 | Y27: 101 | Z27: Α | AD27: ΔΗΜΗΤΡΙΟΥ Ε | AF27: Ε1S-14-3_4 | AG27: 30 | AI27: 42769Ε3 05η (Β)130Sκ12 | AJ27: 2017-02-03 | AK27: Ε3 05η (Β) | AL27: 130 | AM27: ΑΟΑ ΛΕ ΡΑΚΕΤ | AN27: S | AO27: κ12 | AP27: 9 | AQ27: 2413 | AR27: 598 | AS27: ΓΥΝ Δ | AT27: 28
F28: Ε3-12 | P28: Όχι | X28: ΑΚΑΔ ΑΝΤΙΣΦ ΧΑΝΙΩΝ | Y28: 298 | Z28: Ζ | AD28: ΔΡΑΓΟΥΜΗΣ Π | AF28: Ε1S-14-5_8 | AG28: 20 | AI28: 42769Ε3 05η (Β)152Sκ14 | AJ28: 2017-02-03 | AK28: Ε3 05η (Β) | AL28: 152 | AM28: ΟΑ ΚΑΛΑΜΑΡΙΑΣ | AN28: S | AO28: κ14 | AP28: 10 | AQ28: 2414 | AR28: 598 | AS28: ΜΙΚΤ Α/Γ | AT28: 29
F29: Ε3-14 | X29: ΑΜΕΣ Ν ΕΡΥΘΡΑΙΑΣ | Y29: 316 | Z29: Η | AD29: ΘΕΟΔΩΡΟΠΟΥΛΟΥ Α | AF29: Ε1S-14-9_16 | AG29: 15 | AI29: 42769Ε3 05η (Β)152Sκ16 | AJ29: 2017-02-03 | AK29: Ε3 05η (Β) | AL29: 152 | AM29: ΟΑ ΚΑΛΑΜΑΡΙΑΣ | AN29: S | AO29: κ16 | AP29: 11 | AQ29: 2415 | AR29: 598
F30: Ε3-16 | P30: από values | X30: ΑΜΣ ΠΑΝΟΡΑΜΑΤΟΣ | Y30: 458 | Z30: Β | AD30: ΙΩΑΝΝΙΔΗΣ Ι | AF30: Ε1S-14-17_32 | AG30: 2 | AI30: 42769Ε3 05η (Ε)244Sα12 | AJ30: 2017-02-03 | AK30: Ε3 05η (Ε) | AL30: 244 | AM30: ΟΑ ΜΑΓΝΗΣΙΑΣ | AN30: S | AO30: α12 | AP30: 5 | AQ30: 2416 | AR30: 599
F31: Ε4-12 | X31: ΑΝΟ ΓΛΥΦΑΔΑΣ | Y31: 411 | Z31: ΙΑ | AD31: ΚΑΔΟΓΛΟΥ Κ | AF31: Ε1S-14-q8 | AG31: 4 | AI31: 42769Ε3 05η (Ε)244Sα14 | AJ31: 2017-02-03 | AK31: Ε3 05η (Ε) | AL31: 244 | AM31: ΟΑ ΜΑΓΝΗΣΙΑΣ | AN31: S | AO31: α14 | AP31: 6 | AQ31: 2417 | AR31: 599
F32: Ε4-14 | P32: alt | X32: ΑΝΣ ΕΛΛΗΝΙΚΙΩΤΩΝ | Y32: 412 | Z32: ΙΑ | AD32: ΚΑΖΑΝΗΣ Γ | AF32: Ε1S-14-q16 | AG32: 4 | AI32: 42769Ε3 05η (Ε)244Sα16 | AJ32: 2017-02-03 | AK32: Ε3 05η (Ε) | AL32: 244 | AM32: ΟΑ ΜΑΓΝΗΣΙΑΣ | AN32: S | AO32: α16 | AP32: 7 | AQ32: 2418 | AR32: 599
F33: Ε4-16 | P33: Q | X33: ΑΟ ΑΘΗΝΑΪΚΗ | Y33: 488 | Z33: Θ | AD33: ΚΑΚΚΑΛΟΣ Γ | AF33: Ε1S-14-q8/2 | AG33: 2 | AI33: 42769Ε3 05η (Ε)244Sκ12 | AJ33: 2017-02-03 | AK33: Ε3 05η (Ε) | AL33: 244 | AM33: ΟΑ ΜΑΓΝΗΣΙΑΣ | AN33: S | AO33: κ12 | AP33: 9 | AQ33: 2419 | AR33: 599
F34: Παν-12 | G34: 0.5 | H34: 1 | I34: 1.5 | J34: 2.5 | K34: 2.5 | P34: LL | X34: ΑΟ ΑΙΓΙΟΥ ΜΟΡΕΑΣ | Y34: 262 | Z34: ΣΤ | AD34: ΚΑΛΟΓΡΗ Σ | AF34: Ε1S-14-q32 | AG34: 2 | AI34: 42769Ε3 05η (Ε)244Sκ14 | AJ34: 2017-02-03 | AK34: Ε3 05η (Ε) | AL34: 244 | AM34: ΟΑ ΜΑΓΝΗΣΙΑΣ | AN34: S | AO34: κ14 | AP34: 10 | AQ34: 2420 | AR34: 599
F35: Παν-14 | G35: 1 | H35: 2 | I35: 3 | J35: 5 | K35: 5 | P35: DQ | X35: ΑΟ ΑΛΦΕΙΟΣ ΕΠΙΤΑΛΙΟΥ | Y35: 501 | Z35: ΣΤ | AD35: ΚΑΜΙΛΗ Α | AF35: Ε1S-14-33_64 | AG35: 0 | AI35: 42769Ε3 05η (Ε)244Sκ16 | AJ35: 2017-02-03 | AK35: Ε3 05η (Ε) | AL35: 244 | AM35: ΟΑ ΜΑΓΝΗΣΙΑΣ | AN35: S | AO35: κ16 | AP35: 11 | AQ35: 2421 | AR35: 599
F36: Παν-16 | G36: 2 | H36: 4 | I36: 6 | J36: 10 | K36: 10 | X36: ΑΟ ΑΣΤΕΡΑΣ ΗΛΙΟΥΠΟΛΗΣ | Y36: 497 | Z36: ΙΑ | AD36: ΚΑΡΑΜΗΤΡΟΣ Κ | AF36: Ε1S-14-q | AG36: 0 | AI36: 42769Ε3 05η (Η)336Sα12 | AJ36: 2017-02-03 | AK36: Ε3 05η (Η) | AL36: 336 | AM36: ΑΟΑ ΦΙΛΟΘΕΗΣ | AN36: S | AO36: α12 | AP36: 5 | AQ36: 2422 | AR36: 600
F37: Παν-18 | G37: 2.5 | H37: 5 | I37: 7.5 | J37: 12.5 | K37: 12.5 | X37: ΑΟ ΑΤΛΑΝΤΙΣ | Y37: 317 | Z37: Η | AD37: ΚΑΡΑΤΑΣΟΣ Κ | AF37: Ε1S-14-q64 | AG37: 0 | AI37: 42769Ε3 05η (Η)336Sα14 | AJ37: 2017-02-03 | AK37: Ε3 05η (Η) | AL37: 336 | AM37: ΑΟΑ ΦΙΛΟΘΕΗΣ | AN37: S | AO37: α14 | AP37: 6 | AQ37: 2423 | AR37: 600
X38: ΑΟ ΒΑΡΗΣ ΑΝΑΓΥΡΟΥΣ | Y38: 318 | Z38: Η | AD38: ΚΑΦΕΤΖΟΠΟΥΛΟΣ Π | AF38: Ε1S-14-q128 | AG38: 0 | AI38: 42769Ε3 05η (Η)336Sα16 | AJ38: 2017-02-03 | AK38: Ε3 05η (Η) | AL38: 336 | AM38: ΑΟΑ ΦΙΛΟΘΕΗΣ | AN38: S | AO38: α16 | AP38: 7 | AQ38: 2424 | AR38: 600
X39: ΑΟ ΒΟΥΛΙΑΓΜΕΝΗΣ | Y39: 415 | Z39: ΙΑ | AD39: ΚΑΦΦΕ Μ | AF39: Ε1S-14-q256 | AG39: 0 | AI39: 42769Ε3 05η (Η)336Sκ12 | AJ39: 2017-02-03 | AK39: Ε3 05η (Η) | AL39: 336 | AM39: ΑΟΑ ΦΙΛΟΘΕΗΣ | AN39: S | AO39: κ12 | AP39: 9 | AQ39: 2425 | AR39: 600
X40: ΑΟ ΓΛΥΦΑΔΑΣ ΦΙΛΙΑ 2000 | Y40: 416 | Z40: ΙΑ | AD40: ΚΙΜΟΓΛΟΥ Ε | AF40: Ε1S-14-wo | AG40: 0 | AI40: 42769Ε3 05η (Η)336Sκ14 | AJ40: 2017-02-03 | AK40: Ε3 05η (Η) | AL40: 336 | AM40: ΑΟΑ ΦΙΛΟΘΕΗΣ | AN40: S | AO40: κ14 | AP40: 10 | AQ40: 2426 | AR40: 600
X41: ΑΟ ΔΑΣΟΣ ΧΑΪΔΑΡΙΟΥ | Y41: 489 | Z41: Θ | AD41: ΚΟΣΚΙΝΑΣ Ι | AF41: Ε1D-14-1st | AG41: 15 | AI41: 42769Ε3 05η (Η)336Sκ16 | AJ41: 2017-02-03 | AK41: Ε3 05η (Η) | AL41: 336 | AM41: ΑΟΑ ΦΙΛΟΘΕΗΣ | AN41: S | AO41: κ16 | AP41: 11 | AQ41: 2427 | AR41: 600
X42: ΑΟ ΔΙΑΣ ΠΟΛΙΧΝΗΣ | Y42: 126 | Z42: Β | AD42: ΚΟΤΣΑΡΙΝΗΣ Β | AF42: Ε1D-14-2nd | AG42: 13 | AI42: 42772ITF (9TH KENYA)14Sα18 | AJ42: 2017-02-06 | AK42: ITF (9TH KENYA) | AL42: 14 | AM42: ITF | AN42: S | AO42: α18 | AP42: 8 | AQ42: 2428 | AR42: 601
P43: sync-save | X43: ΑΟ ΔΙΛΟΦΟ ΒΑΡΗΣ | Y43: 319 | Z43: Η | AD43: ΚΟΤΣΩΝΗΣ Ε | AF43: Ε1D-14-3_4 | AG43: 8 | AI43: 42772ITF (YONEX)14Sα18 | AJ43: 2017-02-06 | AK43: ITF (YONEX) | AL43: 14 | AM43: ITF | AN43: S | AO43: α18 | AP43: 8 | AQ43: 2429 | AR43: 602
P44: sync only | X44: ΑΟ ΕΜΙΛΕΟΝ | Y44: 207 | Z44: Δ | AD44: ΚΟΥΚΟΥΒΙΤΑΚΗ Γ | AF44: Ε1D-14-5_8 | AG44: 5 | AI44: 42776Ε3 06η (Δ)204Sα12 | AJ44: 2017-02-10 | AK44: Ε3 06η (Δ) | AL44: 204 | AM44: ΑΓΟ ΦΙΛΙΠΠΙΑΔΑΣ | AN44: S | AO44: α12 | AP44: 5 | AQ44: 2430 | AR44: 603
X45: ΑΟ ΘΕΡΜΗΣ ΘΕΡΜΑΙΟΣ | Y45: 127 | Z45: Β | AD45: ΚΟΥΚΟΥΝΙΑΣ Χ | AF45: Ε1D-14-9_16 | AG45: 4 | AI45: 42776Ε3 06η (Δ)204Sα14 | AJ45: 2017-02-10 | AK45: Ε3 06η (Δ) | AL45: 204 | AM45: ΑΓΟ ΦΙΛΙΠΠΙΑΔΑΣ | AN45: S | AO45: α14 | AP45: 6 | AQ45: 2431 | AR45: 603
X46: ΑΟ ΚΑΒΑΛΑΣ ΜΑΚΕΔΟΝΙΚΟΣ | Y46: 102 | Z46: Α | AD46: ΚΟΥΛΟΥΡΗΣ Π | AF46: Ε1D-14-17_32 | AG46: 0 | AI46: 42776Ε3 06η (Δ)204Sα16 | AJ46: 2017-02-10 | AK46: Ε3 06η (Δ) | AL46: 204 | AM46: ΑΓΟ ΦΙΛΙΠΠΙΑΔΑΣ | AN46: S | AO46: α16 | AP46: 7 | AQ46: 2432 | AR46: 603
X47: ΑΟ ΚΑΛΛΙΤΕΧΝΟΥΠΟΛΗΣ | Y47: 320 | Z47: Η | AD47: ΚΟΥΜΑΝΤΑΣ Κ | AF47: Ε1D-14-wo | AG47: 0 | AI47: 42776Ε3 06η (Δ)204Sκ12 | AJ47: 2017-02-10 | AK47: Ε3 06η (Δ) | AL47: 204 | AM47: ΑΓΟ ΦΙΛΙΠΠΙΑΔΑΣ | AN47: S | AO47: κ12 | AP47: 9 | AQ47: 2433 | AR47: 603
X48: ΑΟ ΚΗΦΙΣΙΑΣ | Y48: 321 | Z48: Η | AD48: ΚΟΥΤΣΟΛΑΜΠΡΟΥ Α | AF48: Ε1S-16-1st | AG48: 120 | AI48: 42776Ε3 06η (Δ)204Sκ14 | AJ48: 2017-02-10 | AK48: Ε3 06η (Δ) | AL48: 204 | AM48: ΑΓΟ ΦΙΛΙΠΠΙΑΔΑΣ | AN48: S | AO48: κ14 | AP48: 10 | AQ48: 2434 | AR48: 603
X49: ΑΟ ΚΡΑΝΙΔΙΟΥ | Y49: 264 | Z49: ΣΤ | AD49: ΚΡΑΝΙΩΤΗ Σ | AF49: Ε1S-16-2nd | AG49: 100 | AI49: 42776Ε3 06η (Δ)204Sκ16 | AJ49: 2017-02-10 | AK49: Ε3 06η (Δ) | AL49: 204 | AM49: ΑΓΟ ΦΙΛΙΠΠΙΑΔΑΣ | AN49: S | AO49: κ16 | AP49: 11 | AQ49: 2435 | AR49: 603
X50: ΑΟ ΚΥΔΩΝΙΑΣ | Y50: 299 | Z50: Ζ | AD50: ΚΩΝΣΤΑΝΤΙΝΟΥ Κ | AF50: Ε1S-16-3_4 | AG50: 60 | AI50: 42776Ε3 06η (Θ)374Sα12 | AJ50: 2017-02-10 | AK50: Ε3 06η (Θ) | AL50: 374 | AM50: ΑΟΑ ΧΑΪΔΑΡΙΟΥ | AN50: S | AO50: α12 | AP50: 5 | AQ50: 2436 | AR50: 604
X51: ΑΟ ΛΑΓΟΝΗΣΙΟΥ | Y51: 322 | Z51: Η | AD51: ΚΩΣΤΙΔΟΥ Χ | AF51: Ε1S-16-5_8 | AG51: 40 | AI51: 42776Ε3 06η (Θ)374Sα14 | AJ51: 2017-02-10 | AK51: Ε3 06η (Θ) | AL51: 374 | AM51: ΑΟΑ ΧΑΪΔΑΡΙΟΥ | AN51: S | AO51: α14 | AP51: 6 | AQ51: 2437 | AR51: 604
X52: ΑΟ ΛΑΤΩ ΑΓ ΝΙΚΟΛΑΟΥ | Y52: 300 | Z52: Ζ | AD52: ΛΑΖΑΡΙΔΗΣ Ι | AF52: Ε1S-16-9_16 | AG52: 30 | AI52: 42776Ε3 06η (Θ)374Sα16 | AJ52: 2017-02-10 | AK52: Ε3 06η (Θ) | AL52: 374 | AM52: ΑΟΑ ΧΑΪΔΑΡΙΟΥ | AN52: S | AO52: α16 | AP52: 7 | AQ52: 2438 | AR52: 604
X53: ΑΟ ΛΙΒΑΔΕΙΩΝ ΒΟΥΡΕΙΟΣ | Y53: 323 | Z53: Η | AD53: ΛΑΛΟΥΜΗΣ Λ | AF53: Ε1S-16-17_32 | AG53: 4 | AI53: 42776Ε3 06η (Θ)374Sκ12 | AJ53: 2017-02-10 | AK53: Ε3 06η (Θ) | AL53: 374 | AM53: ΑΟΑ ΧΑΪΔΑΡΙΟΥ | AN53: S | AO53: κ12 | AP53: 9 | AQ53: 2439 | AR53: 604
X54: ΑΟ ΜΑΡΚΟΠΟΥΛΟΥ | Y54: 479 | Z54: Η | AD54: ΛΑΜΠΡΟΥ Μ | AF54: Ε1S-16-q8 | AG54: 8 | AI54: 42776Ε3 06η (Θ)374Sκ14 | AJ54: 2017-02-10 | AK54: Ε3 06η (Θ) | AL54: 374 | AM54: ΑΟΑ ΧΑΪΔΑΡΙΟΥ | AN54: S | AO54: κ14 | AP54: 10 | AQ54: 2440 | AR54: 604
X55: ΑΟ ΜΕΓΑΣ ΑΛΕΞΑΝΔΡΟΣ | Y55: 418 | Z55: ΙΑ | AD55: ΛΙΓΓΟΣ Ι | AF55: Ε1S-16-q16 | AG55: 8 | AI55: 42776Ε3 06η (Θ)374Sκ16 | AJ55: 2017-02-10 | AK55: Ε3 06η (Θ) | AL55: 374 | AM55: ΑΟΑ ΧΑΪΔΑΡΙΟΥ | AN55: S | AO55: κ16 | AP55: 11 | AQ55: 2441 | AR55: 604
X56: ΑΟ ΜΟΡΤΕΡΟΥ | Y56: 480 | Z56: Η | AD56: ΜΕΛΛΙΟΣ Α | AF56: Ε1S-16-q8/2 | AG56: 4 | AI56: 42776Ε3 06η (ΙΑ)435Sα12 | AJ56: 2017-02-10 | AK56: Ε3 06η (ΙΑ) | AL56: 435 | AM56: ΟΑ ΓΛΥΦΑΔΑΣ | AN56: S | AO56: α12 | AP56: 5 | AQ56: 2442 | AR56: 605
X57: ΑΟ ΜΥΤΙΛΗΝΗΣ | Y57: 371 | Z57: Θ | AD57: ΜΙΧΑΗΛΙΔΗΣ Σ | AF57: Ε1S-16-q32 | AG57: 4 | AI57: 42776Ε3 06η (ΙΑ)435Sα14 | AJ57: 2017-02-10 | AK57: Ε3 06η (ΙΑ) | AL57: 435 | AM57: ΟΑ ΓΛΥΦΑΔΑΣ | AN57: S | AO57: α14 | AP57: 6 | AQ57: 2443 | AR57: 605
X58: ΑΟ Ν ΣΜΥΡΝΗΣ ΜΙΛΩΝ | Y58: 419 | Z58: ΙΑ | AD58: ΜΟΥΡΒΑΤΗΣ Π | AF58: Ε1S-16-33_64 | AG58: 0 | AI58: 42776Ε3 06η (ΙΑ)435Sα16 | AJ58: 2017-02-10 | AK58: Ε3 06η (ΙΑ) | AL58: 435 | AM58: ΟΑ ΓΛΥΦΑΔΑΣ | AN58: S | AO58: α16 | AP58: 7 | AQ58: 2444 | AR58: 605
X59: ΑΟ ΝΕΟΥ ΦΑΛΗΡΟΥ | Y59: 490 | Z59: Θ | AD59: ΜΟΥΡΤΖΙΟΥ Ι | AF59: Ε1S-16-q | AG59: 0 | AI59: 42776Ε3 06η (ΙΑ)435Sκ12 | AJ59: 2017-02-10 | AK59: Ε3 06η (ΙΑ) | AL59: 435 | AM59: ΟΑ ΓΛΥΦΑΔΑΣ | AN59: S | AO59: κ12 | AP59: 9 | AQ59: 2445 | AR59: 605
X60: ΑΟ ΝΦ ΑΤΤΑΛΟΣ | Y60: 326 | Z60: Η | AD60: ΜΠΑΛΑΦΑΣ Σ | AF60: Ε1S-16-q64 | AG60: 0 | AI60: 42776Ε3 06η (ΙΑ)435Sκ14 | AJ60: 2017-02-10 | AK60: Ε3 06η (ΙΑ) | AL60: 435 | AM60: ΟΑ ΓΛΥΦΑΔΑΣ | AN60: S | AO60: κ14 | AP60: 10 | AQ60: 2446 | AR60: 605
X61: ΑΟ ΟΛΥΜΠΙΑΔΑ ΒΥΡΩΝΑ | Y61: 481 | Z61: Η | AD61: ΜΠΑΡΚΑΣ Α | AF61: Ε1S-16-q128 | AG61: 0 | AI61: 42776Ε3 06η (ΙΑ)435Sκ16 | AJ61: 2017-02-10 | AK61: Ε3 06η (ΙΑ) | AL61: 435 | AM61: ΟΑ ΓΛΥΦΑΔΑΣ | AN61: S | AO61: κ16 | AP61: 11 | AQ61: 2447 | AR61: 605
X62: ΑΟ ΟΡΕΣΤΙΑΔΑΣ | Y62: 103 | Z62: Α | AD62: ΜΠΑΡΜΠΟΠΟΥΛΟΣ Κ | AF62: Ε1S-16-q256 | AG62: 0 | AI62: 42776Ε3 06η (ΣΤ)261Sα12 | AJ62: 2017-02-10 | AK62: Ε3 06η (ΣΤ) | AL62: 261 | AM62: ΑΕΤ ΝΙΚΗ ΠΑΤΡΩΝ | AN62: S | AO62: α12 | AP62: 5 | AQ62: 2448 | AR62: 606
X63: ΑΟ Π ΦΑΛΗΡΟΥ | Y63: 420 | Z63: ΙΑ | AD63: ΜΠΑΤΣΙΟΣ Κ | AF63: Ε1S-16-wo | AG63: 0 | AI63: 42776Ε3 06η (ΣΤ)261Sα14 | AJ63: 2017-02-10 | AK63: Ε3 06η (ΣΤ) | AL63: 261 | AM63: ΑΕΤ ΝΙΚΗ ΠΑΤΡΩΝ | AN63: S | AO63: α14 | AP63: 6 | AQ63: 2449 | AR63: 606
X64: ΑΟ ΠΑΡΑΔΕΙΣΟΣ ΑΜΑΡΟΥΣΙΟΥ | Y64: 482 | Z64: Η | AD64: ΝΙΚΗΦΟΡΑΚΗΣ Σ | AF64: Ε1D-16-1st | AG64: 30 | AI64: 42776Ε3 06η (ΣΤ)261Sα16 | AJ64: 2017-02-10 | AK64: Ε3 06η (ΣΤ) | AL64: 261 | AM64: ΑΕΤ ΝΙΚΗ ΠΑΤΡΩΝ | AN64: S | AO64: α16 | AP64: 7 | AQ64: 2450 | AR64: 606
X65: ΑΟ ΠΑΡΓΑΣ | Y65: 468 | Z65: Δ | AD65: ΝΤΑΛΑΜΑΓΚΑ Β | AF65: Ε1D-16-2nd | AG65: 26 | AI65: 42776Ε3 06η (ΣΤ)261Sκ12 | AJ65: 2017-02-10 | AK65: Ε3 06η (ΣΤ) | AL65: 261 | AM65: ΑΕΤ ΝΙΚΗ ΠΑΤΡΩΝ | AN65: S | AO65: κ12 | AP65: 9 | AQ65: 2451 | AR65: 606
X66: ΑΟ ΠΕΥΚΗΣ TIE BREAK | Y66: 329 | Z66: Η | AD66: ΝΤΙΝΟΠΟΥΛΟΣ Π | AF66: Ε1D-16-3_4 | AG66: 16 | AI66: 42776Ε3 06η (ΣΤ)261Sκ14 | AJ66: 2017-02-10 | AK66: Ε3 06η (ΣΤ) | AL66: 261 | AM66: ΑΕΤ ΝΙΚΗ ΠΑΤΡΩΝ | AN66: S | AO66: κ14 | AP66: 10 | AQ66: 2452 | AR66: 606
X67: ΑΟ ΠΟΣΕΙΔΩΝ ΛΟΥΤΡΑΚΙΟΥ | Y67: 265 | Z67: ΣΤ | AD67: ΟΥΛΑΣΟΓΛΟΥ Ν | AF67: Ε1D-16-5_8 | AG67: 10 | AI67: =AJ67&AK67&AL67&AN67&AO67 -> 42776Ε3 06η (ΣΤ)261Sκ16 | AJ67: 2017-02-10 | AK67: Ε3 06η (ΣΤ) | AL67: 261 | AM67: ΑΕΤ ΝΙΚΗ ΠΑΤΡΩΝ | AN67: S | AO67: κ16 | AP67: 11 | AQ67: 2453 | AR67: 606
X68: ΑΟ ΣΙΚΥΩΝΟΣ ΚΙΑΤΟΥ | Y68: 266 | Z68: ΣΤ | AD68: ΟΥΝΑΝΙΔΟΥ Λ | AF68: Ε1D-16-9_16 | AG68: 8 | AI68: 42783Ε3 07η (Γ)186Sα12 | AJ68: 2017-02-17 | AK68: Ε3 07η (Γ) | AL68: 186 | AM68: ΟΑ ΒΕΡΟΙΑΣ | AN68: S | AO68: α12 | AP68: 5 | AQ68: 2454 | AR68: 607
X69: ΑΟ ΤΑΤΑΥΛΑ ΚΩΝΣΤ | Y69: 421 | Z69: ΙΑ | AD69: ΟΥΡΑΝΙΔΗΣ Φ | AF69: Ε1D-16-17_32 | AG69: 0 | AI69: 42783Ε3 07η (Γ)181Sκ12 | AJ69: 2017-02-17 | AK69: Ε3 07η (Γ) | AL69: 181 | AM69: ΓΑΣ ΚΑΡΑΤΕ ΕΡΜΗΣ | AN69: S | AO69: κ12 | AP69: 9 | AQ69: 2455 | AR69: 607
X70: ΑΟ ΤΑΤΟΪΟΥ | Y70: 330 | Z70: Η | AD70: ΠΑΛΑΙΣΤΗ Γ | AF70: Ε1D-16-wo | AG70: 0 | AI70: 42783Ε3 07η (Γ)186Sκ16 | AJ70: 2017-02-17 | AK70: Ε3 07η (Γ) | AL70: 186 | AM70: ΟΑ ΒΕΡΟΙΑΣ | AN70: S | AO70: κ16 | AP70: 11 | AQ70: 2456 | AR70: 607
X71: ΑΟ ΤΕΡΨΙΘΕΑΣ ΓΛΥΦΑΔΑΣ | Y71: 422 | Z71: ΙΑ | AD71: ΠΑΛΑΙΣΤΗ Ν | AF71: Ε1S-18-1st | AG71: 150 | AI71: 42783Ε3 07η (Ζ)309Sα12 | AJ71: 2017-02-17 | AK71: Ε3 07η (Ζ) | AL71: 309 | AM71: ΟΑ ΣΟΥΔΑΣ | AN71: S | AO71: α12 | AP71: 5 | AQ71: 2457 | AR71: 608
X72: ΑΟ ΦΙΛΙΠΠΟΣ ΠΟΛΥΔΡΟΣΟΥ | Y72: 331 | Z72: Η | AD72: ΠΑΛΑΙΣΤΗ Χ | AF72: Ε1S-18-2nd | AG72: 125 | AI72: 42783Ε3 07η (Ζ)310Sα14 | AJ72: 2017-02-17 | AK72: Ε3 07η (Ζ) | AL72: 310 | AM72: ΟΑ ΧΑΝΙΩΝ | AN72: S | AO72: α14 | AP72: 6 | AQ72: 2458 | AR72: 608
X73: ΑΟ ΦΟΥΡΕΣΙ ΓΛ ΝΕΡΩΝ | Y73: 483 | Z73: Η | AD73: ΠΑΝΤΕΛΙΔΗΣ Σ | AF73: Ε1S-18-3_4 | AG73: 75 | AI73: 42783Ε3 07η (Ζ)309Sα16 | AJ73: 2017-02-17 | AK73: Ε3 07η (Ζ) | AL73: 309 | AM73: ΟΑ ΣΟΥΔΑΣ | AN73: S | AO73: α16 | AP73: 7 | AQ73: 2459 | AR73: 608
X74: ΑΟ ΧΡΥΣΟΥΠΟΛΗΣ | Y74: 104 | Z74: Α | AD74: ΠΑΠΑΒΑΣΙΛΕΙΟΥ Χ | AF74: Ε1S-18-5_8 | AG74: 50 | AI74: 42783Ε3 07η (Ζ)309Sκ12 | AJ74: 2017-02-17 | AK74: Ε3 07η (Ζ) | AL74: 309 | AM74: ΟΑ ΣΟΥΔΑΣ | AN74: S | AO74: κ12 | AP74: 9 | AQ74: 2460 | AR74: 608
X75: ΑΟΑ ΑΙΓΑΛΕΩ 92 | Y75: 373 | Z75: Θ | AD75: ΠΑΠΑΝΙΚΟΛΑΟΥ Γ | AF75: Ε1S-18-9_16 | AG75: 37.5 | AI75: 42783Ε3 07η (Ζ)298Sκ14 | AJ75: 2017-02-17 | AK75: Ε3 07η (Ζ) | AL75: 298 | AM75: ΑΚΑΔ ΑΝΤΙΣΦ ΧΑΝΙΩΝ | AN75: S | AO75: κ14 | AP75: 10 | AQ75: 2461 | AR75: 608
X76: ΑΟΑ ΑΛΕΞΑΝΔΡΟΣ Β | Y76: 333 | Z76: Η | AD76: ΠΑΠΑΧΡΗΣΤΟΥ Δ | AF76: Ε1S-18-17_32 | AG76: 5 | AI76: 42783Ε3 07η (Ζ)309Sκ16 | AJ76: 2017-02-17 | AK76: Ε3 07η (Ζ) | AL76: 309 | AM76: ΟΑ ΣΟΥΔΑΣ | AN76: S | AO76: κ16 | AP76: 11 | AQ76: 2462 | AR76: 608
X77: ΑΟΑ ΑΜΠΕΛ ΜΕΝΕΜΕΝΗΣ | Y77: 128 | Z77: Β | AD77: ΠΑΠΠΑΣ Α | AF77: Ε1S-18-q8 | AG77: 10 | AI77: 42784Ε3 07η (Γ)181Sα16 | AJ77: 2017-02-18 | AK77: Ε3 07η (Γ) | AL77: 181 | AM77: ΓΑΣ ΚΑΡΑΤΕ ΕΡΜΗΣ | AN77: S | AO77: α16 | AP77: 7 | AQ77: 2463 | AR77: 609
X78: ΑΟΑ ΑΡΓΥΡΟΥΠΟΛΗΣ | Y78: 423 | Z78: ΙΑ | AD78: ΠΑΠΠΑΣ Π | AF78: Ε1S-18-q16 | AG78: 10 | AI78: 42786ITF (BAVARIAN)14Dα18 | AJ78: 2017-02-20 | AK78: ITF (BAVARIAN) | AL78: 14 | AM78: ITF | AN78: D | AO78: α18 | AP78: 16 | AQ78: 2464 | AR78: 610
X79: ΑΟΑ ΑΣΤΕΡΑΣ ΘΕΣ | Y79: 129 | Z79: Β | AD79: ΠΑΤΡΙΚΙΟΣ Ν | AF79: Ε1S-18-q8/2 | AG79: 5 | AI79: 42786TE (BAKU JUNIOR)15Sα14 | AJ79: 2017-02-20 | AK79: TE (BAKU JUNIOR) | AL79: 15 | AM79: Tennis Europe | AN79: S | AO79: α14 | AP79: 6 | AQ79: 2465 | AR79: 611
X80: ΑΟΑ ΑΤΤΙΚΟΣ ΗΛΙΟΣ | Y80: 334 | Z80: Η | AD80: ΠΑΤΣΟΥΡΑΚΟΥ Δ | AF80: Ε1S-18-q32 | AG80: 5 | AI80: 42786TE (BAKU JUNIOR)15Dα14 | AJ80: 2017-02-20 | AK80: TE (BAKU JUNIOR) | AL80: 15 | AM80: Tennis Europe | AN80: D | AO80: α14 | AP80: 14 | AQ80: 2466 | AR80: 611
X81: ΑΟΑ ΔΗΜΟΥ ΕΛΕΥΘΕΡΩΝ | Y81: 105 | Z81: Α | AD81: ΠΕΡΝΑΓΚΙΔΗ Γ | AF81: Ε1S-18-33_64 | AG81: 0 | AI81: 42791Ε2α (Ε)256Sα12 | AJ81: 2017-02-25 | AK81: Ε2α (Ε) | AL81: 256 | AM81: ΦΘΙΩΤΙΚΟΣ ΟΑ | AN81: S | AO81: α12 | AP81: 5 | AQ81: 2467 | AR81: 612
X82: ΑΟΑ ΕΛΕΥΣΙΝΑΣ | Y82: 441 | Z82: Θ | AD82: ΠΟΝΤΙΔΑΣ Α | AF82: Ε1S-18-q | AG82: 0 | AI82: 42791Ε2α (Ε)256Dα12 | AJ82: 2017-02-25 | AK82: Ε2α (Ε) | AL82: 256 | AM82: ΦΘΙΩΤΙΚΟΣ ΟΑ | AN82: D | AO82: α12 | AP82: 13 | AQ82: 2468 | AR82: 612
X83: ΑΟΑ ΗΛΙΟΥΠΟΛΗΣ | Y83: 424 | Z83: ΙΑ | AD83: ΠΡΑΣΙΝΟΣ Β | AF83: Ε1S-18-q64 | AG83: 0 | AI83: 42791Ε2α (Ε)244Sα14 | AJ83: 2017-02-25 | AK83: Ε2α (Ε) | AL83: 244 | AM83: ΟΑ ΜΑΓΝΗΣΙΑΣ | AN83: S | AO83: α14 | AP83: 6 | AQ83: 2469 | AR83: 612
X84: ΑΟΑ ΚΑΒΑΛΑΣ | Y84: 106 | Z84: Α | AD84: ΠΡΙΤΣΚΑΣ Π | AF84: Ε1S-18-q128 | AG84: 0 | AI84: 42791Ε2α (Ε)244Dα14 | AJ84: 2017-02-25 | AK84: Ε2α (Ε) | AL84: 244 | AM84: ΟΑ ΜΑΓΝΗΣΙΑΣ | AN84: D | AO84: α14 | AP84: 14 | AQ84: 2470 | AR84: 612
X85: ΑΟΑ ΚΑΒΟΥΡΙΟΥ | Y85: 442 | Z85: ΙΑ | AD85: ΣΑΚΚΑΣ Β | AF85: Ε1S-18-q256 | AG85: 0 | AI85: 42791Ε2α (Ε)244Sα16 | AJ85: 2017-02-25 | AK85: Ε2α (Ε) | AL85: 244 | AM85: ΟΑ ΜΑΓΝΗΣΙΑΣ | AN85: S | AO85: α16 | AP85: 7 | AQ85: 2471 | AR85: 612
X86: ΑΟΑ ΚΑΙΣΑΡΙΑΝΗΣ | Y86: 390 | Z86: Θ | AD86: ΣΑΜΑΡΑ Ε | AF86: Ε1S-18-wo | AG86: 0 | AI86: 42791Ε2α (Ε)244Dα16 | AJ86: 2017-02-25 | AK86: Ε2α (Ε) | AL86: 244 | AM86: ΟΑ ΜΑΓΝΗΣΙΑΣ | AN86: D | AO86: α16 | AP86: 15 | AQ86: 2472 | AR86: 612
X87: ΑΟΑ ΚΑΣΤΟΡΙΑΣ | Y87: 463 | Z87: Γ | AD87: ΣΑΡΑΤΖΙΔΗΣ Δ | AF87: Ε1D-18-1st | AG87: 37.5 | AI87: 42791Ε2α (Ε)256Sκ12 | AJ87: 2017-02-25 | AK87: Ε2α (Ε) | AL87: 256 | AM87: ΦΘΙΩΤΙΚΟΣ ΟΑ | AN87: S | AO87: κ12 | AP87: 9 | AQ87: 2473 | AR87: 612
X88: ΑΟΑ ΚΑΤΕΡΙΝΗΣ | Y88: 171 | Z88: Γ | AD88: ΣΑΧΠΑΤΖΙΔΗΣ Γ | AF88: Ε1D-18-2nd | AG88: 32.5 | AI88: 42791Ε2α (Ε)256Dκ12 | AJ88: 2017-02-25 | AK88: Ε2α (Ε) | AL88: 256 | AM88: ΦΘΙΩΤΙΚΟΣ ΟΑ | AN88: D | AO88: κ12 | AP88: 17 | AQ88: 2474 | AR88: 612
X89: ΑΟΑ ΚΟΖΑΝΗΣ | Y89: 464 | Z89: Γ | AD89: ΣΙΑΠΑΤΗΣ Γ | AF89: Ε1D-18-3_4 | AG89: 20 | AI89: 42791Ε2α (Ε)244Sκ14 | AJ89: 2017-02-25 | AK89: Ε2α (Ε) | AL89: 244 | AM89: ΟΑ ΜΑΓΝΗΣΙΑΣ | AN89: S | AO89: κ14 | AP89: 10 | AQ89: 2475 | AR89: 612
X90: ΑΟΑ ΛΕ ΡΑΚΕΤ | Y90: 130 | Z90: Β | AD90: ΣΙΟΝΤΗ Η | AF90: Ε1D-18-5_8 | AG90: 12.5 | AI90: 42791Ε2α (Ε)244Dκ14 | AJ90: 2017-02-25 | AK90: Ε2α (Ε) | AL90: 244 | AM90: ΟΑ ΜΑΓΝΗΣΙΑΣ | AN90: D | AO90: κ14 | AP90: 18 | AQ90: 2476 | AR90: 612
X91: ΑΟΑ ΜΕΓΑΛΟΠΟΛΗΣ | Y91: 267 | Z91: ΣΤ | AD91: ΣΙΡΠΟΣ Π | AF91: Ε1D-18-9_16 | AG91: 10 | AI91: 42791Ε2α (Ε)244Sκ16 | AJ91: 2017-02-25 | AK91: Ε2α (Ε) | AL91: 244 | AM91: ΟΑ ΜΑΓΝΗΣΙΑΣ | AN91: S | AO91: κ16 | AP91: 11 | AQ91: 2477 | AR91: 612
X92: ΑΟΑ Ν ΠΕΡΑΜΟΥ ΤΙΤΑΝΕΣ | Y92: 107 | Z92: Α | AD92: ΣΚΟΥΡΤΙΑΣ Ε | AF92: Ε1D-18-wo | AG92: 0 | AI92: 42791Ε2α (Ε)244Dκ16 | AJ92: 2017-02-25 | AK92: Ε2α (Ε) | AL92: 244 | AM92: ΟΑ ΜΑΓΝΗΣΙΑΣ | AN92: D | AO92: κ16 | AP92: 19 | AQ92: 2478 | AR92: 612
X93: ΑΟΑ ΠΑΠΑΓΟΥ | Y93: 425 | Z93: ΙΑ | AD93: ΣΠΑΘΗΣ Μ | AF93: Ε1D-18-17_32 | AG93: 0 | AI93: 42791Ε2α (Ζ)305Sα12 | AJ93: 2017-02-25 | AK93: Ε2α (Ζ) | AL93: 305 | AM93: ΗΡΑΚΛΕΙΟ ΟΑΑ | AN93: S | AO93: α12 | AP93: 5 | AQ93: 2479 | AR93: 613
X94: ΑΟΑ ΠΑΤΡΩΝ | Y94: 268 | Z94: ΣΤ | AD94: ΣΤΑΜΑΤΙΑΔΗΣ Γ | AF94: Ε2S-12-1st | AG94: 15 | AI94: 42791Ε2α (Ζ)305Dα12 | AJ94: 2017-02-25 | AK94: Ε2α (Ζ) | AL94: 305 | AM94: ΗΡΑΚΛΕΙΟ ΟΑΑ | AN94: D | AO94: α12 | AP94: 13 | AQ94: 2480 | AR94: 613
X95: ΑΟΑ ΠΟΣΕΙΔΩΝ ΘΕΣ | Y95: 131 | Z95: Β | AD95: ΣΤΑΜΑΤΙΑΔΟΥ Ε | AF95: Ε2S-12-2nd | AG95: 12.5 | AI95: 42791Ε2α (Ζ)305Sα14 | AJ95: 2017-02-25 | AK95: Ε2α (Ζ) | AL95: 305 | AM95: ΗΡΑΚΛΕΙΟ ΟΑΑ | AN95: S | AO95: α14 | AP95: 6 | AQ95: 2481 | AR95: 613
X96: ΑΟΑ ΠΡΩΤΑΘΛ ΚΑΒΑΛΑΣ | Y96: 108 | Z96: Α | AD96: ΣΤΑΦΥΛΙΔΗΣ Α | AF96: Ε2S-12-3_4 | AG96: 7.5 | AI96: 42791Ε2α (Ζ)305Dα14 | AJ96: 2017-02-25 | AK96: Ε2α (Ζ) | AL96: 305 | AM96: ΗΡΑΚΛΕΙΟ ΟΑΑ | AN96: D | AO96: α14 | AP96: 14 | AQ96: 2482 | AR96: 613
X97: ΑΟΑ ΡΕΘΥΜΝΟ ΤΚ | Y97: 476 | Z97: Ζ | AD97: ΣΤΕΦΑΝΙΔΗΣ Γ | AF97: Ε2S-12-5_8 | AG97: 5 | AI97: 42791Ε2α (Ζ)305Sα16 | AJ97: 2017-02-25 | AK97: Ε2α (Ζ) | AL97: 305 | AM97: ΗΡΑΚΛΕΙΟ ΟΑΑ | AN97: S | AO97: α16 | AP97: 7 | AQ97: 2483 | AR97: 613
X98: ΑΟΑ ΣΤΑΥΡΟΥΠΟΛΗΣ ΙΦΙΤΟΣ | Y98: 132 | Z98: Β | AD98: ΣΤΟΛΗ Κ | AF98: Ε2S-12-9_16 | AG98: 4 | AI98: 42791Ε2α (Ζ)305Dα16 | AJ98: 2017-02-25 | AK98: Ε2α (Ζ) | AL98: 305 | AM98: ΗΡΑΚΛΕΙΟ ΟΑΑ | AN98: D | AO98: α16 | AP98: 15 | AQ98: 2484 | AR98: 613
X99: ΑΟΑ ΥΕΛΟΥ | Y99: 335 | Z99: Η | AD99: ΤΑΜΠΟΣΗ Τ | AF99: Ε2S-12-17_32 | AG99: 0.5 | AI99: 42791Ε2α (Ζ)305Sκ12 | AJ99: 2017-02-25 | AK99: Ε2α (Ζ) | AL99: 305 | AM99: ΗΡΑΚΛΕΙΟ ΟΑΑ | AN99: S | AO99: κ12 | AP99: 9 | AQ99: 2485 | AR99: 613
X100: ΑΟΑ ΦΙΛΟΘΕΗΣ | Y100: 336 | Z100: Η | AD100: ΤΑΡΑΜΟΝΛΗΣ Ι | AF100: Ε2S-12-q8 | AG100: 1 | AI100: 42791Ε2α (Ζ)305Dκ12 | AJ100: 2017-02-25 | AK100: Ε2α (Ζ) | AL100: 305 | AM100: ΗΡΑΚΛΕΙΟ ΟΑΑ | AN100: D | AO100: κ12 | AP100: 17 | AQ100: 2486 | AR100: 613
X101: ΑΟΑ Χ ΤΡΙΠΟΛΗΣ | Y101: 500 | Z101: ΣΤ | AD101: ΤΖΙΓΚΟΥΝΑΚΗΣ Κ | AF101: Ε2S-12-q16 | AG101: 1 | AI101: 42791Ε2α (Ζ)305Sκ14 | AJ101: 2017-02-25 | AK101: Ε2α (Ζ) | AL101: 305 | AM101: ΗΡΑΚΛΕΙΟ ΟΑΑ | AN101: S | AO101: κ14 | AP101: 10 | AQ101: 2487 | AR101: 613
X102: ΑΟΑ ΧΑΪΔΑΡΙΟΥ | Y102: 374 | Z102: Θ | AD102: ΤΖΟΒΑΡΑΣ Ν | AF102: Ε2S-12-q8/2 | AG102: 0.5 | AI102: 42791Ε2α (Ζ)305Dκ14 | AJ102: 2017-02-25 | AK102: Ε2α (Ζ) | AL102: 305 | AM102: ΗΡΑΚΛΕΙΟ ΟΑΑ | AN102: D | AO102: κ14 | AP102: 18 | AQ102: 2488 | AR102: 613
X103: ΑΠΜΣ ΑΣΚΗΣΗ ΗΡΑΚΛΕΙΟΥ | Y103: 302 | Z103: Ζ | AD103: ΤΟΚΑΤΛΙΔΗΣ Χ | AF103: Ε2S-12-q32 | AG103: 0.5 | AI103: 42791Ε2α (Ζ)305Sκ16 | AJ103: 2017-02-25 | AK103: Ε2α (Ζ) | AL103: 305 | AM103: ΗΡΑΚΛΕΙΟ ΟΑΑ | AN103: S | AO103: κ16 | AP103: 11 | AQ103: 2489 | AR103: 613
X104: ΑΠΟ ΣΑΝΗ | Y104: 337 | Z104: Η | AD104: ΤΟΥΤΟΥΚΤΣΗΣ Ε | AF104: Ε2S-12-33_64 | AG104: 0 | AI104: 42791Ε2α (Ζ)305Dκ16 | AJ104: 2017-02-25 | AK104: Ε2α (Ζ) | AL104: 305 | AM104: ΗΡΑΚΛΕΙΟ ΟΑΑ | AN104: D | AO104: κ16 | AP104: 19 | AQ104: 2490 | AR104: 613
X105: ΑΡΚΑΔΙΚΟΣ ΟΑ ΑΤΛΑΣ | Y105: 270 | Z105: ΣΤ | AD105: ΤΡΙΚΚΑ-ΨΩΜΑ Δ | AF105: Ε2S-12-q | AG105: 0 | AI105: 42791Ε2α (ΣΤ)294Sα12 | AJ105: 2017-02-25 | AK105: Ε2α (ΣΤ) | AL105: 294 | AM105: ΣΑ ΤΡΙΠΟΛΗΣ | AN105: S | AO105: α12 | AP105: 5 | AQ105: 2491 | AR105: 614
X106: ΑΣ ΑΘΛΟΠΑΙΔΕΙΑ ΝΑΞΟΥ | Y106: 509 | Z106: Η | AD106: ΤΣΑΓΛΙΩΤΗΣ Ε | AF106: Ε2S-12-q64 | AG106: 0 | AI106: 42791Ε2α (ΣΤ)294Dα12 | AJ106: 2017-02-25 | AK106: Ε2α (ΣΤ) | AL106: 294 | AM106: ΣΑ ΤΡΙΠΟΛΗΣ | AN106: D | AO106: α12 | AP106: 13 | AQ106: 2492 | AR106: 614
X107: ΑΣ ΑΚΑΔ ΠΡΩΤΑΘΛ ΠΕΥΚΩΝ | Y107: 133 | Z107: Β | AD107: ΤΣΑΡΚΝΙΑΣ Π | AF107: Ε2S-12-q128 | AG107: 0 | AI107: 42791Ε2α (ΣΤ)260Sα14 | AJ107: 2017-02-25 | AK107: Ε2α (ΣΤ) | AL107: 260 | AM107: ΑΕΚ ΤΡΙΠΟΛΗΣ | AN107: S | AO107: α14 | AP107: 6 | AQ107: 2493 | AR107: 614
X108: ΑΣ ΑΚΡΟΠΟΛΙΣ | Y108: 338 | Z108: Η | AD108: ΤΣΑΡΚΝΙΑΣ Σ | AF108: Ε2S-12-q256 | AG108: 0 | AI108: 42791Ε2α (ΣΤ)260Dα14 | AJ108: 2017-02-25 | AK108: Ε2α (ΣΤ) | AL108: 260 | AM108: ΑΕΚ ΤΡΙΠΟΛΗΣ | AN108: D | AO108: α14 | AP108: 14 | AQ108: 2494 | AR108: 614
X109: ΑΣ ΑΝΤΙΣΦΑΙΡΙΣΗ κ ΖΩΗ | Y109: 444 | Z109: Ε | AD109: ΤΣΙΑΡΤΑΣ Β | AF109: Ε2S-12-wo | AG109: 0 | AI109: 42791Ε2α (ΣΤ)294Sα16 | AJ109: 2017-02-25 | AK109: Ε2α (ΣΤ) | AL109: 294 | AM109: ΣΑ ΤΡΙΠΟΛΗΣ | AN109: S | AO109: α16 | AP109: 7 | AQ109: 2495 | AR109: 614
X110: ΑΣ ΑΠΟΛΛΩΝ ΚΑΛΥΜΝΟΥ | Y110: 375 | Z110: Θ | AD110: ΤΣΟΥΛΦΑ Α | AF110: Ε2D-12-1st | AG110: 4 | AI110: 42791Ε2α (ΣΤ)294Dα16 | AJ110: 2017-02-25 | AK110: Ε2α (ΣΤ) | AL110: 294 | AM110: ΣΑ ΤΡΙΠΟΛΗΣ | AN110: D | AO110: α16 | AP110: 15 | AQ110: 2496 | AR110: 614
X111: ΑΣ ΑΣΤΕΡΑΣ ΠΕΝΤΕΛΙΚΟΥ | Y111: 484 | Z111: Η | AD111: ΦΟΝΔΟΥΛΑΚΟΣ Μ | AF111: Ε2D-12-2nd | AG111: 3 | AI111: 42791Ε2α (ΣΤ)294Sκ12 | AJ111: 2017-02-25 | AK111: Ε2α (ΣΤ) | AL111: 294 | AM111: ΣΑ ΤΡΙΠΟΛΗΣ | AN111: S | AO111: κ12 | AP111: 9 | AQ111: 2497 | AR111: 614
X112: ΑΣ ΒΑ ΚΥΝΟΥΡΙΑΣ ΑΙΟΛΟΣ | Y112: 271 | Z112: ΣΤ | AD112: ΧΑΝΤΖΗΣ Δ | AF112: Ε2D-12-3_4 | AG112: 2 | AI112: 42791Ε2α (ΣΤ)294Dκ12 | AJ112: 2017-02-25 | AK112: Ε2α (ΣΤ) | AL112: 294 | AM112: ΣΑ ΤΡΙΠΟΛΗΣ | AN112: D | AO112: κ12 | AP112: 17 | AQ112: 2498 | AR112: 614
X113: ΑΣ ΒΕΡΟΙΑΣ ΗΜΑΘΙΩΝ | Y113: 173 | Z113: Γ | AD113: ΧΑΡΜΑΝΑΣ Α | AF113: Ε2D-12-5_8 | AG113: 1.5 | AI113: 42791Ε2α (ΣΤ)260Sκ14 | AJ113: 2017-02-25 | AK113: Ε2α (ΣΤ) | AL113: 260 | AM113: ΑΕΚ ΤΡΙΠΟΛΗΣ | AN113: S | AO113: κ14 | AP113: 10 | AQ113: 2499 | AR113: 614
X114: ΑΣ Δ ΚΟΛΛΕΓΙΟΥ ICBS 2009 | Y114: 134 | Z114: Β | AD114: ΧΑΤΖΗΜΕΝΤΩΡ Α | AF114: Ε2D-12-9_16 | AG114: 1 | AI114: 42791Ε2α (ΣΤ)294Sκ16 | AJ114: 2017-02-25 | AK114: Ε2α (ΣΤ) | AL114: 294 | AM114: ΣΑ ΤΡΙΠΟΛΗΣ | AN114: S | AO114: κ16 | AP114: 11 | AQ114: 2500 | AR114: 614
X115: ΑΣ Η ΠΑΡΝΗΘΑ | Y115: 376 | Z115: Θ | AD115: ΧΡΙΣΤΟΠΟΥΛΟΣ Χ | AF115: Ε2D-12-17_32 | AG115: 0 | AI115: 42791Ε2α (ΣΤ)294Dκ16 | AJ115: 2017-02-25 | AK115: Ε2α (ΣΤ) | AL115: 294 | AM115: ΣΑ ΤΡΙΠΟΛΗΣ | AN115: D | AO115: κ16 | AP115: 19 | AQ115: 2501 | AR115: 614
X116: ΑΣ ΚΑΡΠΕΝΗΣΙ ΤΕΝΙΣ ΚΛΑΜΠ | Y116: 224 | Z116: Ε | AD116: ΧΡΟΝΗ Ο | AF116: Ε2D-12-wo | AG116: 0 | AI116: 42793TE (LE CHAMBON)15Sα16 | AJ116: 2017-02-27 | AK116: TE (LE CHAMBON) | AL116: 15 | AM116: Tennis Europe | AN116: S | AO116: α16 | AP116: 7 | AQ116: 2502 | AR116: 615
X117: ΑΣ ΚΟΛΛΕΓΙΟΥ ΝΤΕΡΗ | Y117: 340 | Z117: Η | AF117: Ε2S-14-1st | AG117: 30 | AI117: 42793TE (LE CHAMBON)15Dα16 | AJ117: 2017-02-27 | AK117: TE (LE CHAMBON) | AL117: 15 | AM117: Tennis Europe | AN117: D | AO117: α16 | AP117: 15 | AQ117: 2503 | AR117: 615
X118: ΑΣ ΜΑΧΗΤΕΣ ΠΕΥΚΩΝ | Y118: 135 | Z118: Β | AF118: Ε2S-14-2nd | AG118: 25 | AI118: 42797Ε3 09η (Α)122Sα12 | AJ118: 2017-03-03 | AK118: Ε3 09η (Α) | AL118: 122 | AM118: ΣΕΡΡΑΪΚΟΣ ΟΑ | AN118: S | AO118: α12 | AP118: 5 | AQ118: 2504 | AR118: 616
X119: ΑΣ Ν ΒΟΥΤΖΑ ΠΡΟΟΔΟΣ | Y119: 341 | Z119: Η | AF119: Ε2S-14-3_4 | AG119: 15 | AI119: 42797Ε3 09η (Α)122Sα14 | AJ119: 2017-03-03 | AK119: Ε3 09η (Α) | AL119: 122 | AM119: ΣΕΡΡΑΪΚΟΣ ΟΑ | AN119: S | AO119: α14 | AP119: 6 | AQ119: 2505 | AR119: 616
X120: ΑΣ ΝΗΡΕΑΣ ΒΕΡΟΙΑΣ | Y120: 174 | Z120: Γ | AF120: Ε2S-14-5_8 | AG120: 10 | AI120: 42797Ε3 09η (Α)122Sα16 | AJ120: 2017-03-03 | AK120: Ε3 09η (Α) | AL120: 122 | AM120: ΣΕΡΡΑΪΚΟΣ ΟΑ | AN120: S | AO120: α16 | AP120: 7 | AQ120: 2506 | AR120: 616
X121: ΑΣ ΝΙΚΗ ΑΓ ΔΗΜΗΤΡΙΟΥ | Y121: 507 | Z121: ΙΑ | AF121: Ε2S-14-9_16 | AG121: 7.5 | AI121: 42797Ε3 09η (Α)122Sκ12 | AJ121: 2017-03-03 | AK121: Ε3 09η (Α) | AL121: 122 | AM121: ΣΕΡΡΑΪΚΟΣ ΟΑ | AN121: S | AO121: κ12 | AP121: 9 | AQ121: 2507 | AR121: 616
X122: ΑΣ ΟΛΥΜΠ ΧΩΡΙΟΥ Ο ΦΟΙΒΟΣ | Y122: 377 | Z122: Θ | AF122: Ε2S-14-17_32 | AG122: 1 | AI122: 42797Ε3 09η (Α)122Sκ14 | AJ122: 2017-03-03 | AK122: Ε3 09η (Α) | AL122: 122 | AM122: ΣΕΡΡΑΪΚΟΣ ΟΑ | AN122: S | AO122: κ14 | AP122: 10 | AQ122: 2508 | AR122: 616
X123: ΑΣ ΟΡΦΕΑΣ ΛΑΡΙΣΑΣ | Y123: 225 | Z123: Ε | AF123: Ε2S-14-q8 | AG123: 2 | AI123: 42797Ε3 09η (Α)122Sκ16 | AJ123: 2017-03-03 | AK123: Ε3 09η (Α) | AL123: 122 | AM123: ΣΕΡΡΑΪΚΟΣ ΟΑ | AN123: S | AO123: κ16 | AP123: 11 | AQ123: 2509 | AR123: 616
X124: ΑΣ ΠΑΝΟΡΑΜΑ | Y124: 136 | Z124: Β | AF124: Ε2S-14-q16 | AG124: 2 | AI124: 42797Ε3 09η (Γ)185Sα14 | AJ124: 2017-03-03 | AK124: Ε3 09η (Γ) | AL124: 185 | AM124: ΟΑ ΑΡΙΔΑΙΑΣ | AN124: S | AO124: α14 | AP124: 6 | AQ124: 2510 | AR124: 617
X125: ΑΣ ΠΑΠΑΓΟΥ | Y125: 498 | Z125: ΙΑ | AF125: Ε2S-14-q8/2 | AG125: 1 | AI125: 42797Ε3 09η (Γ)185Sκ14 | AJ125: 2017-03-03 | AK125: Ε3 09η (Γ) | AL125: 185 | AM125: ΟΑ ΑΡΙΔΑΙΑΣ | AN125: S | AO125: κ14 | AP125: 10 | AQ125: 2511 | AR125: 617
X126: ΑΣ ΠΕΝΤΕΛΗΣ ΑΣΤΕΡΑΣ | Y126: 445 | Z126: Η | AF126: Ε2S-14-q32 | AG126: 1 | AI126: 42797Ε3 09η (Ε)245Sα12 | AJ126: 2017-03-03 | AK126: Ε3 09η (Ε) | AL126: 245 | AM126: ΟΑ ΝΙΚΑΙΑ ΛΑΡΙΣΑΣ | AN126: S | AO126: α12 | AP126: 5 | AQ126: 2512 | AR126: 618
X127: ΑΣ ΠΕΡΑ | Y127: 427 | Z127: ΙΑ | AF127: Ε2S-14-33_64 | AG127: 0 | AI127: 42797Ε3 09η (Ε)245Sα16 | AJ127: 2017-03-03 | AK127: Ε3 09η (Ε) | AL127: 245 | AM127: ΟΑ ΝΙΚΑΙΑ ΛΑΡΙΣΑΣ | AN127: S | AO127: α16 | AP127: 7 | AQ127: 2513 | AR127: 618
X128: ΑΣ ΠΙΕΡΙΑ ΤΕΝΙΣ | Y128: 465 | Z128: Γ | AF128: Ε2S-14-q | AG128: 0 | AI128: 42797Ε3 09η (Ε)245Sκ12 | AJ128: 2017-03-03 | AK128: Ε3 09η (Ε) | AL128: 245 | AM128: ΟΑ ΝΙΚΑΙΑ ΛΑΡΙΣΑΣ | AN128: S | AO128: κ12 | AP128: 9 | AQ128: 2514 | AR128: 618
X129: ΑΣ ΣΠΑΡΤΑΚΟΣ ΓΛΥΦΑΔΑΣ | Y129: 428 | Z129: ΙΑ | AF129: Ε2S-14-q64 | AG129: 0 | AI129: 42797Ε3 09η (Ε)245Sκ16 | AJ129: 2017-03-03 | AK129: Ε3 09η (Ε) | AL129: 245 | AM129: ΟΑ ΝΙΚΑΙΑ ΛΑΡΙΣΑΣ | AN129: S | AO129: κ16 | AP129: 11 | AQ129: 2515 | AR129: 618
X130: ΑΣ ΤΕΝΙΣ ΚΛΑΜΠ ΚΟΖΑΝΗΣ | Y130: 176 | Z130: Γ | AF130: Ε2S-14-q128 | AG130: 0 | AI130: 42797Ε3 09η (Ζ)307Sα14 | AJ130: 2017-03-03 | AK130: Ε3 09η (Ζ) | AL130: 307 | AM130: ΟΑ ΡΕΘΥΜΝΟΥ | AN130: S | AO130: α14 | AP130: 6 | AQ130: 2516 | AR130: 619
X131: ΑΣ ΦΛΟΓΑ ΑΘΗΝΩΝ | Y131: 342 | Z131: Η | AF131: Ε2S-14-q256 | AG131: 0 | AI131: =AJ131&AK131&AL131&AN131&AO131 -> 42797Ε3 09η (Ζ)307Sκ14 | AJ131: 2017-03-03 | AK131: Ε3 09η (Ζ) | AL131: 307 | AM131: ΟΑ ΡΕΘΥΜΝΟΥ | AN131: S | AO131: κ14 | AP131: 10 | AQ131: 2517 | AR131: 619
X132: ΑΣ ΦΠ ΑΝΑΠΛΑΣΗΣ ΦΕΡΕΝΙΚΟΣ | Y132: 343 | Z132: Η | AF132: Ε2S-14-wo | AG132: 0 | AI132: 42800TE (16TH REALSPORT)15Sκ16 | AJ132: 2017-03-06 | AK132: TE (16TH REALSPORT) | AL132: 15 | AM132: Tennis Europe | AN132: S | AO132: κ16 | AP132: 11 | AQ132: 2518 | AR132: 620
X133: ΑΣΑ ΑΓΡΙΝΙΟΥ | Y133: 209 | Z133: Δ | AF133: Ε2D-14-1st | AG133: 8 | AI133: 42804Ε1α (ΙΑ)424Sα12 | AJ133: 2017-03-10 | AK133: Ε1α (ΙΑ) | AL133: 424 | AM133: ΑΟΑ ΗΛΙΟΥΠΟΛΗΣ | AN133: S | AO133: α12 | AP133: 5 | AQ133: 2519 | AR133: 621
X134: ΑΣΑ ΓΡΕΒΕΝΩΝ | Y134: 177 | Z134: Γ | AF134: Ε2D-14-2nd | AG134: 6 | AI134: 42804Ε1α (ΙΑ)424Dα12 | AJ134: 2017-03-10 | AK134: Ε1α (ΙΑ) | AL134: 424 | AM134: ΑΟΑ ΗΛΙΟΥΠΟΛΗΣ | AN134: D | AO134: α12 | AP134: 13 | AQ134: 2520 | AR134: 621
X135: ΑΣΑ ΕΛΠΙΔΑ ΣΟΥΦΛΙΟΥ | Y135: 443 | Z135: Α | AF135: Ε2D-14-3_4 | AG135: 4 | AI135: 42804Ε1α (ΙΑ)424Sα14 | AJ135: 2017-03-10 | AK135: Ε1α (ΙΑ) | AL135: 424 | AM135: ΑΟΑ ΗΛΙΟΥΠΟΛΗΣ | AN135: S | AO135: α14 | AP135: 6 | AQ135: 2521 | AR135: 621
X136: ΑΣΑ ΖΕΦΥΡΟΣ | Y136: 178 | Z136: Γ | AF136: Ε2D-14-5_8 | AG136: 3 | AI136: 42804Ε1α (ΙΑ)424Dα14 | AJ136: 2017-03-10 | AK136: Ε1α (ΙΑ) | AL136: 424 | AM136: ΑΟΑ ΗΛΙΟΥΠΟΛΗΣ | AN136: D | AO136: α14 | AP136: 14 | AQ136: 2522 | AR136: 621
X137: ΑΣΑ ΘΕΣΣΑΛΟΝΙΚΗΣ | Y137: 165 | Z137: Β | AF137: Ε2D-14-9_16 | AG137: 2 | AI137: 42804Ε1α (ΙΑ)435Sα16 | AJ137: 2017-03-10 | AK137: Ε1α (ΙΑ) | AL137: 435 | AM137: ΟΑ ΓΛΥΦΑΔΑΣ | AN137: S | AO137: α16 | AP137: 7 | AQ137: 2523 | AR137: 621
X138: ΑΣΑ ΛΑΡΙΣΑΣ | Y138: 226 | Z138: Ε | AF138: Ε2D-14-17_32 | AG138: 0 | AI138: 42804Ε1α (ΙΑ)435Dα16 | AJ138: 2017-03-10 | AK138: Ε1α (ΙΑ) | AL138: 435 | AM138: ΟΑ ΓΛΥΦΑΔΑΣ | AN138: D | AO138: α16 | AP138: 15 | AQ138: 2524 | AR138: 621
X139: ΑΣΑ ΜΑΥΡΟΧΩΡΙΟΥ ΚΑΣΤΟΡΙΑΣ | Y139: 179 | Z139: Γ | AF139: Ε2D-14-wo | AG139: 0 | AI139: 42804Ε1α (ΙΑ)435Sα18 | AJ139: 2017-03-10 | AK139: Ε1α (ΙΑ) | AL139: 435 | AM139: ΟΑ ΓΛΥΦΑΔΑΣ | AN139: S | AO139: α18 | AP139: 8 | AQ139: 2525 | AR139: 621
X140: ΑΣΑ ΜΥΤΙΛΗΝΗΣ | Y140: 491 | Z140: Θ | AF140: Ε2S-16-1st | AG140: 60 | AI140: 42804Ε1α (ΙΑ)424Sκ12 | AJ140: 2017-03-10 | AK140: Ε1α (ΙΑ) | AL140: 424 | AM140: ΑΟΑ ΗΛΙΟΥΠΟΛΗΣ | AN140: S | AO140: κ12 | AP140: 9 | AQ140: 2526 | AR140: 621
X141: ΑΣΑ ΠΑΜΒΩΤΙΣ ΙΩΑΝΝΙΝΩΝ | Y141: 210 | Z141: Δ | AF141: Ε2S-16-2nd | AG141: 50 | AI141: 42804Ε1α (ΙΑ)424Dκ12 | AJ141: 2017-03-10 | AK141: Ε1α (ΙΑ) | AL141: 424 | AM141: ΑΟΑ ΗΛΙΟΥΠΟΛΗΣ | AN141: D | AO141: κ12 | AP141: 17 | AQ141: 2527 | AR141: 621
X142: ΑΣΑ ΠΑΝΟΡΑΜΑΤΟΣ ΠΥΛΑΙΑΣ | Y142: 137 | Z142: Β | AF142: Ε2S-16-3_4 | AG142: 30 | AI142: 42804Ε1α (ΙΑ)424Sκ14 | AJ142: 2017-03-10 | AK142: Ε1α (ΙΑ) | AL142: 424 | AM142: ΑΟΑ ΗΛΙΟΥΠΟΛΗΣ | AN142: S | AO142: κ14 | AP142: 10 | AQ142: 2528 | AR142: 621
X143: ΑΣΑ ΤΡΙΚΑΛΩΝ | Y143: 508 | Z143: Ε | AF143: Ε2S-16-5_8 | AG143: 20 | AI143: 42804Ε1α (ΙΑ)424Dκ14 | AJ143: 2017-03-10 | AK143: Ε1α (ΙΑ) | AL143: 424 | AM143: ΑΟΑ ΗΛΙΟΥΠΟΛΗΣ | AN143: D | AO143: κ14 | AP143: 18 | AQ143: 2529 | AR143: 621
X144: ΑΣΑ ΩΡΩΠΟΥ | Y144: 344 | Z144: Η | AF144: Ε2S-16-9_16 | AG144: 16 | AI144: 42804Ε1α (ΙΑ)435Sκ16 | AJ144: 2017-03-10 | AK144: Ε1α (ΙΑ) | AL144: 435 | AM144: ΟΑ ΓΛΥΦΑΔΑΣ | AN144: S | AO144: κ16 | AP144: 11 | AQ144: 2530 | AR144: 621
X145: ΑΣΕ ΘΗΣΕΑΣ ΑΓ ΔΗΜΗΤΡΙΟΥ | Y145: 417 | Z145: ΙΑ | AF145: Ε2S-16-17_32 | AG145: 2 | AI145: 42804Ε1α (ΙΑ)435Dκ16 | AJ145: 2017-03-10 | AK145: Ε1α (ΙΑ) | AL145: 435 | AM145: ΟΑ ΓΛΥΦΑΔΑΣ | AN145: D | AO145: κ16 | AP145: 19 | AQ145: 2531 | AR145: 621
X146: ΑΤ ΧΟΛΑΡΓΟΥ | Y146: 429 | Z146: ΙΑ | AF146: Ε2S-16-q8 | AG146: 4 | AI146: 42804Ε1α (ΙΑ)435Sκ18 | AJ146: 2017-03-10 | AK146: Ε1α (ΙΑ) | AL146: 435 | AM146: ΟΑ ΓΛΥΦΑΔΑΣ | AN146: S | AO146: κ18 | AP146: 12 | AQ146: 2532 | AR146: 621
X147: ΑΧΑΪΚΟΣ ΟΑ | Y147: 502 | Z147: ΣΤ | AF147: Ε2S-16-q16 | AG147: 4 | AI147: 42804Ε1α (ΙΑ)435Dκ18 | AJ147: 2017-03-10 | AK147: Ε1α (ΙΑ) | AL147: 435 | AM147: ΟΑ ΓΛΥΦΑΔΑΣ | AN147: D | AO147: κ18 | AP147: 20 | AQ147: 2533 | AR147: 621
X148: ΑΨΛ ΑΓ ΓΕΩΡΓΙΟΥ ΗΣΙΟΔΟΣ | Y148: 227 | Z148: Ε | AF148: Ε2S-16-q8/2 | AG148: 2 | AI148: 42804Ε3 10η (Δ)217Sα14 | AJ148: 2017-03-10 | AK148: Ε3 10η (Δ) | AL148: 217 | AM148: ΟΑ ΑΡΤΑΣ | AN148: S | AO148: α14 | AP148: 6 | AQ148: 2534 | AR148: 622
X149: ΑΨΛ ΜΕΔΕΩΝ | Y149: 228 | Z149: Ε | AF149: Ε2S-16-q32 | AG149: 2 | AI149: 42804Ε3 10η (Δ)217Sκ14 | AJ149: 2017-03-10 | AK149: Ε3 10η (Δ) | AL149: 217 | AM149: ΟΑ ΑΡΤΑΣ | AN149: S | AO149: κ14 | AP149: 10 | AQ149: 2535 | AR149: 622
X150: ΓΑΕ ΤΡΙΦΥΛΙΑΣ ΚΥΠΑΡΙΣΣΕΥΣ | Y150: 273 | Z150: ΣΤ | AF150: Ε2S-16-33_64 | AG150: 0 | AI150: 42804Ε3 10η (ΣΤ)289Sα14 | AJ150: 2017-03-10 | AK150: Ε3 10η (ΣΤ) | AL150: 289 | AM150: ΟΑ ΡΙΟΥ | AN150: S | AO150: α14 | AP150: 6 | AQ150: 2536 | AR150: 623
X151: ΓΑΣ ΑΛΕΞΑΝΔΡΕΙΑ | Y151: 466 | Z151: Γ | AF151: Ε2S-16-q | AG151: 0 | AI151: 42804Ε3 10η (ΣΤ)289Sκ14 | AJ151: 2017-03-10 | AK151: Ε3 10η (ΣΤ) | AL151: 289 | AM151: ΟΑ ΡΙΟΥ | AN151: S | AO151: κ14 | AP151: 10 | AQ151: 2537 | AR151: 623
X152: ΓΑΣ ΓΟΥΡΝΩΝ | Y152: 303 | Z152: Ζ | AF152: Ε2S-16-q64 | AG152: 0 | AI152: 42804Ε4α (ΙΑ)439Sα12 | AJ152: 2017-03-10 | AK152: Ε4α (ΙΑ) | AL152: 439 | AM152: ΟΑ ΧΟΛΑΡΓΟΥ | AN152: S | AO152: α12 | AP152: 5 | AQ152: 2538 | AR152: 624
X153: ΓΑΣ ΘΥΕΛΛΑ ΦΕΡΩΝ | Y153: 109 | Z153: Α | AF153: Ε2S-16-q128 | AG153: 0 | AI153: 42804Ε4α (ΙΑ)439Sα14 | AJ153: 2017-03-10 | AK153: Ε4α (ΙΑ) | AL153: 439 | AM153: ΟΑ ΧΟΛΑΡΓΟΥ | AN153: S | AO153: α14 | AP153: 6 | AQ153: 2539 | AR153: 624
X154: ΓΑΣ ΚΑΡΑΤΕ ΕΡΜΗΣ | Y154: 181 | Z154: Γ | AF154: Ε2S-16-q256 | AG154: 0 | AI154: 42804Ε4α (ΙΑ)424Sα16 | AJ154: 2017-03-10 | AK154: Ε4α (ΙΑ) | AL154: 424 | AM154: ΑΟΑ ΗΛΙΟΥΠΟΛΗΣ | AN154: S | AO154: α16 | AP154: 7 | AQ154: 2540 | AR154: 624
X155: ΓΑΣ ΜΑΓΝΗΣΙΑΣ | Y155: 229 | Z155: Ε | AF155: Ε2S-16-wo | AG155: 0 | AI155: 42804Ε4α (ΙΑ)439Sκ12 | AJ155: 2017-03-10 | AK155: Ε4α (ΙΑ) | AL155: 439 | AM155: ΟΑ ΧΟΛΑΡΓΟΥ | AN155: S | AO155: κ12 | AP155: 9 | AQ155: 2541 | AR155: 624
X156: ΓΑΣ ΝΙΓΡΙΤΑΣ ΒΙΣΑΛΤΗΣ | Y156: 453 | Z156: Α | AF156: Ε2D-16-1st | AG156: 16 | AI156: 42804Ε4α (ΙΑ)439Sκ14 | AJ156: 2017-03-10 | AK156: Ε4α (ΙΑ) | AL156: 439 | AM156: ΟΑ ΧΟΛΑΡΓΟΥ | AN156: S | AO156: κ14 | AP156: 10 | AQ156: 2542 | AR156: 624
X157: ΓΕ ΑΡΓΟΛΙΔΑΣ | Y157: 503 | Z157: ΣΤ | AF157: Ε2D-16-2nd | AG157: 12 | AI157: 42804Ε4α (ΙΑ)424Sκ16 | AJ157: 2017-03-10 | AK157: Ε4α (ΙΑ) | AL157: 424 | AM157: ΑΟΑ ΗΛΙΟΥΠΟΛΗΣ | AN157: S | AO157: κ16 | AP157: 11 | AQ157: 2543 | AR157: 624
X158: ΓΕ ΑΤΑΛΑΝΤΗΣ | Y158: 471 | Z158: Ε | AF158: Ε2D-16-3_4 | AG158: 8 | AI158: 42812Ε3 11η (Β)152Sα12 | AJ158: 2017-03-18 | AK158: Ε3 11η (Β) | AL158: 152 | AM158: ΟΑ ΚΑΛΑΜΑΡΙΑΣ | AN158: S | AO158: α12 | AP158: 5 | AQ158: 2544 | AR158: 625
X159: ΓΕ ΛΑΡΙΣΑΣ | Y159: 472 | Z159: Ε | AF159: Ε2D-16-5_8 | AG159: 6 | AI159: 42812Ε3 11η (Β)151Sα16 | AJ159: 2017-03-18 | AK159: Ε3 11η (Β) | AL159: 151 | AM159: ΟΑ ΘΕΣΣΑΛΟΝΙΚΗΣ | AN159: S | AO159: α16 | AP159: 7 | AQ159: 2545 | AR159: 625
X160: ΓΕ ΠΡΕΒΕΖΑΣ | Y160: 211 | Z160: Δ | AF160: Ε2D-16-9_16 | AG160: 4 | AI160: 42812Ε3 11η (Β)152Sκ12 | AJ160: 2017-03-18 | AK160: Ε3 11η (Β) | AL160: 152 | AM160: ΟΑ ΚΑΛΑΜΑΡΙΑΣ | AN160: S | AO160: κ12 | AP160: 9 | AQ160: 2546 | AR160: 625
X161: ΓΟ ΠΕΡΙΣΤΕΡΙΟΥ ΠΑΛΑΣΚΑΣ | Y161: 379 | Z161: Θ | AF161: Ε2D-16-17_32 | AG161: 0 | AI161: 42812Ε3 11η (Β)151Sκ16 | AJ161: 2017-03-18 | AK161: Ε3 11η (Β) | AL161: 151 | AM161: ΟΑ ΘΕΣΣΑΛΟΝΙΚΗΣ | AN161: S | AO161: κ16 | AP161: 11 | AQ161: 2547 | AR161: 625
X162: ΓΣ ΑΜΦΙΑΛΗΣ ΦΕΙΔΙΠΠΙΔΗΣ | Y162: 492 | Z162: Θ | AF162: Ε2D-16-wo | AG162: 0 | AI162: 42812Ε3 11η (Γ)171Sα12 | AJ162: 2017-03-18 | AK162: Ε3 11η (Γ) | AL162: 171 | AM162: ΑΟΑ ΚΑΤΕΡΙΝΗΣ | AN162: S | AO162: α12 | AP162: 5 | AQ162: 2548 | AR162: 626
X163: ΓΣ ΑΠΟΛΛΩΝ ΠΥΡΓΟΥ | Y163: 504 | Z163: ΣΤ | AF163: Ε2S-18-1st | AG163: 0 | AI163: 42812Ε3 11η (Γ)171Sα16 | AJ163: 2017-03-18 | AK163: Ε3 11η (Γ) | AL163: 171 | AM163: ΑΟΑ ΚΑΤΕΡΙΝΗΣ | AN163: S | AO163: α16 | AP163: 7 | AQ163: 2549 | AR163: 626
X164: ΓΣ ΕΛΕΥΘ ΚΟΡΔ ΑΡΓΟΝΑΥΤΕΣ | Y164: 138 | Z164: Β | AF164: Ε2S-18-2nd | AG164: 0 | AI164: 42812Ε3 11η (Γ)192Sκ12 | AJ164: 2017-03-18 | AK164: Ε3 11η (Γ) | AL164: 192 | AM164: ΟΑ ΛΙΤΟΧΩΡΟΥ | AN164: S | AO164: κ12 | AP164: 9 | AQ164: 2550 | AR164: 626
X165: ΓΣ ΗΛΙΟΥΠΟΛΗΣ | Y165: 430 | Z165: ΙΑ | AF165: Ε2S-18-3_4 | AG165: 0 | AI165: 42812Ε3 11η (Γ)192Sκ16 | AJ165: 2017-03-18 | AK165: Ε3 11η (Γ) | AL165: 192 | AM165: ΟΑ ΛΙΤΟΧΩΡΟΥ | AN165: S | AO165: κ16 | AP165: 11 | AQ165: 2551 | AR165: 626
X166: ΓΣ ΙΤΕΑΣ | Y166: 232 | Z166: Ε | AF166: Ε2S-18-5_8 | AG166: 0 | AI166: 42812Ε3 11η (Δ)217Sα12 | AJ166: 2017-03-18 | AK166: Ε3 11η (Δ) | AL166: 217 | AM166: ΟΑ ΑΡΤΑΣ | AN166: S | AO166: α12 | AP166: 5 | AQ166: 2552 | AR166: 627
X167: ΓΣ ΚΗΦΙΣΙΑΣ | Y167: 345 | Z167: Η | AF167: Ε2S-18-9_16 | AG167: 0 | AI167: 42812Ε3 11η (Δ)217Sα16 | AJ167: 2017-03-18 | AK167: Ε3 11η (Δ) | AL167: 217 | AM167: ΟΑ ΑΡΤΑΣ | AN167: S | AO167: α16 | AP167: 7 | AQ167: 2553 | AR167: 627
X168: ΓΣ ΚΟΡΩΠΙΟΥ | Y168: 346 | Z168: Η | AF168: Ε2S-18-17_32 | AG168: 0 | AI168: 42812Ε3 11η (Δ)217Sκ12 | AJ168: 2017-03-18 | AK168: Ε3 11η (Δ) | AL168: 217 | AM168: ΟΑ ΑΡΤΑΣ | AN168: S | AO168: κ12 | AP168: 9 | AQ168: 2554 | AR168: 627
X169: ΓΣ ΛΙΒΥΚΟΣ ΙΕΡΑΠΕΤΡΑΣ | Y169: 304 | Z169: Ζ | AF169: Ε2S-18-q8 | AG169: 0 | AI169: 42812Ε3 11η (Δ)217Sκ16 | AJ169: 2017-03-18 | AK169: Ε3 11η (Δ) | AL169: 217 | AM169: ΟΑ ΑΡΤΑΣ | AN169: S | AO169: κ16 | AP169: 11 | AQ169: 2555 | AR169: 627
X170: ΓΣ Ν ΙΩΝΙΑΣ ΑΤΤΙΚΗΣ | Y170: 381 | Z170: Θ | AF170: Ε2S-18-q16 | AG170: 0 | AI170: 42812Ε3 11η (Ε)245Sα14 | AJ170: 2017-03-18 | AK170: Ε3 11η (Ε) | AL170: 245 | AM170: ΟΑ ΝΙΚΑΙΑ ΛΑΡΙΣΑΣ | AN170: S | AO170: α14 | AP170: 6 | AQ170: 2556 | AR170: 628
X171: ΓΣ ΣΑΛΑΜΙΝΑΣ | Y171: 493 | Z171: Θ | AF171: Ε2S-18-q8/2 | AG171: 0 | AI171: 42812Ε3 11η (Ε)245Sκ14 | AJ171: 2017-03-18 | AK171: Ε3 11η (Ε) | AL171: 245 | AM171: ΟΑ ΝΙΚΑΙΑ ΛΑΡΙΣΑΣ | AN171: S | AO171: κ14 | AP171: 10 | AQ171: 2557 | AR171: 628
X172: ΓΣ ΩΡΩΠΟΥ | Y172: 485 | Z172: Η | AF172: Ε2S-18-q32 | AG172: 0 | AI172: 42812Ε3 11η (Ζ)307Sα12 | AJ172: 2017-03-18 | AK172: Ε3 11η (Ζ) | AL172: 307 | AM172: ΟΑ ΡΕΘΥΜΝΟΥ | AN172: S | AO172: α12 | AP172: 5 | AQ172: 2558 | AR172: 629
X173: ΔΑΣ ΑΝΩ ΛΙΟΣΙΩΝ | Y173: 383 | Z173: Θ | AF173: Ε2S-18-33_64 | AG173: 0 | AI173: 42812Ε3 11η (Ζ)307Sα16 | AJ173: 2017-03-18 | AK173: Ε3 11η (Ζ) | AL173: 307 | AM173: ΟΑ ΡΕΘΥΜΝΟΥ | AN173: S | AO173: α16 | AP173: 7 | AQ173: 2559 | AR173: 629
X174: ΕΑΟ ΗΛΙΣ | Y174: 384 | Z174: Θ | AF174: Ε2S-18-q | AG174: 0 | AI174: 42812Ε3 11η (Ζ)307Sκ12 | AJ174: 2017-03-18 | AK174: Ε3 11η (Ζ) | AL174: 307 | AM174: ΟΑ ΡΕΘΥΜΝΟΥ | AN174: S | AO174: κ12 | AP174: 9 | AQ174: 2560 | AR174: 629
X175: ΕΑΣ ΛΑΚΚΑΣ ΣΥΜΠΟΛΙΤΕΙΑΣ | Y175: 276 | Z175: ΣΤ | AF175: Ε2S-18-q64 | AG175: 0 | AI175: 42812Ε3 11η (Ζ)307Sκ16 | AJ175: 2017-03-18 | AK175: Ε3 11η (Ζ) | AL175: 307 | AM175: ΟΑ ΡΕΘΥΜΝΟΥ | AN175: S | AO175: κ16 | AP175: 11 | AQ175: 2561 | AR175: 629
X176: ΕΑΣ ΟΛΥΜΠΙΑΔΑ | Y176: 139 | Z176: Β | AF176: Ε2S-18-q128 | AG176: 0 | AI176: 42812Ε3 11η (Η)333Sα12 | AJ176: 2017-03-18 | AK176: Ε3 11η (Η) | AL176: 333 | AM176: ΑΟΑ ΑΛΕΞΑΝΔΡΟΣ Β | AN176: S | AO176: α12 | AP176: 5 | AQ176: 2562 | AR176: 630
X177: ΕΑΣΑ ΘΕΣΣΑΛΙΚΟΣ | Y177: 473 | Z177: Ε | AF177: Ε2S-18-q256 | AG177: 0 | AI177: 42812Ε3 11η (Η)333Sα14 | AJ177: 2017-03-18 | AK177: Ε3 11η (Η) | AL177: 333 | AM177: ΑΟΑ ΑΛΕΞΑΝΔΡΟΣ Β | AN177: S | AO177: α14 | AP177: 6 | AQ177: 2563 | AR177: 630
X178: ΕΑΤΕΚ ΕΛΛ ΚΟΛΛΕΓΙΟΥ | Y178: 140 | Z178: Β | AF178: Ε2S-18-wo | AG178: 0 | AI178: 42812Ε3 11η (Η)333Sα16 | AJ178: 2017-03-18 | AK178: Ε3 11η (Η) | AL178: 333 | AM178: ΑΟΑ ΑΛΕΞΑΝΔΡΟΣ Β | AN178: S | AO178: α16 | AP178: 7 | AQ178: 2564 | AR178: 630
X179: ΕΑΦΩ ΝΤΕΚΡΟΛΙ | Y179: 459 | Z179: Β | AF179: Ε2D-18-1st | AG179: 0 | AI179: 42812Ε3 11η (Η)333Sκ12 | AJ179: 2017-03-18 | AK179: Ε3 11η (Η) | AL179: 333 | AM179: ΑΟΑ ΑΛΕΞΑΝΔΡΟΣ Β | AN179: S | AO179: κ12 | AP179: 9 | AQ179: 2565 | AR179: 630
X180: ΕΕΠΚΑ ΕΥΡΩΪΔΕΑ ΚΑΡΔΙΤΣΑΣ | Y180: 474 | Z180: Ε | AF180: Ε2D-18-2nd | AG180: 0 | AI180: 42812Ε3 11η (Η)333Sκ14 | AJ180: 2017-03-18 | AK180: Ε3 11η (Η) | AL180: 333 | AM180: ΑΟΑ ΑΛΕΞΑΝΔΡΟΣ Β | AN180: S | AO180: κ14 | AP180: 10 | AQ180: 2566 | AR180: 630
X181: ΕΘΝΙΚΟΣ ΠΑΝΟΡΑΜΑΤΟΣ 2005 | Y181: 460 | Z181: Β | AF181: Ε2D-18-3_4 | AG181: 0 | AI181: 42812Ε3 11η (Η)333Sκ16 | AJ181: 2017-03-18 | AK181: Ε3 11η (Η) | AL181: 333 | AM181: ΑΟΑ ΑΛΕΞΑΝΔΡΟΣ Β | AN181: S | AO181: κ16 | AP181: 11 | AQ181: 2567 | AR181: 630
X182: ΕΣΟ ΕΠΙΚΟΥΡΟΣ ΠΟΛΙΧΝΗΣ | Y182: 143 | Z182: Β | AF182: Ε2D-18-5_8 | AG182: 0 | AI182: 42812Ε3 11η (Θ)398Sα12 | AJ182: 2017-03-18 | AK182: Ε3 11η (Θ) | AL182: 398 | AM182: ΟΑ ΠΕΤΡΟΥΠΟΛΗΣ | AN182: S | AO182: α12 | AP182: 5 | AQ182: 2568 | AR182: 631
X183: ΕΦΤ ΑΙΟΛΙΚΗ | Y183: 144 | Z183: Β | AF183: Ε2D-18-9_16 | AG183: 0 | AI183: 42812Ε3 11η (Θ)398Sα14 | AJ183: 2017-03-18 | AK183: Ε3 11η (Θ) | AL183: 398 | AM183: ΟΑ ΠΕΤΡΟΥΠΟΛΗΣ | AN183: S | AO183: α14 | AP183: 6 | AQ183: 2569 | AR183: 631
X184: ΖΑΚΥΝΘΙΝΟΣ ΑΟ | Y184: 505 | Z184: ΣΤ | AF184: Ε2D-18-wo | AG184: 0 | AI184: 42812Ε3 11η (Θ)398Sα16 | AJ184: 2017-03-18 | AK184: Ε3 11η (Θ) | AL184: 398 | AM184: ΟΑ ΠΕΤΡΟΥΠΟΛΗΣ | AN184: S | AO184: α16 | AP184: 7 | AQ184: 2570 | AR184: 631
X185: ΖΑΚΥΝΘΙΝΟΣ ΑΟΑ | Y185: 278 | Z185: ΣΤ | AF185: Ε2D-18-17_32 | AG185: 0 | AI185: 42812Ε3 11η (Θ)398Sκ12 | AJ185: 2017-03-18 | AK185: Ε3 11η (Θ) | AL185: 398 | AM185: ΟΑ ΠΕΤΡΟΥΠΟΛΗΣ | AN185: S | AO185: κ12 | AP185: 9 | AQ185: 2571 | AR185: 631
X186: ΗΠΕΙΡΩΤΙΚΟΣ ΣΑ ΙΩΑΝΝΙΝΩΝ | Y186: 469 | Z186: Δ | AF186: Ε3S-12-1st | AG186: 9 | AI186: 42812Ε3 11η (Θ)398Sκ14 | AJ186: 2017-03-18 | AK186: Ε3 11η (Θ) | AL186: 398 | AM186: ΟΑ ΠΕΤΡΟΥΠΟΛΗΣ | AN186: S | AO186: κ14 | AP186: 10 | AQ186: 2572 | AR186: 631
X187: ΗΡΑΚΛΕΙΟ ΟΑΑ | Y187: 305 | Z187: Ζ | AF187: Ε3S-12-2nd | AG187: 7.5 | AI187: 42812Ε3 11η (Θ)398Sκ16 | AJ187: 2017-03-18 | AK187: Ε3 11η (Θ) | AL187: 398 | AM187: ΟΑ ΠΕΤΡΟΥΠΟΛΗΣ | AN187: S | AO187: κ16 | AP187: 11 | AQ187: 2573 | AR187: 631
X188: ΙΚΑΡΟΣ Ν ΣΜΥΡΝΗΣ | Y188: 446 | Z188: ΙΑ | AF188: Ε3S-12-3_4 | AG188: 4.5 | AI188: 42812Ε3 11η (ΙΑ)423Sα12 | AJ188: 2017-03-18 | AK188: Ε3 11η (ΙΑ) | AL188: 423 | AM188: ΑΟΑ ΑΡΓΥΡΟΥΠΟΛΗΣ | AN188: S | AO188: α12 | AP188: 5 | AQ188: 2574 | AR188: 632
X189: ΚΑ ΑΓΡΙΝΙΟΥ | Y189: 213 | Z189: Δ | AF189: Ε3S-12-5_8 | AG189: 3 | AI189: 42812Ε3 11η (ΙΑ)423Sα14 | AJ189: 2017-03-18 | AK189: Ε3 11η (ΙΑ) | AL189: 423 | AM189: ΑΟΑ ΑΡΓΥΡΟΥΠΟΛΗΣ | AN189: S | AO189: α14 | AP189: 6 | AQ189: 2575 | AR189: 632
X190: ΚΕΝΤΡΟ ΑΝΤΙΣΦ ΛΙΒΑΔΕΙΑΣ | Y190: 235 | Z190: Ε | AF190: Ε3S-12-9_16 | AG190: 2.4 | AI190: 42812Ε3 11η (ΙΑ)423Sα16 | AJ190: 2017-03-18 | AK190: Ε3 11η (ΙΑ) | AL190: 423 | AM190: ΑΟΑ ΑΡΓΥΡΟΥΠΟΛΗΣ | AN190: S | AO190: α16 | AP190: 7 | AQ190: 2576 | AR190: 632
X191: ΚΕΡΚΥΡΑΪΚΗ ΑΚΑΔ ΤΕΝΝΙΣ | Y191: 214 | Z191: Δ | AF191: Ε3S-12-17_32 | AG191: 1.5 | AI191: 42812Ε3 11η (ΙΑ)423Sκ12 | AJ191: 2017-03-18 | AK191: Ε3 11η (ΙΑ) | AL191: 423 | AM191: ΑΟΑ ΑΡΓΥΡΟΥΠΟΛΗΣ | AN191: S | AO191: κ12 | AP191: 9 | AQ191: 2577 | AR191: 632
X192: ΚΕΡΚΥΡΑΪΚΗ ΛΤ | Y192: 215 | Z192: Δ | AF192: Ε3S-12-33_64 | AG192: 0.5 | AI192: 42812Ε3 11η (ΙΑ)423Sκ14 | AJ192: 2017-03-18 | AK192: Ε3 11η (ΙΑ) | AL192: 423 | AM192: ΑΟΑ ΑΡΓΥΡΟΥΠΟΛΗΣ | AN192: S | AO192: κ14 | AP192: 10 | AQ192: 2578 | AR192: 632
X193: ΚΕΦΑΛΛΗΝΙΑΚΟΣ ΟΑ | Y193: 279 | Z193: ΣΤ | AF193: Ε3S-12-65_128 | AG193: 0 | AI193: 42812Ε3 11η (ΙΑ)423Sκ16 | AJ193: 2017-03-18 | AK193: Ε3 11η (ΙΑ) | AL193: 423 | AM193: ΑΟΑ ΑΡΓΥΡΟΥΠΟΛΗΣ | AN193: S | AO193: κ16 | AP193: 11 | AQ193: 2579 | AR193: 632
X194: Λ ΠΟΛΙΤΙΣΜΟΥ ΦΛΩΡΙΝΑΣ | Y194: 182 | Z194: Γ | AF194: Ε3S-12-q8 | AG194: 0 | AI194: 42812Ε3 11η (ΣΤ)285Sα12 | AJ194: 2017-03-18 | AK194: Ε3 11η (ΣΤ) | AL194: 285 | AM194: ΟΑ ΚΑΛΑΜΑΤΑΣ | AN194: S | AO194: α12 | AP194: 5 | AQ194: 2580 | AR194: 633
X195: ΛΑ ΚΟΜΟΤΗΝΗΣ | Y195: 454 | Z195: Α | AF195: Ε3S-12-q16 | AG195: 0 | AI195: =AJ195&AK195&AL195&AN195&AO195 -> 42812Ε3 11η (ΣΤ)285Sα16 | AJ195: 2017-03-18 | AK195: Ε3 11η (ΣΤ) | AL195: 285 | AM195: ΟΑ ΚΑΛΑΜΑΤΑΣ | AN195: S | AO195: α16 | AP195: 7 | AQ195: 2581 | AR195: 633
X196: ΛΑΡΙΣΑΪΚΟΣ ΟΑ | Y196: 236 | Z196: Ε | AF196: Ε3S-12-q32 | AG196: 0 | AI196: 42812Ε3 11η (ΣΤ)285Sκ12 | AJ196: 2017-03-18 | AK196: Ε3 11η (ΣΤ) | AL196: 285 | AM196: ΟΑ ΚΑΛΑΜΑΤΑΣ | AN196: S | AO196: κ12 | AP196: 9 | AQ196: 2582 | AR196: 633
X197: ΜΑΣ ΑΕΤΟΣ ΘΕΣ | Y197: 145 | Z197: Β | AF197: Ε3S-12-q64 | AG197: 0 | AI197: 42812Ε3 11η (ΣΤ)285Sκ16 | AJ197: 2017-03-18 | AK197: Ε3 11η (ΣΤ) | AL197: 285 | AM197: ΟΑ ΚΑΛΑΜΑΤΑΣ | AN197: S | AO197: κ16 | AP197: 11 | AQ197: 2583 | AR197: 633
X198: ΜΑΣ ΑΤΡΟΜΗΤΟΣ ΤΡΙΑΔΙΟΥ | Y198: 146 | Z198: Β | AF198: Ε3S-12-q128 | AG198: 0 | AI198: 42814TE (TEL AVIV)15Sα14 | AJ198: 2017-03-20 | AK198: TE (TEL AVIV) | AL198: 15 | AM198: Tennis Europe | AN198: S | AO198: α14 | AP198: 6 | AQ198: 2584 | AR198: 634
X199: ΜΓΣ ΑΠΟΛΛΩΝ ΚΑΛΑΜΑΡΙΑΣ | Y199: 147 | Z199: Β | AF199: Ε3S-12-q256 | AG199: 0 | AI199: 42814TE (TEL AVIV)15Dα14 | AJ199: 2017-03-20 | AK199: TE (TEL AVIV) | AL199: 15 | AM199: Tennis Europe | AN199: D | AO199: α14 | AP199: 14 | AQ199: 2585 | AR199: 634
X200: ΝΑΣΠ ΑΙΟΛΟΣ ΜΥΤΙΛΗΝΗΣ | Y200: 494 | Z200: Θ | AF200: Ε3S-12-wo | AG200: 0 | AI200: 42818Ε2β (Α)112Sα12 | AJ200: 2017-03-24 | AK200: Ε2β (Α) | AL200: 112 | AM200: ΟΑ ΑΛΕΞΑΝΔΡΟΥΠΟΛΗΣ | AN200: S | AO200: α12 | AP200: 5 | AQ200: 2586 | AR200: 635
... 1081 more rows

Sheet matches (hidden)
A1: round | B1: W-ID | C1: winner | D1: L-ID | E1: looser | F1: score | H1: Player | I1: Position | K1: Set-up | N1: draw# | O1: organizer | P1: club | Q1: title | R1: category | S1: drawSize
A2: 16 | B2: =IF(OR(MD!$M$5=1,MD!$M$5=2), IF(MD!$M$5=1,MD!$I$5,MD!$I$6),"#") -> 26198 | C2: =TRIM(LEFT(VLOOKUP(B2,ALMD!$C$3:$D$18,2,FALSE),FIND(" ",VLOOKUP(B2,ALMD!$C$3:$D$18,2,FALSE),1)-1)) -> ΛΑΜΠΡΟΠΟΥΛΟΥ | D2: =IF(OR(MD!$M$5 =1,MD!$M$5 =2), IF(MD!$M$5 =2,MD!$I$5,MD!$I$6),"#") -> 34396 | E2: =TRIM(LEFT(VLOOKUP(D2,ALMD!$C$3:$D$18,2,FALSE),FIND(" ",VLOOKUP(D2,ALMD!$C$3:$D$18,2,FALSE),1)-1)) -> ΜΗΤΡΟΠΟΥΛΟΥ | F2: =MD!$O6 -> 40 40 | H2: =B16 -> 37585 | I2: 1st | K2: organizer: | L2: =Setup!$B$3 -> ΣΤ' ΕΝΩΣΗ | N2: =IF(COUNTIF(MD!$I:$I,B2)>0,MATCH(B2,MD!$I:$I,0)-4,"")&" "&IF(COUNTIF(MD!$I:$I,D2)>0,MATCH(D2,MD!$I:$I,0)-4,"") -> 1 2 | O2: =Setup!$B$3 -> ΣΤ' ΕΝΩΣΗ | P2: =TRIM(LEFT($L$4,10)) -> ΣΑ ΤΡΙΠΟΛΗ | Q2: =TRIM(LEFT($L$3,10)) -> Ε3 26η | R2: =SUBSTITUTE(SUBSTITUTE(TRIM($L$7),"Κ","g"),"Α","b") -> g14 | S2: 16
A3: 16 | B3: =IF(OR(MD!$M$7=1,MD!$M$7=2), IF(MD!$M$7=1,MD!$I$7,MD!$I$8),"#") -> 38912 | C3: =TRIM(LEFT(VLOOKUP(B3,ALMD!$C$3:$D$18,2,FALSE),FIND(" ",VLOOKUP(B3,ALMD!$C$3:$D$18,2,FALSE),1)-1)) -> ΖΩΓΡΑΦΟΥ | D3: =IF(OR(MD!$M$7 =1,MD!$M$7 =2), IF(MD!$M$7 =2,MD!$I$7,MD!$I$8),"#") -> 40747 | E3: =TRIM(LEFT(VLOOKUP(D3,ALMD!$C$3:$D$18,2,FALSE),FIND(" ",VLOOKUP(D3,ALMD!$C$3:$D$18,2,FALSE),1)-1)) -> ΤΟΥΜΠΑΝΙΑΡΗ | F3: =MD!$O8 -> 53 40 | H3: =D16 -> 26198 | I3: 2nd | K3: title: | L3: =Setup!$B$7 -> Ε3 26η | N3: =IF(COUNTIF(MD!$I:$I,B3)>0,MATCH(B3,MD!$I:$I,0)-4,"")&" "&IF(COUNTIF(MD!$I:$I,D3)>0,MATCH(D3,MD!$I:$I,0)-4,"") -> 4 3 | O3: =Setup!$B$3 -> ΣΤ' ΕΝΩΣΗ | P3: =TRIM(LEFT($L$4,10)) -> ΣΑ ΤΡΙΠΟΛΗ | Q3: =TRIM(LEFT($L$3,10)) -> Ε3 26η | R3: =SUBSTITUTE(SUBSTITUTE(TRIM($L$7),"Κ","g"),"Α","b") -> g14 | S3: 16
A4: 16 | B4: =IF(OR(MD!$M$9=1,MD!$M$9=2), IF(MD!$M$9=1,MD!$I$9,MD!$I$10),"#") -> 37337 | C4: =TRIM(LEFT(VLOOKUP(B4,ALMD!$C$3:$D$18,2,FALSE),FIND(" ",VLOOKUP(B4,ALMD!$C$3:$D$18,2,FALSE),1)-1)) -> ΔΕΛΗ | D4: =IF(OR(MD!$M$9 =1,MD!$M$9 =2), IF(MD!$M$9 =2,MD!$I$9,MD!$I$10),"#") -> 38401 | E4: =TRIM(LEFT(VLOOKUP(D4,ALMD!$C$3:$D$18,2,FALSE),FIND(" ",VLOOKUP(D4,ALMD!$C$3:$D$18,2,FALSE),1)-1)) -> ΚΛΑΟΥΔΑΤΟΥ | F4: =MD!$O10 -> 40 41 | H4: =D14 -> 37337 | I4: 3_4 | K4: club: | L4: =Setup!$B$4 -> ΣΑ ΤΡΙΠΟΛΗΣ | N4: =IF(COUNTIF(MD!$I:$I,B4)>0,MATCH(B4,MD!$I:$I,0)-4,"")&" "&IF(COUNTIF(MD!$I:$I,D4)>0,MATCH(D4,MD!$I:$I,0)-4,"") -> 5 6 | O4: =Setup!$B$3 -> ΣΤ' ΕΝΩΣΗ | P4: ΣΑ ΤΡΙΠΟΛΗ | Q4: Ε3 26η | R4: g14 | S4: 16
A5: 16 | B5: =IF(OR(MD!$M$11=1,MD!$M$11=2), IF(MD!$M$11=1,MD!$I$11,MD!$I$12),"#") -> 33355 | C5: =TRIM(LEFT(VLOOKUP(B5,ALMD!$C$3:$D$18,2,FALSE),FIND(" ",VLOOKUP(B5,ALMD!$C$3:$D$18,2,FALSE),1)-1)) -> ΒΟΥΔΟΥΡΗ | D5: =IF(OR(MD!$M$11=1,MD!$M$11=2), IF(MD!$M$11=2,MD!$I$11,MD!$I$12),"#") -> 40340 | E5: =TRIM(LEFT(VLOOKUP(D5,ALMD!$C$3:$D$18,2,FALSE),FIND(" ",VLOOKUP(D5,ALMD!$C$3:$D$18,2,FALSE),1)-1)) -> ΝΙΚΟΛΑΚΟΠΟΥΛΟΥ | F5: =MD!$O12 -> 40 40 | H5: =D15 -> 35985 | I5: 3_4 | K5: grade: | L5: =Setup!$B$5 -> Ε3 | N5: =IF(COUNTIF(MD!$I:$I,B5)>0,MATCH(B5,MD!$I:$I,0)-4,"")&" "&IF(COUNTIF(MD!$I:$I,D5)>0,MATCH(D5,MD!$I:$I,0)-4,"") -> 8 7 | O5: =Setup!$B$3 -> ΣΤ' ΕΝΩΣΗ | P5: ΣΑ ΤΡΙΠΟΛΗ | Q5: Ε3 26η | R5: g14 | S5: 16
A6: 16 | B6: =IF(OR(MD!$M$13=1,MD!$M$13=2), IF(MD!$M$13=1,MD!$I$13,MD!$I$14),"#") -> 35985 | C6: =TRIM(LEFT(VLOOKUP(B6,ALMD!$C$3:$D$18,2,FALSE),FIND(" ",VLOOKUP(B6,ALMD!$C$3:$D$18,2,FALSE),1)-1)) -> ΖΟΥΓΡΑ | D6: =IF(OR(MD!$M$13=1,MD!$M$13=2), IF(MD!$M$13=2,MD!$I$13,MD!$I$14),"#") -> 35595 | E6: =TRIM(LEFT(VLOOKUP(D6,ALMD!$C$3:$D$18,2,FALSE),FIND(" ",VLOOKUP(D6,ALMD!$C$3:$D$18,2,FALSE),1)-1)) -> ΤΟΥΛΑ | F6: =MD!$O14 -> 41 42 | H6: =D10 -> 38912 | I6: 5_8 | K6: week: | L6: =Setup!B10 -> βδ.: 26η | N6: =IF(COUNTIF(MD!$I:$I,B6)>0,MATCH(B6,MD!$I:$I,0)-4,"")&" "&IF(COUNTIF(MD!$I:$I,D6)>0,MATCH(D6,MD!$I:$I,0)-4,"") -> 9 10 | O6: =Setup!$B$3 -> ΣΤ' ΕΝΩΣΗ | P6: ΣΑ ΤΡΙΠΟΛΗ | Q6: Ε3 26η | R6: g14 | S6: 16
A7: 16 | B7: =IF(OR(MD!$M$15=1,MD!$M$15=2), IF(MD!$M$15=1,MD!$I$15,MD!$I$16),"#") -> 35515 | C7: =TRIM(LEFT(VLOOKUP(B7,ALMD!$C$3:$D$18,2,FALSE),FIND(" ",VLOOKUP(B7,ALMD!$C$3:$D$18,2,FALSE),1)-1)) -> ΚΟΤΙΝΗ | D7: =IF(OR(MD!$M$15=1,MD!$M$15=2), IF(MD!$M$15=2,MD!$I$15,MD!$I$16),"#") -> 33668 | E7: =TRIM(LEFT(VLOOKUP(D7,ALMD!$C$3:$D$18,2,FALSE),FIND(" ",VLOOKUP(D7,ALMD!$C$3:$D$18,2,FALSE),1)-1)) -> ΚΑΛΤΕΖΙΩΤΗ | F7: =MD!$O16 -> 42 41 | H7: =D11 -> 33355 | I7: 5_8 | K7: category: | L7: =Setup!$B$6 -> Κ14 | N7: =IF(COUNTIF(MD!$I:$I,B7)>0,MATCH(B7,MD!$I:$I,0)-4,"")&" "&IF(COUNTIF(MD!$I:$I,D7)>0,MATCH(D7,MD!$I:$I,0)-4,"") -> 12 11 | O7: =Setup!$B$3 -> ΣΤ' ΕΝΩΣΗ | P7: ΣΑ ΤΡΙΠΟΛΗ | Q7: Ε3 26η | R7: g14 | S7: 16
A8: 16 | B8: =IF(OR(MD!$M$17=1,MD!$M$17=2), IF(MD!$M$17=1,MD!$I$17,MD!$I$18),"#") -> 90169 | C8: =TRIM(LEFT(VLOOKUP(B8,ALMD!$C$3:$D$18,2,FALSE),FIND(" ",VLOOKUP(B8,ALMD!$C$3:$D$18,2,FALSE),1)-1)) -> ΑΣΕΝΟΒΑ | D8: =IF(OR(MD!$M$17=1,MD!$M$17=2), IF(MD!$M$17=2,MD!$I$17,MD!$I$18),"#") -> 38845 | E8: =TRIM(LEFT(VLOOKUP(D8,ALMD!$C$3:$D$18,2,FALSE),FIND(" ",VLOOKUP(D8,ALMD!$C$3:$D$18,2,FALSE),1)-1)) -> ΤΣΙΛΙΜΠΗ | F8: =MD!$O18 -> 40 42 | H8: =D12 -> 35515 | I8: 5_8 | K8: period: | L8: =DAY(Setup!$B$8)&"/"&MONTH(Setup!$B$8)&"-"&DAY(Setup!$B$9)&"/"&MONTH(Setup!$B$9)&"/"&YEAR(Setup!$B$9) -> 30/6-1/7/2018 | N8: =IF(COUNTIF(MD!$I:$I,B8)>0,MATCH(B8,MD!$I:$I,0)-4,"")&" "&IF(COUNTIF(MD!$I:$I,D8)>0,MATCH(D8,MD!$I:$I,0)-4,"") -> 13 14 | O8: =Setup!$B$3 -> ΣΤ' ΕΝΩΣΗ | P8: ΣΑ ΤΡΙΠΟΛΗ | Q8: Ε3 26η | R8: g14 | S8: 16
A9: 16 | B9: =IF(OR(MD!$M$19=1,MD!$M$19=2), IF(MD!$M$19=1,MD!$I$19,MD!$I$20),"#") -> 37585 | C9: =TRIM(LEFT(VLOOKUP(B9,ALMD!$C$3:$D$18,2,FALSE),FIND(" ",VLOOKUP(B9,ALMD!$C$3:$D$18,2,FALSE),1)-1)) -> ΣΤΡΑΤΗ | D9: =IF(OR(MD!$M$19=1,MD!$M$19=2), IF(MD!$M$19=2,MD!$I$19,MD!$I$20),"#") -> 39327 | E9: =TRIM(LEFT(VLOOKUP(D9,ALMD!$C$3:$D$18,2,FALSE),FIND(" ",VLOOKUP(D9,ALMD!$C$3:$D$18,2,FALSE),1)-1)) -> ΜΠΟΥΖΟΥ | F9: =MD!$O20 -> 40 40 | H9: =D13 -> 90169 | I9: 5_8 | K9: filename: | L9: =MID(CELL("filename"), (FIND("[",CELL("filename"))+1), FIND("]",CELL("filename"))-FIND("[",CELL("filename"))-1) -> ε3 26η στ κ14 s md.xlsm | N9: =IF(COUNTIF(MD!$I:$I,B9)>0,MATCH(B9,MD!$I:$I,0)-4,"")&" "&IF(COUNTIF(MD!$I:$I,D9)>0,MATCH(D9,MD!$I:$I,0)-4,"") -> 16 15 | O9: =Setup!$B$3 -> ΣΤ' ΕΝΩΣΗ | P9: ΣΑ ΤΡΙΠΟΛΗ | Q9: Ε3 26η | R9: g14 | S9: 16
A10: 8 | B10: =IF(OR(MD!$P$6=1,MD!$P$6=2), IF(MD!$P$6 =1,MD!$N$5,MD!$N$7),"#") -> 26198 | C10: =TRIM(LEFT(VLOOKUP(B10,ALMD!$C$3:$D$18,2,FALSE),FIND(" ",VLOOKUP(B10,ALMD!$C$3:$D$18,2,FALSE),1)-1)) -> ΛΑΜΠΡΟΠΟΥΛΟΥ | D10: =IF(OR(MD!$P$6 =1,MD!$P$6 =2), IF(MD!$P$6 =2,MD!$N$5,MD!$N$7),"#") -> 38912 | E10: =TRIM(LEFT(VLOOKUP(D10,ALMD!$C$3:$D$18,2,FALSE),FIND(" ",VLOOKUP(D10,ALMD!$C$3:$D$18,2,FALSE),1)-1)) -> ΖΩΓΡΑΦΟΥ | F10: =MD!$R7 -> 41 41 | H10: =D2 -> 34396 | I10: 9_16 | N10: =IF(COUNTIF(MD!$N:$N,B10)>0,MATCH(B10,MD!$N:$N,0)-4,"")&" "&IF(COUNTIF(MD!$N:$N,D10)>0,MATCH(D10,MD!$N:$N,0)-4,"") -> 1 3 | O10: =Setup!$B$3 -> ΣΤ' ΕΝΩΣΗ | P10: ΣΑ ΤΡΙΠΟΛΗ | Q10: Ε3 26η | R10: g14 | S10: 16
A11: 8 | B11: =IF(OR(MD!$P$10=1,MD!$P$10=2), IF(MD!$P$10=1,MD!$N$9,MD!$N$11),"#") -> 37337 | C11: =TRIM(LEFT(VLOOKUP(B11,ALMD!$C$3:$D$18,2,FALSE),FIND(" ",VLOOKUP(B11,ALMD!$C$3:$D$18,2,FALSE),1)-1)) -> ΔΕΛΗ | D11: =IF(OR(MD!$P$10=1,MD!$P$10=2), IF(MD!$P$10=2,MD!$N$9,MD!$N$11),"#") -> 33355 | E11: =TRIM(LEFT(VLOOKUP(D11,ALMD!$C$3:$D$18,2,FALSE),FIND(" ",VLOOKUP(D11,ALMD!$C$3:$D$18,2,FALSE),1)-1)) -> ΒΟΥΔΟΥΡΗ | F11: =MD!$R11 -> 41 41 | H11: 40747 | I11: 9_16 | N11: =IF(COUNTIF(MD!$N:$N,B11)>0,MATCH(B11,MD!$N:$N,0)-4,"")&" "&IF(COUNTIF(MD!$N:$N,D11)>0,MATCH(D11,MD!$N:$N,0)-4,"") -> 5 7 | O11: =Setup!$B$3 -> ΣΤ' ΕΝΩΣΗ | P11: ΣΑ ΤΡΙΠΟΛΗ | Q11: Ε3 26η | R11: g14 | S11: 16
A12: 8 | B12: =IF(OR(MD!$P$14=1,MD!$P$14=2), IF(MD!$P$14=1,MD!$N$13,MD!$N$15),"#") -> 35985 | C12: =TRIM(LEFT(VLOOKUP(B12,ALMD!$C$3:$D$18,2,FALSE),FIND(" ",VLOOKUP(B12,ALMD!$C$3:$D$18,2,FALSE),1)-1)) -> ΖΟΥΓΡΑ | D12: =IF(OR(MD!$P$14=1,MD!$P$14=2), IF(MD!$P$14=2,MD!$N$13,MD!$N$15),"#") -> 35515 | E12: =TRIM(LEFT(VLOOKUP(D12,ALMD!$C$3:$D$18,2,FALSE),FIND(" ",VLOOKUP(D12,ALMD!$C$3:$D$18,2,FALSE),1)-1)) -> ΚΟΤΙΝΗ | F12: =MD!$R15 -> 54(3) 40 | H12: 38401 | I12: 9_16 | N12: =IF(COUNTIF(MD!$N:$N,B12)>0,MATCH(B12,MD!$N:$N,0)-4,"")&" "&IF(COUNTIF(MD!$N:$N,D12)>0,MATCH(D12,MD!$N:$N,0)-4,"") -> 9 11 | O12: =Setup!$B$3 -> ΣΤ' ΕΝΩΣΗ | P12: ΣΑ ΤΡΙΠΟΛΗ | Q12: Ε3 26η | R12: g14 | S12: 16
A13: 8 | B13: =IF(OR(MD!$P$18=1,MD!$P$18=2), IF(MD!$P$18=1,MD!$N$17,MD!$N$19),"#") -> 37585 | C13: =TRIM(LEFT(VLOOKUP(B13,ALMD!$C$3:$D$18,2,FALSE),FIND(" ",VLOOKUP(B13,ALMD!$C$3:$D$18,2,FALSE),1)-1)) -> ΣΤΡΑΤΗ | D13: =IF(OR(MD!$P$18=1,MD!$P$18=2), IF(MD!$P$18=2,MD!$N$17,MD!$N$19),"#") -> 90169 | E13: =TRIM(LEFT(VLOOKUP(D13,ALMD!$C$3:$D$18,2,FALSE),FIND(" ",VLOOKUP(D13,ALMD!$C$3:$D$18,2,FALSE),1)-1)) -> ΑΣΕΝΟΒΑ | F13: =MD!$R19 -> 41 41 | H13: 40340 | I13: 9_16 | N13: =IF(COUNTIF(MD!$N:$N,B13)>0,MATCH(B13,MD!$N:$N,0)-4,"")&" "&IF(COUNTIF(MD!$N:$N,D13)>0,MATCH(D13,MD!$N:$N,0)-4,"") -> 15 13 | O13: =Setup!$B$3 -> ΣΤ' ΕΝΩΣΗ | P13: ΣΑ ΤΡΙΠΟΛΗ | Q13: Ε3 26η | R13: g14 | S13: 16
A14: 4 | B14: =IF(OR(MD!$S$8=1,MD!$S$8=2), IF(MD!$S$8=1,MD!$Q$6,MD!$Q$10),"#") -> 26198 | C14: =TRIM(LEFT(VLOOKUP(B14,ALMD!$C$3:$D$18,2,FALSE),FIND(" ",VLOOKUP(B14,ALMD!$C$3:$D$18,2,FALSE),1)-1)) -> ΛΑΜΠΡΟΠΟΥΛΟΥ | D14: =IF(OR(MD!$S$8 =1,MD!$S$8 =2), IF(MD!$S$8 =2,MD!$Q$6,MD!$Q$10),"#") -> 37337 | E14: =TRIM(LEFT(VLOOKUP(D14,ALMD!$C$3:$D$18,2,FALSE),FIND(" ",VLOOKUP(D14,ALMD!$C$3:$D$18,2,FALSE),1)-1)) -> ΔΕΛΗ | F14: =MD!$U9 -> 62 57 63 | H14: 35595 | I14: 9_16 | N14: =IF(COUNTIF(MD!$Q:$Q,B14)>0,MATCH(B14,MD!$Q:$Q,0)-4,"")&" "&IF(COUNTIF(MD!$Q:$Q,D14)>0,MATCH(D14,MD!$Q:$Q,0)-4,"") -> 2 6 | O14: =Setup!$B$3 -> ΣΤ' ΕΝΩΣΗ | P14: ΣΑ ΤΡΙΠΟΛΗ | Q14: Ε3 26η | R14: g14 | S14: 16
A15: 4 | B15: =IF(OR(MD!$S$16=1,MD!$S$16=2), IF(MD!$S$16=1,MD!$Q$14,MD!$Q$18),"#") -> 37585 | C15: =TRIM(LEFT(VLOOKUP(B15,ALMD!$C$3:$D$18,2,FALSE),FIND(" ",VLOOKUP(B15,ALMD!$C$3:$D$18,2,FALSE),1)-1)) -> ΣΤΡΑΤΗ | D15: =IF(OR(MD!$S$16=1,MD!$S$16=2), IF(MD!$S$16=2,MD!$Q$14,MD!$Q$18),"#") -> 35985 | E15: =TRIM(LEFT(VLOOKUP(D15,ALMD!$C$3:$D$18,2,FALSE),FIND(" ",VLOOKUP(D15,ALMD!$C$3:$D$18,2,FALSE),1)-1)) -> ΖΟΥΓΡΑ | F15: =MD!$U17 -> 57 62 62 | H15: 33668 | I15: 9_16 | N15: =IF(COUNTIF(MD!$Q:$Q,B15)>0,MATCH(B15,MD!$Q:$Q,0)-4,"")&" "&IF(COUNTIF(MD!$Q:$Q,D15)>0,MATCH(D15,MD!$Q:$Q,0)-4,"") -> 14 10 | O15: =Setup!$B$3 -> ΣΤ' ΕΝΩΣΗ | P15: ΣΑ ΤΡΙΠΟΛΗ | Q15: Ε3 26η | R15: g14 | S15: 16
A16: 2 | B16: =IF(OR(MD!$S$12=1,MD!$S$12=2), IF(MD!$S$12=1,MD!$T$8,MD!$T$16),"#") -> 37585 | C16: =TRIM(LEFT(VLOOKUP(B16,ALMD!$C$3:$D$18,2,FALSE),FIND(" ",VLOOKUP(B16,ALMD!$C$3:$D$18,2,FALSE),1)-1)) -> ΣΤΡΑΤΗ | D16: =IF(OR(MD!$S$12=1,MD!$S$12=2), IF(MD!$S$12=2,MD!$T$8,MD!$T$16),"#") -> 26198 | E16: =TRIM(LEFT(VLOOKUP(D16,ALMD!$C$3:$D$18,2,FALSE),FIND(" ",VLOOKUP(D16,ALMD!$C$3:$D$18,2,FALSE),1)-1)) -> ΛΑΜΠΡΟΠΟΥΛΟΥ | F16: =MD!$U13 -> 67(3) 60 ret. | H16: 38845 | I16: 9_16 | N16: =IF(COUNTIF(MD!$T:$T,B16)>0,MATCH(B16,MD!$T:$T,0)-4,"")&" "&IF(COUNTIF(MD!$T:$T,D16)>0,MATCH(D16,MD!$T:$T,0)-4,"") -> 8 4 | O16: =Setup!$B$3 -> ΣΤ' ΕΝΩΣΗ | P16: ΣΑ ΤΡΙΠΟΛΗ | Q16: Ε3 26η | R16: g14 | S16: 16
H17: 39327 | I17: 9_16 | O17: =Setup!$B$3 -> ΣΤ' ΕΝΩΣΗ | P17: ΣΑ ΤΡΙΠΟΛΗ | Q17: Ε3 26η | R17: g14 | S17: 16

Sheet e-efoa (hidden)
A1: organizer | B1: club | C1: title | D1: group | E1: Dsize | F1: MStartDate | G1: Td Id | H1: round | I1: WPlayerCode | J1: LPlayerCode | K1: Score | L1: WRow | M1: LRow | N1: WSeed | O1: LSeed | P1: W | Q1: L | R1: n/m | T1: seed | U1: cmnt | V1: Td Id | W1: PlayerCode | X1: Round | Y1: Wins | Z1: Matches | AA1: PtsQ | AB1: PtsM | AC1: Age | AE1: ID | AF1: name | AG1: row | AH1: seed | AJ1: RankKey | AL1: MatcheNames | AM1: key | AN1: PlayerName 1 | AO1: PlayerName 2
A2: =Setup!$B$3 -> ΣΤ' ΕΝΩΣΗ | B2: =Setup!$Z$6 -> 294 | C2: =Setup!$Z$5 -> Ε3 26η (ΣΤ) | D2: =SUBSTITUTE(TRIM(Setup!$B$6),"-","") -> Κ14 | E2: Smd16 | F2: =TEXT(Setup!$B$8,"ΕΕΕΕ-ΜΜ-ΗΗ") -> 2018-06-30 | G2: =Setup!$U$7&" "&Setup!$T$7 ->  | H2: R16 | I2: =IF(OR(MD!$M$5=1,MD!$M$5=2), IF(MD!$M$5=1,MD!$I$5,MD!$I$6),"") -> 26198 | J2: =IF(OR(MD!$M$5 =1,MD!$M$5 =2), IF(MD!$M$5 =2,MD!$I$5,MD!$I$6),"") -> 34396 | K2: =TRIM(MD!$O6) -> 40 40 | L2: =IF(AND(I2<>"",I2>0),IF(VALUE(I2)>0,VLOOKUP(I2,$AE:$AH,3,FALSE),0),0) -> 1 | M2: =IF(AND(J2<>"",J2>0),IF(VALUE(J2)>0,VLOOKUP(J2,$AE:$AH,3,FALSE),0),0) -> 2 | N2: =IF(AND(I2<>"",I2>0),IF(VALUE(I2)>0,VLOOKUP(I2,$AE:$AH,4,FALSE),0),0) -> 1 | O2: =IF(AND(J2<>"",J2>0),IF(VALUE(J2)>0,VLOOKUP(J2,$AE:$AH,4,FALSE),0),0) -> 14 | P2: =IF(R2="",I2,"") -> 26198 | Q2: =IF(AND($R2="",LEFT($K2)<>LOWER("w")),J2,"") -> 34396 | R2: =IF(OR(J2=0,K2=""),1,IF(TEXT(K2,"0")=SUBSTITUTE(LOWER(K2),"m",""),"",1)) ->  | T2: =IF(W2<>"",IF(VALUE(W2)>0,VLOOKUP(W2,$AE:$AH,4,FALSE),""),"") -> 2 | U2: =IF(NOT(OR(W2=0,W2=" ",W2="")),IF(INDIRECT("ALMD!B"&MATCH(W2,ALMD!$C$3:$C$18,0)+2)>0,INDIRECT("ALMD!B"&MATCH(W2,ALMD!$C$3:$C$18,0)+2),""),"") ->  | V2: =Setup!$U$7&" "&Setup!$T$7 ->  | W2: =I16 -> 37585 | X2: 1st | Y2: =IF($W2>0,COUNTIF($P$2:$P$16,$W2),0) -> 4 | Z2: =IF($W2>0,COUNTIF($P$2:$P$16,$W2)+COUNTIF($Q$2:$Q$16,$W2),0) -> 4 | AA2: =IF($W19>0,IF(COUNTIF($W$19:$W$34,$W2)>0,VLOOKUP($W2,$W$19:$AP$34,20,FALSE),0),0) -> 0 | AB2: =IF(OR($Z2=0,$Z2="",$U2="DQ"),0,VLOOKUP($AJ2,tables!$AF:$AG,2,FALSE)) -> 18 | AC2: =IF(W2>0,YEAR(Setup!$B$8)-YEAR(VLOOKUP(W2,ALMD!$C:$F,3,FALSE)),0) -> 13 | AE2: =MD!$I5 -> 26198 | AF2: =MD!$K5 -> ΛΑΜΠΡΟΠΟΥΛΟΥ Β | AG2: =IF(AE2>0,MD!$A5,"") -> 1 | AH2: =MD!$G5 -> 1 | AJ2: =SUBSTITUTE(SUBSTITUTE(Setup!$B$5&"S-"&Setup!$B$13&"-"&X2,"Ανδ-",""),"Γυν-","") -> Ε3S-14-1st | AL2: =IF(AO2>" ", IF(OR(AM2=AM3,AM2=AM1), IF(AM2=AM3,AN2&"/"&AN3&" - "&AO2&"/"&AO3, AN1&"/"&AN2&" - "&AO1&"/"&AO2),AN2&" - "&AO2), IF(OR(AM2=AM3,AM2=AM1), IF(AM2=AM3,AN2&"/"&AN3, AN1&"/"&AN2),AN2)) ->  | AM2: =G2&H2&L2 ->  | AN2: =IF(I2<=0,"",TRIM(LEFT(LEFT(VLOOKUP(I2,$AE:$AF,2,FALSE),FIND(" ",VLOOKUP(I2,$AE:$AF,2,FALSE),1)-1),15)&" "&LEFT(MID(VLOOKUP(I2,$AE:$AF,2,FALSE),FIND(" ",VLOOKUP(I2,$AE:$AF,2,FALSE),1)+1,20),3))) -> ΛΑΜΠΡΟΠΟΥΛΟΥ Β | AO2: =IF(J2<=0,"",TRIM(LEFT(LEFT(VLOOKUP(J2,$AE:$AF,2,FALSE),FIND(" ",VLOOKUP(J2,$AE:$AF,2,FALSE),1)-1),15)&" "&LEFT(MID(VLOOKUP(J2,$AE:$AF,2,FALSE),FIND(" ",VLOOKUP(J2,$AE:$AF,2,FALSE),1)+1,20),3))) -> ΜΗΤΡΟΠΟΥΛΟΥ Α
A3: =Setup!$B$3 -> ΣΤ' ΕΝΩΣΗ | B3: =Setup!$Z$6 -> 294 | C3: =Setup!$Z$5 -> Ε3 26η (ΣΤ) | D3: =SUBSTITUTE(TRIM(Setup!$B$6),"-","") -> Κ14 | E3: Smd16 | F3: =TEXT(Setup!$B$8,"ΕΕΕΕ-ΜΜ-ΗΗ") -> 2018-06-30 | G3: =Setup!$U$7&" "&Setup!$T$7 ->  | H3: R16 | I3: =IF(OR(MD!$M$7=1,MD!$M$7=2), IF(MD!$M$7=1,MD!$I$7,MD!$I$8),"") -> 38912 | J3: =IF(OR(MD!$M$7 =1,MD!$M$7 =2), IF(MD!$M$7 =2,MD!$I$7,MD!$I$8),"") -> 40747 | K3: =TRIM(MD!$O8) -> 53 40 | L3: 4 | M3: 3 | N3: 15 | O3: 16 | P3: =IF(R3="",I3,"") -> 38912 | Q3: =IF(AND($R3="",LEFT($K3)<>LOWER("w")),J3,"") -> 40747 | R3: =IF(OR(J3=0,K3=""),1,IF(TEXT(K3,"0")=SUBSTITUTE(LOWER(K3),"m",""),"",1)) ->  | T3: 1 | U3: =IF(NOT(OR(W3=0,W3=" ",W3="")),IF(INDIRECT("ALMD!B"&MATCH(W3,ALMD!$C$3:$C$18,0)+2)>0,INDIRECT("ALMD!B"&MATCH(W3,ALMD!$C$3:$C$18,0)+2),""),"") ->  | V3: =Setup!$U$7&" "&Setup!$T$7 ->  | W3: =J16 -> 26198 | X3: 2nd | Y3: =IF($W3>0,COUNTIF($P$2:$P$16,$W3),0) -> 3 | Z3: =IF($W3>0,COUNTIF($P$2:$P$16,$W3)+COUNTIF($Q$2:$Q$16,$W3),0) -> 4 | AA3: =IF($W20>0,IF(COUNTIF($W$19:$W$34,$W3)>0,VLOOKUP($W3,$W$19:$AP$34,20,FALSE),0),0) -> 0 | AB3: =IF(OR($Z3=0,$Z3="",$U3="DQ"),0,VLOOKUP($AJ3,tables!$AF:$AG,2,FALSE)) -> 15 | AC3: =IF(W3>0,YEAR(Setup!$B$8)-YEAR(VLOOKUP(W3,ALMD!$C:$F,3,FALSE)),0) -> 14 | AE3: =MD!$I6 -> 34396 | AF3: =MD!$K6 -> ΜΗΤΡΟΠΟΥΛΟΥ Α | AG3: =IF(AE3>0,MD!$A6,"") -> 2 | AH3: =MD!$G6 -> 14 | AJ3: =SUBSTITUTE(SUBSTITUTE(Setup!$B$5&"S-"&Setup!$B$13&"-"&X3,"Ανδ-",""),"Γυν-","") -> Ε3S-14-2nd | AN3: ΖΩΓΡΑΦΟΥ Α | AO3: ΤΟΥΜΠΑΝΙΑΡΗ Μ
A4: =Setup!$B$3 -> ΣΤ' ΕΝΩΣΗ | B4: =Setup!$Z$6 -> 294 | C4: =Setup!$Z$5 -> Ε3 26η (ΣΤ) | D4: =SUBSTITUTE(TRIM(Setup!$B$6),"-","") -> Κ14 | E4: Smd16 | F4: =TEXT(Setup!$B$8,"ΕΕΕΕ-ΜΜ-ΗΗ") -> 2018-06-30 | G4: =Setup!$U$7&" "&Setup!$T$7 ->  | H4: R16 | I4: =IF(OR(MD!$M$9=1,MD!$M$9=2), IF(MD!$M$9=1,MD!$I$9,MD!$I$10),"") -> 37337 | J4: =IF(OR(MD!$M$9 =1,MD!$M$9 =2), IF(MD!$M$9 =2,MD!$I$9,MD!$I$10),"") -> 38401 | K4: =TRIM(MD!$O10) -> 40 41 | L4: 5 | M4: 6 | N4: 3 | O4: 11 | P4: 37337 | Q4: 38401 | T4: 3 | U4: =IF(NOT(OR(W4=0,W4=" ",W4="")),IF(INDIRECT("ALMD!B"&MATCH(W4,ALMD!$C$3:$C$18,0)+2)>0,INDIRECT("ALMD!B"&MATCH(W4,ALMD!$C$3:$C$18,0)+2),""),"") ->  | V4: =Setup!$U$7&" "&Setup!$T$7 ->  | W4: =J14 -> 37337 | X4: 3_4 | Y4: 2 | Z4: 3 | AA4: 0 | AB4: =IF(OR($Z4=0,$Z4="",$U4="DQ"),0,VLOOKUP($AJ4,tables!$AF:$AG,2,FALSE)) -> 9 | AC4: =IF(W4>0,YEAR(Setup!$B$8)-YEAR(VLOOKUP(W4,ALMD!$C:$F,3,FALSE)),0) -> 14 | AE4: =MD!$I7 -> 40747 | AF4: =MD!$K7 -> ΤΟΥΜΠΑΝΙΑΡΗ Μ | AG4: =IF(AE4>0,MD!$A7,"") -> 3 | AH4: =MD!$G7 -> 16 | AJ4: =SUBSTITUTE(SUBSTITUTE(Setup!$B$5&"S-"&Setup!$B$13&"-"&X4,"Ανδ-",""),"Γυν-","") -> Ε3S-14-3_4 | AN4: ΔΕΛΗ Μ | AO4: ΚΛΑΟΥΔΑΤΟΥ Δ
A5: =Setup!$B$3 -> ΣΤ' ΕΝΩΣΗ | B5: =Setup!$Z$6 -> 294 | C5: =Setup!$Z$5 -> Ε3 26η (ΣΤ) | D5: =SUBSTITUTE(TRIM(Setup!$B$6),"-","") -> Κ14 | E5: Smd16 | F5: =TEXT(Setup!$B$8,"ΕΕΕΕ-ΜΜ-ΗΗ") -> 2018-06-30 | G5: =Setup!$U$7&" "&Setup!$T$7 ->  | H5: R16 | I5: =IF(OR(MD!$M$11=1,MD!$M$11=2), IF(MD!$M$11=1,MD!$I$11,MD!$I$12),"") -> 33355 | J5: =IF(OR(MD!$M$11=1,MD!$M$11=2), IF(MD!$M$11=2,MD!$I$11,MD!$I$12),"") -> 40340 | K5: =TRIM(MD!$O12) -> 40 40 | L5: 8 | M5: 7 | N5: 7 | O5: 13 | P5: 33355 | Q5: 40340 | T5: 4 | U5: =IF(NOT(OR(W5=0,W5=" ",W5="")),IF(INDIRECT("ALMD!B"&MATCH(W5,ALMD!$C$3:$C$18,0)+2)>0,INDIRECT("ALMD!B"&MATCH(W5,ALMD!$C$3:$C$18,0)+2),""),"") ->  | V5: =Setup!$U$7&" "&Setup!$T$7 ->  | W5: =J15 -> 35985 | X5: 3_4 | Y5: 2 | Z5: 3 | AA5: 0 | AB5: =IF(OR($Z5=0,$Z5="",$U5="DQ"),0,VLOOKUP($AJ5,tables!$AF:$AG,2,FALSE)) -> 9 | AC5: =IF(W5>0,YEAR(Setup!$B$8)-YEAR(VLOOKUP(W5,ALMD!$C:$F,3,FALSE)),0) -> 13 | AE5: =MD!$I8 -> 38912 | AF5: =MD!$K8 -> ΖΩΓΡΑΦΟΥ Α | AG5: =IF(AE5>0,MD!$A8,"") -> 4 | AH5: =MD!$G8 -> 15 | AJ5: =SUBSTITUTE(SUBSTITUTE(Setup!$B$5&"S-"&Setup!$B$13&"-"&X5,"Ανδ-",""),"Γυν-","") -> Ε3S-14-3_4 | AN5: ΒΟΥΔΟΥΡΗ Μ | AO5: ΝΙΚΟΛΑΚΟΠΟΥΛΟΥ Α
A6: =Setup!$B$3 -> ΣΤ' ΕΝΩΣΗ | B6: =Setup!$Z$6 -> 294 | C6: =Setup!$Z$5 -> Ε3 26η (ΣΤ) | D6: =SUBSTITUTE(TRIM(Setup!$B$6),"-","") -> Κ14 | E6: Smd16 | F6: =TEXT(Setup!$B$8,"ΕΕΕΕ-ΜΜ-ΗΗ") -> 2018-06-30 | G6: =Setup!$U$7&" "&Setup!$T$7 ->  | H6: R16 | I6: =IF(OR(MD!$M$13=1,MD!$M$13=2), IF(MD!$M$13=1,MD!$I$13,MD!$I$14),"") -> 35985 | J6: =IF(OR(MD!$M$13=1,MD!$M$13=2), IF(MD!$M$13=2,MD!$I$13,MD!$I$14),"") -> 35595 | K6: =TRIM(MD!$O14) -> 41 42 | L6: 9 | M6: 10 | N6: 4 | O6: 9 | P6: 35985 | Q6: 35595 | T6: 15 | U6: =IF(NOT(OR(W6=0,W6=" ",W6="")),IF(INDIRECT("ALMD!B"&MATCH(W6,ALMD!$C$3:$C$18,0)+2)>0,INDIRECT("ALMD!B"&MATCH(W6,ALMD!$C$3:$C$18,0)+2),""),"") ->  | V6: =Setup!$U$7&" "&Setup!$T$7 ->  | W6: =J10 -> 38912 | X6: 5_8 | Y6: 1 | Z6: 2 | AA6: 0 | AB6: =IF(OR($Z6=0,$Z6="",$U6="DQ"),0,VLOOKUP($AJ6,tables!$AF:$AG,2,FALSE)) -> 6 | AC6: =IF(W6>0,YEAR(Setup!$B$8)-YEAR(VLOOKUP(W6,ALMD!$C:$F,3,FALSE)),0) -> 12 | AE6: =MD!$I9 -> 37337 | AF6: =MD!$K9 -> ΔΕΛΗ Μ | AG6: =IF(AE6>0,MD!$A9,"") -> 5 | AH6: =MD!$G9 -> 3 | AJ6: =SUBSTITUTE(SUBSTITUTE(IF(AND(OR(Y6=0,Y6=""), Setup!$B$17>""), Setup!$B$5&"S-"&Setup!$B$13&"-"&Setup!$B$17, Setup!$B$5&"S-"&Setup!$B$13&"-"&X6),"Ανδ-",""),"Γυν-","") -> Ε3S-14-5_8 | AN6: ΖΟΥΓΡΑ Ι | AO6: ΤΟΥΛΑ Μ
A7: =Setup!$B$3 -> ΣΤ' ΕΝΩΣΗ | B7: =Setup!$Z$6 -> 294 | C7: =Setup!$Z$5 -> Ε3 26η (ΣΤ) | D7: =SUBSTITUTE(TRIM(Setup!$B$6),"-","") -> Κ14 | E7: Smd16 | F7: =TEXT(Setup!$B$8,"ΕΕΕΕ-ΜΜ-ΗΗ") -> 2018-06-30 | G7: =Setup!$U$7&" "&Setup!$T$7 ->  | H7: R16 | I7: =IF(OR(MD!$M$15=1,MD!$M$15=2), IF(MD!$M$15=1,MD!$I$15,MD!$I$16),"") -> 35515 | J7: =IF(OR(MD!$M$15=1,MD!$M$15=2), IF(MD!$M$15=2,MD!$I$15,MD!$I$16),"") -> 33668 | K7: =TRIM(MD!$O16) -> 42 41 | L7: 12 | M7: 11 | N7: 10 | O7: 6 | P7: 35515 | Q7: 33668 | T7: 7 | U7: =IF(NOT(OR(W7=0,W7=" ",W7="")),IF(INDIRECT("ALMD!B"&MATCH(W7,ALMD!$C$3:$C$18,0)+2)>0,INDIRECT("ALMD!B"&MATCH(W7,ALMD!$C$3:$C$18,0)+2),""),"") ->  | V7: =Setup!$U$7&" "&Setup!$T$7 ->  | W7: =J11 -> 33355 | X7: 5_8 | Y7: 1 | Z7: 2 | AA7: 0 | AB7: =IF(OR($Z7=0,$Z7="",$U7="DQ"),0,VLOOKUP($AJ7,tables!$AF:$AG,2,FALSE)) -> 6 | AC7: =IF(W7>0,YEAR(Setup!$B$8)-YEAR(VLOOKUP(W7,ALMD!$C:$F,3,FALSE)),0) -> 14 | AE7: =MD!$I10 -> 38401 | AF7: =MD!$K10 -> ΚΛΑΟΥΔΑΤΟΥ Δ | AG7: =IF(AE7>0,MD!$A10,"") -> 6 | AH7: =MD!$G10 -> 11 | AJ7: =SUBSTITUTE(SUBSTITUTE(IF(AND(OR(Y7=0,Y7=""), Setup!$B$17>""), Setup!$B$5&"S-"&Setup!$B$13&"-"&Setup!$B$17, Setup!$B$5&"S-"&Setup!$B$13&"-"&X7),"Ανδ-",""),"Γυν-","") -> Ε3S-14-5_8 | AN7: ΚΟΤΙΝΗ Μ | AO7: ΚΑΛΤΕΖΙΩΤΗ Ε
A8: =Setup!$B$3 -> ΣΤ' ΕΝΩΣΗ | B8: =Setup!$Z$6 -> 294 | C8: =Setup!$Z$5 -> Ε3 26η (ΣΤ) | D8: =SUBSTITUTE(TRIM(Setup!$B$6),"-","") -> Κ14 | E8: Smd16 | F8: =TEXT(Setup!$B$8,"ΕΕΕΕ-ΜΜ-ΗΗ") -> 2018-06-30 | G8: =Setup!$U$7&" "&Setup!$T$7 ->  | H8: R16 | I8: =IF(OR(MD!$M$17=1,MD!$M$17=2), IF(MD!$M$17=1,MD!$I$17,MD!$I$18),"") -> 90169 | J8: =IF(OR(MD!$M$17=1,MD!$M$17=2), IF(MD!$M$17=2,MD!$I$17,MD!$I$18),"") -> 38845 | K8: =TRIM(MD!$O18) -> 40 42 | L8: 13 | M8: 14 | N8: 5 | O8: 12 | P8: 90169 | Q8: 38845 | T8: 10 | U8: =IF(NOT(OR(W8=0,W8=" ",W8="")),IF(INDIRECT("ALMD!B"&MATCH(W8,ALMD!$C$3:$C$18,0)+2)>0,INDIRECT("ALMD!B"&MATCH(W8,ALMD!$C$3:$C$18,0)+2),""),"") ->  | V8: =Setup!$U$7&" "&Setup!$T$7 ->  | W8: =J12 -> 35515 | X8: 5_8 | Y8: 1 | Z8: 2 | AA8: 0 | AB8: =IF(OR($Z8=0,$Z8="",$U8="DQ"),0,VLOOKUP($AJ8,tables!$AF:$AG,2,FALSE)) -> 6 | AC8: =IF(W8>0,YEAR(Setup!$B$8)-YEAR(VLOOKUP(W8,ALMD!$C:$F,3,FALSE)),0) -> 12 | AE8: =MD!$I11 -> 40340 | AF8: =MD!$K11 -> ΝΙΚΟΛΑΚΟΠΟΥΛΟΥ Α | AG8: =IF(AE8>0,MD!$A11,"") -> 7 | AH8: =MD!$G11 -> 13 | AJ8: =SUBSTITUTE(SUBSTITUTE(IF(AND(OR(Y8=0,Y8=""), Setup!$B$17>""), Setup!$B$5&"S-"&Setup!$B$13&"-"&Setup!$B$17, Setup!$B$5&"S-"&Setup!$B$13&"-"&X8),"Ανδ-",""),"Γυν-","") -> Ε3S-14-5_8 | AN8: ΑΣΕΝΟΒΑ Γ | AO8: ΤΣΙΛΙΜΠΗ Δ
A9: =Setup!$B$3 -> ΣΤ' ΕΝΩΣΗ | B9: =Setup!$Z$6 -> 294 | C9: =Setup!$Z$5 -> Ε3 26η (ΣΤ) | D9: =SUBSTITUTE(TRIM(Setup!$B$6),"-","") -> Κ14 | E9: Smd16 | F9: =TEXT(Setup!$B$8,"ΕΕΕΕ-ΜΜ-ΗΗ") -> 2018-06-30 | G9: =Setup!$U$7&" "&Setup!$T$7 ->  | H9: R16 | I9: =IF(OR(MD!$M$19=1,MD!$M$19=2), IF(MD!$M$19=1,MD!$I$19,MD!$I$20),"") -> 37585 | J9: =IF(OR(MD!$M$19=1,MD!$M$19=2), IF(MD!$M$19=2,MD!$I$19,MD!$I$20),"") -> 39327 | K9: =TRIM(MD!$O20) -> 40 40 | L9: 16 | M9: 15 | N9: 2 | O9: 8 | P9: 37585 | Q9: 39327 | T9: 5 | U9: =IF(NOT(OR(W9=0,W9=" ",W9="")),IF(INDIRECT("ALMD!B"&MATCH(W9,ALMD!$C$3:$C$18,0)+2)>0,INDIRECT("ALMD!B"&MATCH(W9,ALMD!$C$3:$C$18,0)+2),""),"") ->  | V9: =Setup!$U$7&" "&Setup!$T$7 ->  | W9: =J13 -> 90169 | X9: 5_8 | Y9: 1 | Z9: 2 | AA9: 0 | AB9: =IF(OR($Z9=0,$Z9="",$U9="DQ"),0,VLOOKUP($AJ9,tables!$AF:$AG,2,FALSE)) -> 6 | AC9: =IF(W9>0,YEAR(Setup!$B$8)-YEAR(VLOOKUP(W9,ALMD!$C:$F,3,FALSE)),0) -> 118 | AE9: =MD!$I12 -> 33355 | AF9: =MD!$K12 -> ΒΟΥΔΟΥΡΗ Μ | AG9: =IF(AE9>0,MD!$A12,"") -> 8 | AH9: =MD!$G12 -> 7 | AJ9: =SUBSTITUTE(SUBSTITUTE(IF(AND(OR(Y9=0,Y9=""), Setup!$B$17>""), Setup!$B$5&"S-"&Setup!$B$13&"-"&Setup!$B$17, Setup!$B$5&"S-"&Setup!$B$13&"-"&X9),"Ανδ-",""),"Γυν-","") -> Ε3S-14-5_8 | AL9: =IF(AO9>" ", IF(OR(AM9=AM10,AM9=AM8), IF(AM9=AM10,AN9&"/"&AN10&" - "&AO9&"/"&AO10, AN8&"/"&AN9&" - "&AO8&"/"&AO9),AN9&" - "&AO9), IF(OR(AM9=AM10,AM9=AM8), IF(AM9=AM10,AN9&"/"&AN10, AN8&"/"&AN9),AN9)) ->  | AM9: =G9&H9&L9 ->  | AN9: ΣΤΡΑΤΗ Γ | AO9: ΜΠΟΥΖΟΥ Ε
A10: =Setup!$B$3 -> ΣΤ' ΕΝΩΣΗ | B10: =Setup!$Z$6 -> 294 | C10: =Setup!$Z$5 -> Ε3 26η (ΣΤ) | D10: =SUBSTITUTE(TRIM(Setup!$B$6),"-","") -> Κ14 | E10: Smd16 | F10: =TEXT(Setup!$B$8,"ΕΕΕΕ-ΜΜ-ΗΗ") -> 2018-06-30 | G10: =Setup!$U$7&" "&Setup!$T$7 ->  | H10: R08 | I10: =IF(OR(MD!$P$6=1,MD!$P$6=2), IF(MD!$P$6 =1,MD!$N$5,MD!$N$7),"") -> 26198 | J10: =IF(OR(MD!$P$6 =1,MD!$P$6 =2), IF(MD!$P$6 =2,MD!$N$5,MD!$N$7),"") -> 38912 | K10: =TRIM(MD!$R7) -> 41 41 | L10: 1 | M10: 4 | N10: 1 | O10: 15 | P10: 26198 | Q10: 38912 | T10: 14 | U10: =IF(NOT(OR(W10=0,W10=" ",W10="")),IF(INDIRECT("ALMD!B"&MATCH(W10,ALMD!$C$3:$C$18,0)+2)>0,INDIRECT("ALMD!B"&MATCH(W10,ALMD!$C$3:$C$18,0)+2),""),"") ->  | V10: =Setup!$U$7&" "&Setup!$T$7 ->  | W10: =J2 -> 34396 | X10: 9_16 | Y10: 0 | Z10: 1 | AA10: 0 | AB10: =IF(OR($Z10=0,$Z10="",$U10="DQ"),0,VLOOKUP($AJ10,tables!$AF:$AG,2,FALSE)) -> 3 | AC10: =IF(W10>0,YEAR(Setup!$B$8)-YEAR(VLOOKUP(W10,ALMD!$C:$F,3,FALSE)),0) -> 13 | AE10: =MD!$I13 -> 35985 | AF10: =MD!$K13 -> ΖΟΥΓΡΑ Ι | AG10: =IF(AE10>0,MD!$A13,"") -> 9 | AH10: =MD!$G13 -> 4 | AJ10: =SUBSTITUTE(SUBSTITUTE(IF(AND(OR(Y10=0,Y10=""), Setup!$B$17>""), Setup!$B$5&"S-"&Setup!$B$13&"-"&Setup!$B$17, Setup!$B$5&"S-"&Setup!$B$13&"-"&X10),"Ανδ-",""),"Γυν-","") -> Ε3S-14-17_32 | AN10: ΛΑΜΠΡΟΠΟΥΛΟΥ Β | AO10: ΖΩΓΡΑΦΟΥ Α
A11: =Setup!$B$3 -> ΣΤ' ΕΝΩΣΗ | B11: =Setup!$Z$6 -> 294 | C11: =Setup!$Z$5 -> Ε3 26η (ΣΤ) | D11: =SUBSTITUTE(TRIM(Setup!$B$6),"-","") -> Κ14 | E11: Smd16 | F11: =TEXT(Setup!$B$8,"ΕΕΕΕ-ΜΜ-ΗΗ") -> 2018-06-30 | G11: =Setup!$U$7&" "&Setup!$T$7 ->  | H11: R08 | I11: =IF(OR(MD!$P$10=1,MD!$P$10=2), IF(MD!$P$10=1,MD!$N$9,MD!$N$11),"") -> 37337 | J11: =IF(OR(MD!$P$10=1,MD!$P$10=2), IF(MD!$P$10=2,MD!$N$9,MD!$N$11),"") -> 33355 | K11: =TRIM(MD!$R11) -> 41 41 | L11: 5 | M11: 8 | N11: 3 | O11: 7 | P11: 37337 | Q11: 33355 | T11: 16 | U11: =IF(NOT(OR(W11=0,W11=" ",W11="")),IF(INDIRECT("ALMD!B"&MATCH(W11,ALMD!$C$3:$C$18,0)+2)>0,INDIRECT("ALMD!B"&MATCH(W11,ALMD!$C$3:$C$18,0)+2),""),"") ->  | V11: =Setup!$U$7&" "&Setup!$T$7 ->  | W11: 40747 | X11: 9_16 | Y11: 0 | Z11: 1 | AA11: 0 | AB11: =IF(OR($Z11=0,$Z11="",$U11="DQ"),0,VLOOKUP($AJ11,tables!$AF:$AG,2,FALSE)) -> 3 | AC11: =IF(W11>0,YEAR(Setup!$B$8)-YEAR(VLOOKUP(W11,ALMD!$C:$F,3,FALSE)),0) -> 13 | AE11: =MD!$I14 -> 35595 | AF11: =MD!$K14 -> ΤΟΥΛΑ Μ | AG11: =IF(AE11>0,MD!$A14,"") -> 10 | AH11: =MD!$G14 -> 9 | AJ11: =SUBSTITUTE(SUBSTITUTE(IF(AND(OR(Y11=0,Y11=""), Setup!$B$17>""), Setup!$B$5&"S-"&Setup!$B$13&"-"&Setup!$B$17, Setup!$B$5&"S-"&Setup!$B$13&"-"&X11),"Ανδ-",""),"Γυν-","") -> Ε3S-14-17_32 | AN11: ΔΕΛΗ Μ | AO11: ΒΟΥΔΟΥΡΗ Μ
A12: =Setup!$B$3 -> ΣΤ' ΕΝΩΣΗ | B12: =Setup!$Z$6 -> 294 | C12: =Setup!$Z$5 -> Ε3 26η (ΣΤ) | D12: =SUBSTITUTE(TRIM(Setup!$B$6),"-","") -> Κ14 | E12: Smd16 | F12: =TEXT(Setup!$B$8,"ΕΕΕΕ-ΜΜ-ΗΗ") -> 2018-06-30 | G12: =Setup!$U$7&" "&Setup!$T$7 ->  | H12: R08 | I12: =IF(OR(MD!$P$14=1,MD!$P$14=2), IF(MD!$P$14=1,MD!$N$13,MD!$N$15),"") -> 35985 | J12: =IF(OR(MD!$P$14=1,MD!$P$14=2), IF(MD!$P$14=2,MD!$N$13,MD!$N$15),"") -> 35515 | K12: =TRIM(MD!$R15) -> 54(3) 40 | L12: 9 | M12: 12 | N12: 4 | O12: 10 | P12: 35985 | Q12: 35515 | T12: 11 | U12: =IF(NOT(OR(W12=0,W12=" ",W12="")),IF(INDIRECT("ALMD!B"&MATCH(W12,ALMD!$C$3:$C$18,0)+2)>0,INDIRECT("ALMD!B"&MATCH(W12,ALMD!$C$3:$C$18,0)+2),""),"") ->  | V12: =Setup!$U$7&" "&Setup!$T$7 ->  | W12: 38401 | X12: 9_16 | Y12: 0 | Z12: 1 | AA12: 0 | AB12: =IF(OR($Z12=0,$Z12="",$U12="DQ"),0,VLOOKUP($AJ12,tables!$AF:$AG,2,FALSE)) -> 3 | AC12: =IF(W12>0,YEAR(Setup!$B$8)-YEAR(VLOOKUP(W12,ALMD!$C:$F,3,FALSE)),0) -> 11 | AE12: =MD!$I15 -> 33668 | AF12: =MD!$K15 -> ΚΑΛΤΕΖΙΩΤΗ Ε | AG12: =IF(AE12>0,MD!$A15,"") -> 11 | AH12: =MD!$G15 -> 6 | AJ12: =SUBSTITUTE(SUBSTITUTE(IF(AND(OR(Y12=0,Y12=""), Setup!$B$17>""), Setup!$B$5&"S-"&Setup!$B$13&"-"&Setup!$B$17, Setup!$B$5&"S-"&Setup!$B$13&"-"&X12),"Ανδ-",""),"Γυν-","") -> Ε3S-14-17_32 | AN12: ΖΟΥΓΡΑ Ι | AO12: ΚΟΤΙΝΗ Μ
A13: =Setup!$B$3 -> ΣΤ' ΕΝΩΣΗ | B13: =Setup!$Z$6 -> 294 | C13: =Setup!$Z$5 -> Ε3 26η (ΣΤ) | D13: =SUBSTITUTE(TRIM(Setup!$B$6),"-","") -> Κ14 | E13: Smd16 | F13: =TEXT(Setup!$B$8,"ΕΕΕΕ-ΜΜ-ΗΗ") -> 2018-06-30 | G13: =Setup!$U$7&" "&Setup!$T$7 ->  | H13: R08 | I13: =IF(OR(MD!$P$18=1,MD!$P$18=2), IF(MD!$P$18=1,MD!$N$17,MD!$N$19),"") -> 37585 | J13: =IF(OR(MD!$P$18=1,MD!$P$18=2), IF(MD!$P$18=2,MD!$N$17,MD!$N$19),"") -> 90169 | K13: =TRIM(MD!$R19) -> 41 41 | L13: 16 | M13: 13 | N13: 2 | O13: 5 | P13: 37585 | Q13: 90169 | T13: 13 | U13: =IF(NOT(OR(W13=0,W13=" ",W13="")),IF(INDIRECT("ALMD!B"&MATCH(W13,ALMD!$C$3:$C$18,0)+2)>0,INDIRECT("ALMD!B"&MATCH(W13,ALMD!$C$3:$C$18,0)+2),""),"") ->  | V13: =Setup!$U$7&" "&Setup!$T$7 ->  | W13: 40340 | X13: 9_16 | Y13: 0 | Z13: 1 | AA13: 0 | AB13: =IF(OR($Z13=0,$Z13="",$U13="DQ"),0,VLOOKUP($AJ13,tables!$AF:$AG,2,FALSE)) -> 3 | AC13: =IF(W13>0,YEAR(Setup!$B$8)-YEAR(VLOOKUP(W13,ALMD!$C:$F,3,FALSE)),0) -> 12 | AE13: =MD!$I16 -> 35515 | AF13: =MD!$K16 -> ΚΟΤΙΝΗ Μ | AG13: =IF(AE13>0,MD!$A16,"") -> 12 | AH13: =MD!$G16 -> 10 | AJ13: =SUBSTITUTE(SUBSTITUTE(IF(AND(OR(Y13=0,Y13=""), Setup!$B$17>""), Setup!$B$5&"S-"&Setup!$B$13&"-"&Setup!$B$17, Setup!$B$5&"S-"&Setup!$B$13&"-"&X13),"Ανδ-",""),"Γυν-","") -> Ε3S-14-17_32 | AN13: ΣΤΡΑΤΗ Γ | AO13: ΑΣΕΝΟΒΑ Γ
A14: =Setup!$B$3 -> ΣΤ' ΕΝΩΣΗ | B14: =Setup!$Z$6 -> 294 | C14: =Setup!$Z$5 -> Ε3 26η (ΣΤ) | D14: =SUBSTITUTE(TRIM(Setup!$B$6),"-","") -> Κ14 | E14: Smd16 | F14: =TEXT(Setup!$B$8,"ΕΕΕΕ-ΜΜ-ΗΗ") -> 2018-06-30 | G14: =Setup!$U$7&" "&Setup!$T$7 ->  | H14: Ημιτελ | I14: =IF(OR(MD!$S$8=1,MD!$S$8=2), IF(MD!$S$8=1,MD!$Q$6,MD!$Q$10),"") -> 26198 | J14: =IF(OR(MD!$S$8 =1,MD!$S$8 =2), IF(MD!$S$8 =2,MD!$Q$6,MD!$Q$10),"") -> 37337 | K14: =TRIM(MD!$U9) -> 62 57 63 | L14: 1 | M14: 5 | N14: 1 | O14: 3 | P14: 26198 | Q14: 37337 | T14: 9 | U14: =IF(NOT(OR(W14=0,W14=" ",W14="")),IF(INDIRECT("ALMD!B"&MATCH(W14,ALMD!$C$3:$C$18,0)+2)>0,INDIRECT("ALMD!B"&MATCH(W14,ALMD!$C$3:$C$18,0)+2),""),"") ->  | V14: =Setup!$U$7&" "&Setup!$T$7 ->  | W14: 35595 | X14: 9_16 | Y14: 0 | Z14: 1 | AA14: 0 | AB14: =IF(OR($Z14=0,$Z14="",$U14="DQ"),0,VLOOKUP($AJ14,tables!$AF:$AG,2,FALSE)) -> 3 | AC14: =IF(W14>0,YEAR(Setup!$B$8)-YEAR(VLOOKUP(W14,ALMD!$C:$F,3,FALSE)),0) -> 12 | AE14: =MD!$I17 -> 90169 | AF14: =MD!$K17 -> ΑΣΕΝΟΒΑ Γ | AG14: =IF(AE14>0,MD!$A17,"") -> 13 | AH14: =MD!$G17 -> 5 | AJ14: =SUBSTITUTE(SUBSTITUTE(IF(AND(OR(Y14=0,Y14=""), Setup!$B$17>""), Setup!$B$5&"S-"&Setup!$B$13&"-"&Setup!$B$17, Setup!$B$5&"S-"&Setup!$B$13&"-"&X14),"Ανδ-",""),"Γυν-","") -> Ε3S-14-17_32 | AN14: ΛΑΜΠΡΟΠΟΥΛΟΥ Β | AO14: ΔΕΛΗ Μ
A15: =Setup!$B$3 -> ΣΤ' ΕΝΩΣΗ | B15: =Setup!$Z$6 -> 294 | C15: =Setup!$Z$5 -> Ε3 26η (ΣΤ) | D15: =SUBSTITUTE(TRIM(Setup!$B$6),"-","") -> Κ14 | E15: Smd16 | F15: =TEXT(Setup!$B$8,"ΕΕΕΕ-ΜΜ-ΗΗ") -> 2018-06-30 | G15: =Setup!$U$7&" "&Setup!$T$7 ->  | H15: Ημιτελ | I15: =IF(OR(MD!$S$16=1,MD!$S$16=2), IF(MD!$S$16=1,MD!$Q$14,MD!$Q$18),"") -> 37585 | J15: =IF(OR(MD!$S$16=1,MD!$S$16=2), IF(MD!$S$16=2,MD!$Q$14,MD!$Q$18),"") -> 35985 | K15: =TRIM(MD!$U17) -> 57 62 62 | L15: 16 | M15: 9 | N15: 2 | O15: 4 | P15: 37585 | Q15: 35985 | T15: 6 | U15: =IF(NOT(OR(W15=0,W15=" ",W15="")),IF(INDIRECT("ALMD!B"&MATCH(W15,ALMD!$C$3:$C$18,0)+2)>0,INDIRECT("ALMD!B"&MATCH(W15,ALMD!$C$3:$C$18,0)+2),""),"") ->  | V15: =Setup!$U$7&" "&Setup!$T$7 ->  | W15: 33668 | X15: 9_16 | Y15: 0 | Z15: 1 | AA15: 0 | AB15: =IF(OR($Z15=0,$Z15="",$U15="DQ"),0,VLOOKUP($AJ15,tables!$AF:$AG,2,FALSE)) -> 3 | AC15: =IF(W15>0,YEAR(Setup!$B$8)-YEAR(VLOOKUP(W15,ALMD!$C:$F,3,FALSE)),0) -> 14 | AE15: =MD!$I18 -> 38845 | AF15: =MD!$K18 -> ΤΣΙΛΙΜΠΗ Δ | AG15: =IF(AE15>0,MD!$A18,"") -> 14 | AH15: =MD!$G18 -> 12 | AJ15: =SUBSTITUTE(SUBSTITUTE(IF(AND(OR(Y15=0,Y15=""), Setup!$B$17>""), Setup!$B$5&"S-"&Setup!$B$13&"-"&Setup!$B$17, Setup!$B$5&"S-"&Setup!$B$13&"-"&X15),"Ανδ-",""),"Γυν-","") -> Ε3S-14-17_32 | AN15: ΣΤΡΑΤΗ Γ | AO15: ΖΟΥΓΡΑ Ι
A16: =Setup!$B$3 -> ΣΤ' ΕΝΩΣΗ | B16: =Setup!$Z$6 -> 294 | C16: =Setup!$Z$5 -> Ε3 26η (ΣΤ) | D16: =SUBSTITUTE(TRIM(Setup!$B$6),"-","") -> Κ14 | E16: Smd16 | F16: =TEXT(Setup!$B$8,"ΕΕΕΕ-ΜΜ-ΗΗ") -> 2018-06-30 | G16: =Setup!$U$7&" "&Setup!$T$7 ->  | H16: Τελικός | I16: =IF(OR(MD!$S$12=1,MD!$S$12=2), IF(MD!$S$12=1,MD!$T$8,MD!$T$16),"") -> 37585 | J16: =IF(OR(MD!$S$12=1,MD!$S$12=2), IF(MD!$S$12=2,MD!$T$8,MD!$T$16),"") -> 26198 | K16: =TRIM(MD!$U13) -> 67(3) 60 ret. | L16: 16 | M16: 1 | N16: 2 | O16: 1 | P16: 37585 | Q16: 26198 | T16: 12 | U16: =IF(NOT(OR(W16=0,W16=" ",W16="")),IF(INDIRECT("ALMD!B"&MATCH(W16,ALMD!$C$3:$C$18,0)+2)>0,INDIRECT("ALMD!B"&MATCH(W16,ALMD!$C$3:$C$18,0)+2),""),"") ->  | V16: =Setup!$U$7&" "&Setup!$T$7 ->  | W16: 38845 | X16: 9_16 | Y16: 0 | Z16: 1 | AA16: 0 | AB16: =IF(OR($Z16=0,$Z16="",$U16="DQ"),0,VLOOKUP($AJ16,tables!$AF:$AG,2,FALSE)) -> 3 | AC16: =IF(W16>0,YEAR(Setup!$B$8)-YEAR(VLOOKUP(W16,ALMD!$C:$F,3,FALSE)),0) -> 13 | AE16: =MD!$I19 -> 39327 | AF16: =MD!$K19 -> ΜΠΟΥΖΟΥ Ε | AG16: =IF(AE16>0,MD!$A19,"") -> 15 | AH16: =MD!$G19 -> 8 | AJ16: =SUBSTITUTE(SUBSTITUTE(IF(AND(OR(Y16=0,Y16=""), Setup!$B$17>""), Setup!$B$5&"S-"&Setup!$B$13&"-"&Setup!$B$17, Setup!$B$5&"S-"&Setup!$B$13&"-"&X16),"Ανδ-",""),"Γυν-","") -> Ε3S-14-17_32 | AN16: ΣΤΡΑΤΗ Γ | AO16: ΛΑΜΠΡΟΠΟΥΛΟΥ Β
A17: =Setup!$B$3 -> ΣΤ' ΕΝΩΣΗ | B17: =Setup!$Z$6 -> 294 | C17: =Setup!$Z$5 -> Ε3 26η (ΣΤ) | D17: =SUBSTITUTE(TRIM(Setup!$B$6),"-","") -> Κ14 | E17: Smd16 | F17: =TEXT(Setup!$B$8,"ΕΕΕΕ-ΜΜ-ΗΗ") -> 2018-06-30 | T17: 8 | U17: =IF(NOT(OR(W17=0,W17=" ",W17="")),IF(INDIRECT("ALMD!B"&MATCH(W17,ALMD!$C$3:$C$18,0)+2)>0,INDIRECT("ALMD!B"&MATCH(W17,ALMD!$C$3:$C$18,0)+2),""),"") ->  | V17: =Setup!$U$7&" "&Setup!$T$7 ->  | W17: 39327 | X17: 9_16 | Y17: 0 | Z17: 1 | AA17: 0 | AB17: =IF(OR($Z17=0,$Z17="",$U17="DQ"),0,VLOOKUP($AJ17,tables!$AF:$AG,2,FALSE)) -> 3 | AC17: =IF(W17>0,YEAR(Setup!$B$8)-YEAR(VLOOKUP(W17,ALMD!$C:$F,3,FALSE)),0) -> 13 | AE17: =MD!$I20 -> 37585 | AF17: =MD!$K20 -> ΣΤΡΑΤΗ Γ | AG17: =IF(AE17>0,MD!$A20,"") -> 16 | AH17: =MD!$G20 -> 2 | AJ17: =SUBSTITUTE(SUBSTITUTE(IF(AND(OR(Y17=0,Y17=""), Setup!$B$17>""), Setup!$B$5&"S-"&Setup!$B$13&"-"&Setup!$B$17, Setup!$B$5&"S-"&Setup!$B$13&"-"&X17),"Ανδ-",""),"Γυν-","") -> Ε3S-14-17_32
AP18: PtsQ | AQ18: aa19
AQ19: '=IF(COUNTIF($W$2:$W$17,$W19)>0,0,$AP19)
